Entity,Vendor Name,Expenditure Account ,Document Number,Clearing Date,Amount (�),Merchant Category
TRANSPORT TRADING LTD,RAIL SETTLEMENT PLAN,Rail Settlement Plan - PAYG Creditor,1004\1901669197,19-Nov-19,"59,000,000.00",
TRANSPORT TRADING LTD,RAIL SETTLEMENT PLAN,Rail Settlement Plan - PAYG Creditor,1004\1901669475,22-Nov-19,"52,837,347.34",
RAIL FOR LONDON LIMITED,ARRIVA RAIL LONDON,Franchise/Concession Fixed Fee,1020\5109663737,04-Dec-19,"15,476,981.23",
LONDON BUS SERVICES LTD,METROLINE TRAVEL LTD,Bus Contract Payments,1006\1900043387,22-Nov-19,"15,102,031.26",
LONDON BUS SERVICES LTD,ARRIVA LONDON NORTH LTD,Bus Contract Payments,1006\1900043376,22-Nov-19,"14,666,725.46",
RAIL FOR LONDON LIMITED,MTR CORPORATION (CROSSRAIL) LTD,Franchise/Concession Fixed Fee,1020\5109660588,04-Dec-19,"14,081,297.16",
LONDON UNDERGROUND LTD,FERROVIAL LAING O ROURKE ,Civil Engineering Construction Works,1005\5109651000,04-Dec-19,"13,717,955.26",
RAIL FOR LONDON LIMITED,MORGAN SINDALL  PLC,Civil Engineering Construction Works,1020\5109655516,04-Dec-19,"11,406,241.74",
LONDON BUS SERVICES LTD,LONDON GENERAL TRANSPORT SERVICES,Bus Contract Payments,1006\1900043383,22-Nov-19,"10,955,574.60",
LONDON BUS SERVICES LTD,LONDON CENTRAL BUS COMPANY LTD ,Bus Contract Payments,1006\1900043382,22-Nov-19,"10,120,230.10",
LONDON BUS SERVICES LTD,LONDON UNITED BUSWAYS,Bus Contract Payments,1006\1900043385,22-Nov-19,"9,145,257.93",
LONDON BUS SERVICES LTD,EAST LONDON BUS & COACH COMPANY LTD,Bus Contract Payments,1006\1900043380,22-Nov-19,"7,923,812.10",
LUL NOMINEE SSL LIMITED,THALES RAIL SIGNALLING SOLUTIONS,Civil Engineering Construction Works,1031\5109656647,02-Dec-19,"7,657,877.13",
DOCKLANDS LIGHT RAILWAY,KEOLIS AMEY DOCKLANDS LIMITED,Civil Engineering Construction Works,1012\5109660188,02-Dec-19,"7,105,107.30",
LONDON BUS SERVICES LTD,ARRIVA LONDON SOUTH LTD,Bus Contract Payments,1006\1900043377,22-Nov-19,"6,276,264.30",
LONDON BUS SERVICES LTD,ABELLIO LONDON LTD,Bus Contract Payments,1006\1900043374,22-Nov-19,"6,163,979.69",
LONDON UNDERGROUND LTD,HITACHI RAIL EUROPE LIMITED,Exceptional - Non Transformation,1005\1900211910,04-Dec-19,"6,000,000.00",
LONDON BUS SERVICES LTD,STAGECOACH,Bus Contract Payments,1006\1900043390,22-Nov-19,"5,740,416.21",
TRANSPORT TRADING LTD,CUBIC TRANSPORTATION SYSTEMS LTD,Cubic Oyster Contract Costs,1004\5109656617,25-Nov-19,"5,568,254.23",
LONDON BUS SERVICES LTD,TOWER TRANSIT OPERATIONS LTD,Bus Contract Payments,1006\1900043392,22-Nov-19,"5,540,986.22",
LONDON BUS SERVICES LTD,METROLINE TRAVEL LTD,Bus Contract Payments,1006\1900043454,06-Dec-19,"5,129,613.79",
LONDON BUS SERVICES LTD,METROLINE WEST LTD,Bus Contract Payments,1006\1900043388,22-Nov-19,"4,609,737.05",
LONDON UNDERGROUND LTD,DRAGADOS S.A.,Civil Engineering Construction Works,1005\5109651947,04-Dec-19,"4,599,495.62",
TFL CORPORATE,NETWORK RAIL,National Rail Fixed Track Access Charges,1001\5109636340,13-Nov-19,"4,493,228.62",
TFL CORPORATE,NETWORK RAIL,National Rail Fixed Track Access Charges,1001\5109651197,04-Dec-19,"4,493,228.62",
LONDON BUS SERVICES LTD,ARRIVA LONDON NORTH LTD,Bus Contract Payments,1006\1900043444,06-Dec-19,"4,434,026.02",
LONDON BUS SERVICES LTD,METROBUS LIMITED,Bus Contract Payments,1006\1900043386,22-Nov-19,"4,178,546.44",
LUL NOMINEE SSL LIMITED,THALES GROUND TRANSPORTATION SYSTEM,Civil Engineering Construction Works,1031\5109656762,06-Dec-19,"3,832,496.22",
TRANSPORT TRADING LTD,RAIL SETTLEMENT PLAN,Rail Settlement Plan - PAYG Creditor,1004\1901669476,22-Nov-19,"3,823,781.88",
LONDON UNDERGROUND LTD,BRITISH TRANSPORT POLICE,MPS Employment Costs SM,1005\5109635031,04-Dec-19,"3,694,726.00",
LONDON BUS SERVICES LTD,LONDON CENTRAL BUS COMPANY LTD ,Bus Contract Payments,1006\1900043364,22-Nov-19,"3,628,813.25",
DOCKLANDS LIGHT RAILWAY,CGL RAIL,Civil Engineering Construction Works,1012\5109658288,27-Nov-19,"3,622,948.00",
LONDON BUS SERVICES LTD,LONDON GENERAL TRANSPORT SERVICES,Bus Contract Payments,1006\1900043365,22-Nov-19,"3,617,912.33",
LONDON BUS SERVICES LTD,LONDON GENERAL TRANSPORT SERVICES,Bus Contract Payments,1006\1900043451,06-Dec-19,"3,607,372.53",
LONDON BUS SERVICES LTD,ABELLIO LONDON LTD,Bus Contract Payments,1006\1900043375,22-Nov-19,"3,536,273.01",
LONDON UNDERGROUND LTD,ALSTOM NL SERVICE PROVISION LTD,Fleet Tsssa Contract,1005\5109637471,20-Nov-19,"3,496,577.60",
LONDON BUS SERVICES LTD,ARRIVA LONDON NORTH LTD,Bus Contract Payments,1006\1900043358,22-Nov-19,"3,415,235.49",
LONDON BUS SERVICES LTD,METROLINE TRAVEL LTD,Bus Contract Payments,1006\1900043369,22-Nov-19,"3,407,633.74",
LONDON BUS SERVICES LTD,LONDON CENTRAL BUS COMPANY LTD ,Bus Contract Payments,1006\1900043450,06-Dec-19,"3,336,678.71",
LUL NOMINEE SSL LIMITED,BALFOUR BEATTY RAIL LTD,Track General Maintenance,1031\5109647376,11-Nov-19,"3,176,660.31",
LONDON BUS SERVICES LTD,LONDON UNITED BUSWAYS,Bus Contract Payments,1006\1900043469,06-Dec-19,"3,166,316.59",
SURFACE TRANSPORT CORP,LONDON BOROUGH OF SOUTHWARK,Borough Services - Claim Against Pr Yr Accrual,1002\1900061901,13-Nov-19,"3,137,967.00",
LONDON BUS SERVICES LTD,BLUE TRIANGLE BUSES LTD,Bus Contract Payments,1006\1900043378,22-Nov-19,"2,874,412.51",
LONDON UNDERGROUND LTD,GBM SERVICES LTD,Operational Cleaning,1005\5109660735,04-Dec-19,"2,603,195.90",
LONDON BUS SERVICES LTD,EAST LONDON BUS & COACH COMPANY LTD,Bus Contract Payments,1006\1900043448,06-Dec-19,"2,589,139.36",
LONDON BUS SERVICES LTD,LONDON SOVEREIGN LTD ,Bus Contract Payments,1006\1900043384,22-Nov-19,"2,573,331.01",
RAIL FOR LONDON LIMITED,CLESHAR CONTRACT SERVICES LTD,Maintenance of Plant & Equipment,1020\5109663190,04-Dec-19,"2,245,258.34",
SURFACE TRANSPORT CORP,ENTERPRISEMOUCHEL LTD ,Contracted Services - Roads,1002\5109659367,02-Dec-19,"2,183,104.68",
LONDON BUS SERVICES LTD,ARRIVA LONDON SOUTH LTD,Bus Contract Payments,1006\1900043445,06-Dec-19,"2,062,909.54",
RAIL FOR LONDON LIMITED,(EURO) PLASSER UK LTD,Plant & Equipment Purchases,1020\5109645905,29-Nov-19,"1,988,293.86",
LUL NOMINEE SSL LIMITED,VINCI CONSTRUCTION UK LTD,Retentions Control Account > 1Year,1031\5109655292,02-Dec-19,"1,936,906.97",
LONDON BUS SERVICES LTD,STAGECOACH,Bus Contract Payments,1006\1900043457,06-Dec-19,"1,865,109.17",
LONDON BUS SERVICES LTD,CT PLUS LIMITED,Bus Contract Payments,1006\1900043381,22-Nov-19,"1,841,500.36",
SURFACE TRANSPORT CORP,ROAD MANAGEMENT SERVICES PLC,A13 PFI Service Costs,1002\5109644638,13-Nov-19,"1,835,579.00",
LONDON BUS SERVICES LTD,ABELLIO LONDON LTD,Bus Contract Payments,1006\1900043442,06-Dec-19,"1,817,559.02",
LONDON BUS SERVICES LTD,TOWER TRANSIT OPERATIONS LTD,Bus Contract Payments,1006\1900043459,06-Dec-19,"1,795,504.33",
LONDON UNDERGROUND LTD,GBM SERVICES LTD,Operational Cleaning,1005\5109660749,04-Dec-19,"1,789,589.04",
SURFACE TRANSPORT CORP,CONWAY AECOM LTD,Contracted Services - Roads,1002\5109659354,02-Dec-19,"1,784,064.66",
LONDON BUS SERVICES LTD,ARRIVA LONDON SOUTH LTD,Bus Contract Payments,1006\1900043359,22-Nov-19,"1,713,790.78",
LONDON BUS SERVICES LTD,METROLINE WEST LTD,Bus Contract Payments,1006\1900043455,06-Dec-19,"1,509,057.94",
SURFACE TRANSPORT CORP,CONWAY AECOM LTD,Road Maintenance,1002\5109660128,02-Dec-19,"1,505,030.57",
LUL NOMINEE SSL LIMITED,BALFOUR BEATTY RAIL LTD,Track General Maintenance,1031\5109634700,13-Nov-19,"1,452,075.83",
SURFACE TRANSPORT CORP,ENTERPRISEMOUCHEL LTD ,Road Maintenance,1002\5109658923,04-Dec-19,"1,436,982.40",
LONDON UNDERGROUND LTD,BRITISH TRANSPORT POLICE,MPS Employment Costs SM,1005\5109631829,04-Dec-19,"1,432,632.18",
SURFACE TRANSPORT CORP,LONDON BOROUGH OF ENFIELD,Borough Services,1002\1900062068,13-Nov-19,"1,425,911.78",
LONDON BUS SERVICES LTD,METROBUS LIMITED,Bus Contract Payments,1006\1900043453,06-Dec-19,"1,378,480.98",
RAIL FOR LONDON LIMITED,BOMBARDIER TRANSPORT UK,Vehicle Operating Leases,1020\5109635571,13-Nov-19,"1,326,244.59",
LONDON UNDERGROUND LTD,MORGAN SINDALL  PLC,MR Construction Costs,1005\5109649504,02-Dec-19,"1,266,812.65",
RAIL FOR LONDON LIMITED,TRAM OPERATIONS LIMITED,Franchise/Concession Fixed Fee,1020\5109640180,20-Nov-19,"1,262,535.40",
LONDON UNDERGROUND LTD,CAPITA BUSINESS SERVICES LTD,Maintenance of Telecommunications Equipment,1005\5109641276,27-Nov-19,"1,235,066.57",
SURFACE TRANSPORT CORP,ROAD MANAGEMENT SERVICES PLC,A13 PFI Service Costs,1002\5109644646,13-Nov-19,"1,227,500.00",
RAIL FOR LONDON LIMITED,VINCI CONSTRUCTION UK LTD,Civil Engineering Construction Works,1020\5109647386,13-Nov-19,"1,226,511.69",
SURFACE TRANSPORT CORP,RINGWAY JACOBS LIMITED,Maintenance of Plant & Equipment,1002\5109661329,02-Dec-19,"1,210,604.67",
SURFACE TRANSPORT CORP,MORGAN SINDALL  PLC,Contracted Services - Highway Bridges,1002\5109635467,13-Nov-19,"1,199,864.50",
LONDON UNDERGROUND LTD,CAPITA BUSINESS SERVICES LTD,Maintenance of Telecommunications Equipment,1005\5109641391,25-Nov-19,"1,194,284.01",
LONDON UNDERGROUND LTD,TELENT TECHNOLOGY SERVICES LTD,Equipment Repairs & Maintenance,1005\5109651949,02-Dec-19,"1,104,818.57",
LONDON UNDERGROUND LTD,TELENT TECHNOLOGY SERVICES LTD,Equipment Repairs & Maintenance,1005\5109641773,11-Nov-19,"1,102,961.33",
TFL CORPORATE,ENTERPRISE AMS GROUP LTD,Software Maintenance,1001\5109631669,11-Nov-19,"1,102,554.00",
LONDON BUS SERVICES LTD,ABELLIO LONDON LTD,Bus Contract Payments,1006\1900043443,06-Dec-19,"1,086,718.16",
LONDON BUS SERVICES LTD,HR RICHMOND LTD T/A EPSOM BUSES,Bus Contract Payments,1006\1900043389,22-Nov-19,"1,067,864.46",
LONDON UNDERGROUND LTD,LANES GROUP PLC,Building Maintenance & Repairs,1005\5109640334,13-Nov-19,"982,508.86",
LONDON UNDERGROUND LTD,ALSTOM NL SERVICE PROVISION LTD,TLL Lease Costs,1005\5109637470,20-Nov-19,"972,677.77",
LONDON BUS SERVICES LTD,BLUE TRIANGLE BUSES LTD,Bus Contract Payments,1006\1900043446,06-Dec-19,"938,356.52",
LONDON BUS SERVICES LTD,DOCKLANDS MINIBUS LITD ,Bus Contract Payments,1006\1900043379,22-Nov-19,"929,742.72",
TFL CORPORATE,CAPITA BUSINESS SERVICES LTD,Maintenance of Telecommunications Equipment,1001\5109641180,27-Nov-19,"928,543.63",
LONDON BUS SERVICES LTD,ABELLIO LONDON LTD,Bus Contract Payments,1006\1900043356,22-Nov-19,"923,878.96",
LONDON UNDERGROUND LTD,THALES RAIL SIGNALLING SOLUTIONS,Civil Engineering Construction Works,1005\5109656641,02-Dec-19,"907,732.82",
SURFACE TRANSPORT CORP,LONDON BOROUGH OF LEWISHAM,Borough Services - Claim Against Pr Yr Accrual,1002\1900062241,02-Dec-19,"876,161.53",
LONDON BUS SERVICES LTD,LONDON SOVEREIGN LTD ,Bus Contract Payments,1006\1900043452,06-Dec-19,"841,672.99",
LONDON UNDERGROUND LTD,THALES TRANSPORT & SECURITY LIMITED,Radio Systems Equipment & Maintenance,1005\5109633403,13-Nov-19,"814,893.00",
CYCLE HIRE SCHEME,SERCO LTD,Concession Maintenance Charge,1016\5109641415,20-Nov-19,"811,598.94",
LONDON UNDERGROUND LTD,RMCON,Software Maintenance,1005\5109631405,14-Nov-19,"806,666.67",
LONDON UNDERGROUND LTD,MORSON HUMAN RESOURCES LTD,Track General Maintenance,1005\5109656044,25-Nov-19,"804,939.14",
LONDON BUS SERVICES LTD,EAST LONDON BUS & COACH COMPANY LTD,Bus Contract Payments,1006\1900043362,22-Nov-19,"762,261.69",
TFL CORPORATE,COMPUTACENTER PLC,Software Maintenance,1001\5109621594,11-Nov-19,"738,149.82",
SURFACE TRANSPORT CORP,LONDON COUNCILS LTD,Taxicard Funding,1002\1900062642,27-Nov-19,"732,593.79",
RAIL FOR LONDON LIMITED,CLESHAR CONTRACT SERVICES LTD,Management & Support Consultancy,1020\5109654069,27-Nov-19,"729,522.67",
LONDON UNDERGROUND LTD,THALES GROUND TRANSPORTATION SYSTEM,Civil Engineering Construction Works,1005\5109636509,11-Nov-19,"721,881.74",
LONDON BUS SERVICES LTD,METROLINE WEST LTD,Bus Contract Payments,1006\1900043370,22-Nov-19,"714,888.17",
SURFACE TRANSPORT CORP,EDF ENERGY,Electricity,1002\5109646620,18-Nov-19,"707,833.81",
LONDON UNDERGROUND LTD,INTERSERVE,Security Services (Guards),1005\5109655709,25-Nov-19,"702,310.54",
DOCKLANDS LIGHT RAILWAY,EDF ENERGY,Electricity,1012\5109646521,20-Nov-19,"689,589.43",
SURFACE TRANSPORT CORP,AA DRIVETECH,Contracted Services - Roads,1002\5109632736,11-Nov-19,"675,702.30",
LONDON BUS SERVICES LTD,TRAPEZE PTI LTD,Maintenance of Plant & Equipment,1006\5109645016,29-Nov-19,"675,453.29",
LONDON BUS SERVICES LTD,LONDON UNITED BUSWAYS,Bus Contract Payments,1006\1900043367,22-Nov-19,"666,140.45",
DOCKLANDS LIGHT RAILWAY,UK POWER NETWORKS LTD,Electricity,1012\5109660244,02-Dec-19,"650,000.00",
SURFACE TRANSPORT CORP,CAPITA BUSINESS SERVICES LTD,Contracted Services - Roads,1002\5109631128,11-Nov-19,"625,464.35",
LONDON BUS SERVICES LTD,CT PLUS LIMITED,Bus Contract Payments,1006\1900043449,06-Dec-19,"598,639.31",
LONDON UNDERGROUND LTD,SKANSKA CONTRUCTIONS UK LTD,Building Maintenance & Repairs,1005\5109650533,18-Nov-19,"598,468.23",
TRANSPORT TRADING LTD,LONDON BOROUGH OF SOUTHWARK,Rates,1004\1901669617,28-Nov-19,"592,644.00",
SURFACE TRANSPORT CORP,CAPITA BUSINESS SERVICES LTD,Management & Support Consultancy,1002\5109645773,02-Dec-19,"589,264.94",
LONDON UNDERGROUND LTD,ENGIE SERVICES LTD,Equipment Repairs & Maintenance,1005\5109639804,20-Nov-19,"587,368.01",
TRANSPORT TRADING LTD,COLLINS RIVER ENTERPRISES LTD,Gross Sales Clearance,1004\800040162,18-Nov-19,"575,757.00",
LONDON BUS SERVICES LTD,SULLIVAN BUS & COACH LTD,Bus Contract Payments,1006\1900043391,22-Nov-19,"541,833.05",
LUL NOMINEE SSL LIMITED,NETWORK RAIL,Civil Engineering Construction Works,1031\5109600506,18-Nov-19,"533,257.42",
SURFACE TRANSPORT CORP,CAPITA BUSINESS SERVICES LTD,CCS Service Contract,1002\5109637152,20-Nov-19,"531,413.77",
LUL NOMINEE SSL LIMITED,CLESHAR CONTRACT SERVICES LTD,Civil Engineering Construction Works,1031\5109649699,13-Nov-19,"528,879.62",
LONDON BUS SERVICES LTD,METROBUS LIMITED,Bus Contract Payments,1006\1900043368,22-Nov-19,"528,607.19",
SURFACE TRANSPORT CORP,SIEMENS,Civil Engineering Construction Works,1002\5109630588,11-Nov-19,"503,176.00",
SURFACE TRANSPORT CORP,CAPITA BUSINESS SERVICES LTD,CCS Service Contract,1002\5109637153,20-Nov-19,"502,413.26",
LONDON UNDERGROUND LTD,CLESHAR CONTRACT SERVICES LTD,Track General Maintenance,1005\5109654072,20-Nov-19,"496,277.64",
TRANSPORT TRADING LTD,INTERSERVE,Security Services (Guards),1004\5109642164,18-Nov-19,"485,809.76",
TFL CORPORATE,TRANS EUROPEAN TECHNOLOGY,Computer Hardware,1001\5109663501,05-Dec-19,"482,234.70",
LONDON UNDERGROUND LTD,HOCHTIEF UK CONSTRUCTION LTD,MR Construction Costs,1005\5109658917,04-Dec-19,"480,173.17",
SURFACE TRANSPORT CORP,PINSENTS MASONS,Planning & Development Consultancy,1002\5109647729,13-Nov-19,"477,317.89",
SURFACE TRANSPORT CORP,LONDON BOROUGH OF RICHMOND UPON THAMES,Borough Services,1002\1900062103,25-Nov-19,"467,208.00",
LONDON RIVER SERVICES LTD,BRIGGS MARINE CONTRACTORS LIMITED,Operator Costs,1007\5109646490,04-Dec-19,"466,462.00",
LONDON UNDERGROUND LTD,ASHURST LLP,Legal Fees,1005\5109653812,27-Nov-19,"465,754.34",
TFL CORPORATE,MCKINSEY & COMPANY INC UK,Management & Support Consultancy,1001\5109631053,11-Nov-19,"465,000.00",
RAIL FOR LONDON LIMITED,MOTT MACDONALD LIMITED,Professional Engineering Services,1020\5109641421,27-Nov-19,"463,602.52",
LONDON UNDERGROUND LTD,LYNCH I.E.I. LIMITED,MR Construction Costs,1005\5109651908,27-Nov-19,"462,795.42",
SURFACE TRANSPORT CORP,RINGWAY JACOBS LIMITED,Contracted Services - Highway Bridges,1002\5109659345,02-Dec-19,"442,753.99",
LONDON UNDERGROUND LTD,ENGIE SERVICES LTD,Equipment Repairs & Maintenance,1005\5109639845,20-Nov-19,"436,420.63",
SURFACE TRANSPORT CORP,LONDON BOROUGH OF BARKING & DAGENHAM,Borough Services,1002\1900061955,18-Nov-19,"433,500.00",
RAIL FOR LONDON LIMITED,MOTT MACDONALD LIMITED,Professional Engineering Services,1020\5109660161,02-Dec-19,"428,377.30",
RAIL FOR LONDON LIMITED,MTR CORPORATION (CROSSRAIL) LTD,Management & Support Consultancy,1020\5109655883,25-Nov-19,"418,231.05",
LONDON UNDERGROUND LTD,HMRC,Payroll Suspense,1005\1900211820,22-Nov-19,"398,170.00",
RAIL FOR LONDON LIMITED,MORGAN SINDALL  PLC,Management & Support Consultancy,1020\5109658513,04-Dec-19,"394,074.23",
LONDON UNDERGROUND LTD,BALFOUR BEATTY RAIL LTD,Civil Engineering Construction Works,1005\5109655882,04-Dec-19,"393,677.87",
SURFACE TRANSPORT CORP,BRITISH TRANSPORT POLICE,MPS Employment Costs SM,1002\5109631807,11-Nov-19,"393,024.03",
DOCKLANDS LIGHT RAILWAY,GIFFEN GROUP LTD,Civil Engineering Construction Works,1012\5109649510,13-Nov-19,"382,962.00",
PUBLIC CARRIAGE OFFICE,NSL LIMITED,PCO Outsourced Services,1003\5109649104,27-Nov-19,"382,852.11",
LONDON UNDERGROUND LTD,SCHWEERBAU GMBH & CO.KG *PAID BACS*,Track General Maintenance,1005\5109635733,18-Nov-19,"376,150.00",
LUL NOMINEE BCV LIMITED,SIEMENS,Signalling Systems,1033\5109655970,04-Dec-19,"375,474.93",
LONDON BUS SERVICES LTD,DOCKLANDS MINIBUS LITD ,Bus Contract Payments,1006\1900043361,22-Nov-19,"374,216.01",
LONDON BUS SERVICES LTD,STAGECOACH,Bus Contract Payments,1006\1900043372,22-Nov-19,"373,318.66",
TFL CORPORATE,COMPUTACENTER PLC,Software Maintenance,1001\5109646207,02-Dec-19,"369,016.38",
SURFACE TRANSPORT CORP,RINGWAY JACOBS LIMITED,Road Maintenance,1002\5109658939,02-Dec-19,"367,709.64",
TRANSPORT TRADING LTD,GBM SERVICES LTD,Office Cleaning,1004\5109660775,04-Dec-19,"364,107.45",
TRANSPORT TRADING LTD,COLLINS RIVER ENTERPRISES LTD,Gross Sales Clearance,1004\800040161,18-Nov-19,"363,465.00",
LONDON UNDERGROUND LTD,INTERSERVE,Track General Maintenance,1005\5109634837,13-Nov-19,"362,388.88",
DOCKLANDS LIGHT RAILWAY,MACE MACRO LTD,Professional Engineering Services,1012\5109630264,11-Nov-19,"357,592.28",
SURFACE TRANSPORT CORP,CAPITA BUSINESS SERVICES LTD,CCS Service Contract,1002\5109637150,20-Nov-19,"352,911.74",
TRANSPORT TRADING LTD,GLOBAL OUTDOOR MEDIA LIMITED,Purchase of Associates Loan Notes (Activity),1004\5109652388,25-Nov-19,"352,204.17",
LONDON BUS SERVICES LTD,TOWER TRANSIT OPERATIONS LTD,Bus Contract Payments,1006\1900043373,22-Nov-19,"347,039.37",
LONDON UNDERGROUND LTD,TURNER & TOWNSEND LLP,Management & Support Consultancy,1005\5109642944,27-Nov-19,"344,154.00",
LONDON UNDERGROUND LTD,INTERSERVE,Track General Maintenance,1005\5109634775,13-Nov-19,"342,831.73",
LONDON UNDERGROUND LTD,SERVICES SUPPORT (BTP) LTD,BTP PFI Service Costs,1005\5109649627,20-Nov-19,"341,215.65",
TFL CORPORATE,GREATER LONDON AUTHORITY ,Management & Support Consultancy,1001\5109628547,18-Nov-19,"338,705.00",
LUL NOMINEE SSL LIMITED,NETWORK RAIL,Signalling Systems,1031\5109636727,18-Nov-19,"338,322.79",
LONDON BUS SERVICES LTD,HR RICHMOND LTD T/A EPSOM BUSES,Bus Contract Payments,1006\1900043456,06-Dec-19,"330,006.59",
TRANSPORT TRADING LTD,LONDON BOROUGH OF NEWHAM ,Rates,1004\1901669588,28-Nov-19,"327,500.00",
LONDON UNDERGROUND LTD,ENGIE SERVICES LTD,Fire and Safety Equipment,1005\5109639876,20-Nov-19,"322,161.60",
SURFACE TRANSPORT CORP,CAPITA BUSINESS SERVICES LTD,CCS Service Contract,1002\5109637968,20-Nov-19,"318,416.48",
LONDON UNDERGROUND LTD,SCHINDLER LTD,Lift Maintenance,1005\5109658535,27-Nov-19,"303,157.52",
LONDON BUS SERVICES LTD,DOCKLANDS MINIBUS LITD ,Bus Contract Payments,1006\1900043447,06-Dec-19,"302,899.34",
LONDON UNDERGROUND LTD,ASHURST LLP,Legal Fees,1005\5109652535,20-Nov-19,"302,810.30",
TFL CORPORATE,MCKINSEY & COMPANY INC UK,Management & Support Consultancy,1001\5109631051,11-Nov-19,"300,000.00",
LONDON UNDERGROUND LTD,EDF ENERGY,Electricity,1005\1900211907,27-Nov-19,"299,462.36",
SURFACE TRANSPORT CORP,CVU JOINT VENTURE,Contracted Services - Roads,1002\5109659378,02-Dec-19,"285,600.97",
LUL NOMINEE SSL LIMITED,KN NETWORK SERVICES LTD,MR Construction Costs,1031\5109647333,18-Nov-19,"284,710.49",
RAIL FOR LONDON LIMITED,NETWORK RAIL,Civil Engineering Construction Works,1020\5109638034,02-Dec-19,"284,681.15",
TRANSPORT TRADING LTD,GLOBAL OUTDOOR MEDIA LIMITED,Purchase of Associates Loan Notes (Activity),1004\5109652336,25-Nov-19,"282,387.57",
SURFACE TRANSPORT CORP,EDF ENERGY,Electricity,1002\5109646629,18-Nov-19,"279,676.60",
SURFACE TRANSPORT CORP,CORPORATION OF LONDON,Borough Services,1002\1900061952,18-Nov-19,"277,747.23",
SURFACE TRANSPORT CORP,LONDON BOROUGH OF HARROW,Borough Services,1002\1900061785,11-Nov-19,"277,718.00",
LONDON UNDERGROUND LTD,EDF ENERGY,Electricity,1005\1900211906,27-Nov-19,"277,013.57",
TFL CORPORATE,NETWORK RAIL,Planning & Development Consultancy,1001\5109651723,02-Dec-19,"270,530.79",
SURFACE TRANSPORT CORP,SIEMENS,Cameras,1002\5109659392,02-Dec-19,"269,655.61",
LONDON UNDERGROUND LTD,DELOITTE,Management & Support Consultancy,1005\5109649589,04-Dec-19,"268,875.00",
LONDON UNDERGROUND LTD,CAPITA BUSINESS SERVICES LTD,Maintenance of Telecommunications Equipment,1005\5109641399,25-Nov-19,"268,216.68",
LONDON UNDERGROUND LTD,MORSON HUMAN RESOURCES LTD,Track General Maintenance,1005\5109656047,25-Nov-19,"264,982.46",
LONDON UNDERGROUND LTD,ASHURST LLP,Legal Fees,1005\5109652536,20-Nov-19,"264,382.60",
LONDON UNDERGROUND LTD,APPROVED INSPECTOR SERVICES LTD,MR Construction Costs,1005\5109654091,20-Nov-19,"263,373.00",
LONDON UNDERGROUND LTD,ENGIE SERVICES LTD,Equipment Repairs & Maintenance,1005\5109639847,20-Nov-19,"261,865.68",
LONDON UNDERGROUND LTD,EDF ENERGY,Electricity,1005\1900211810,20-Nov-19,"260,109.55",
LUL NOMINEE BCV LIMITED,SIEMENS,Signalling Systems,1033\5109647956,04-Dec-19,"258,868.17",
TFL CORPORATE,DAISY COMMUNICATIONS LTD,Computer Hardware,1001\5109628609,13-Nov-19,"256,910.05",
TFL CORPORATE,DAISY COMMUNICATIONS LTD,Computer Hardware,1001\5109628616,13-Nov-19,"255,873.90",
PUBLIC CARRIAGE OFFICE,NSL LIMITED,PCO Outsourced Services,1003\5109651096,25-Nov-19,"254,922.91",
TRANSPORT TRADING LTD,JOURNEYCALL LTD,Ticket & Pass Production,1004\5109630956,18-Nov-19,"253,357.65",
TRANSPORT TRADING LTD,ROTHSCHILD LONDON,Management & Support Consultancy,1004\5109627478,11-Nov-19,"250,710.43",
TFL CORPORATE,TNS UK LTD,Planning & Development Consultancy,1001\5109640267,20-Nov-19,"249,924.00",
SURFACE TRANSPORT CORP,LONDON BOROUGH OF LAMBETH,Borough Services - Claim Against Pr Yr Accrual,1002\1900062024,25-Nov-19,"248,000.00",
TRANSPORT TRADING LTD,JOURNEYCALL LTD,Ticket & Pass Production,1004\5109649754,04-Dec-19,"247,262.58",
SURFACE TRANSPORT CORP,RINGWAY JACOBS LIMITED,Maintenance of Plant & Equipment,1002\5109659291,02-Dec-19,"245,790.43",
LONDON UNDERGROUND LTD,CAPITA BUSINESS SERVICES LTD,Maintenance of Telecommunications Equipment,1005\5109641388,27-Nov-19,"244,725.00",
TRANSPORT TRADING LTD,SODEXO LTD,Caterers Service Charges,1004\5109645837,02-Dec-19,"243,520.96",
TRANSPORT TRADING LTD,STS STORAGE SYSTEMS LTD,Building Maintenance & Repairs,1004\5109652013,18-Nov-19,"243,380.00",
DOCKLANDS LIGHT RAILWAY,AECOM LTD,Professional Engineering Services,1012\5109645902,20-Nov-19,"240,475.49",
TRANSPORT TRADING LTD,VINCI CONSTRUCTION UK LTD,Building Maintenance & Repairs,1004\5109658347,04-Dec-19,"240,381.04",
LONDON BUS SERVICES LTD,METROLINE TRAVEL LTD,Vehicle Repairs & Maintenance,1006\5109631297,11-Nov-19,"238,535.20",
TRANSPORT TRADING LTD,EDF ENERGY,Electricity,1004\1901669241,20-Nov-19,"237,677.46",
LONDON UNDERGROUND LTD,ONE TRANSPORT LIMITED,Travel to/from work (Unsocial Hours),1005\5109651323,18-Nov-19,"237,541.55",
LUL NOMINEE SSL LIMITED,MORSON HUMAN RESOURCES LTD,Track General Maintenance,1031\5109655985,27-Nov-19,"235,429.76",
SURFACE TRANSPORT CORP,CAPITA BUSINESS SERVICES LTD,CCS Service Contract,1002\5109637169,20-Nov-19,"234,414.15",
TRANSPORT TRADING LTD,LONDON BOROUGH OF GREENWICH,Rates,1004\1901669666,28-Nov-19,"232,656.00",
SURFACE TRANSPORT CORP,CAPITA BUSINESS SERVICES LTD,Management & Support Consultancy,1002\5109645766,02-Dec-19,"231,058.45",
LONDON UNDERGROUND LTD,THALES GROUND TRANSPORTATION SYSTEM,Civil Engineering Construction Works,1005\5109656760,06-Dec-19,"230,810.40",
LUL NOMINEE SSL LIMITED,BOMBARDIER TRANSPORT UK,Fleet Tsssa Contract,1031\5109651101,04-Dec-19,"230,321.25",
LONDON RIVER SERVICES LTD,RINGWAY JACOBS LIMITED,Maintenance of Plant & Equipment,1007\5109661316,02-Dec-19,"230,202.25",
RAIL FOR LONDON LIMITED,ESG RAIL,Management & Support Consultancy,1020\5109655465,28-Nov-19,"230,025.00",
LONDON UNDERGROUND LTD,ASHURST LLP,Legal Fees,1005\5109653817,27-Nov-19,"228,632.90",
TFL CORPORATE,DELOITTE,Management & Support Consultancy,1001\5109631973,11-Nov-19,"226,925.00",
LONDON UNDERGROUND LTD,EDF ENERGY,Electricity,1005\1900211981,04-Dec-19,"223,908.12",
LONDON UNDERGROUND LTD,EDF ENERGY,Electricity,1005\1900211904,27-Nov-19,"223,479.91",
SURFACE TRANSPORT CORP,ROAD MANAGEMENT SERVICES PLC,A13 PFI Service Costs,1002\5109644643,13-Nov-19,"223,265.54",
LONDON UNDERGROUND LTD,KONE PLC,Escalators,1005\5109646390,18-Nov-19,"223,016.74",
TRANSPORT TRADING LTD,NOVACROFT DIRECT LTD,Ticket & Pass Production,1004\5109650255,19-Nov-19,"220,958.75",
TRANSPORT TRADING LTD,JOURNEYCALL LTD,Ticket & Pass Production,1004\5109612872,18-Nov-19,"220,280.28",
TFL CORPORATE,COMPUTACENTER PLC,Computer Hardware,1001\5109640216,25-Nov-19,"218,923.29",
SURFACE TRANSPORT CORP,CAPITA BUSINESS SERVICES LTD,CCS Service Contract,1002\5109637481,20-Nov-19,"217,170.68",
RFL (INFRASTRUCTURE) LTD,SIEMENS,Maintenance of Plant & Equipment,1025\5109636064,18-Nov-19,"215,023.21",
TRANSPORT TRADING LTD,GLOBAL OUTDOOR MEDIA LIMITED,Purchase of Associates Loan Notes (Activity),1004\5109659823,02-Dec-19,"214,546.36",
TFL CORPORATE,LINKEDIN IRELAND LIMITED,Recruitment Advertising,1001\5109660317,29-Nov-19,"212,611.52",
SURFACE TRANSPORT CORP,SIEMENS,Maintenance of Plant & Equipment,1002\5109650701,27-Nov-19,"209,964.53",
LONDON UNDERGROUND LTD,SCHINDLER LTD,Lift Maintenance,1005\5109658520,27-Nov-19,"207,699.43",
SURFACE TRANSPORT CORP,CAPITA BUSINESS SERVICES LTD,CCS Service Contract,1002\5109637494,20-Nov-19,"207,517.37",
SURFACE TRANSPORT CORP,TELENT TECHNOLOGY SERVICES LTD,Maintenance of Plant & Equipment,1002\5109645518,20-Nov-19,"206,291.64",
TRANSPORT TRADING LTD,CBRE LIMITED,Planning & Development Consultancy,1004\5109655235,25-Nov-19,"205,125.00",
LUL NOMINEE SSL LIMITED,MORGAN SINDALL  PLC,Civil Engineering Construction Works,1031\5109655855,04-Dec-19,"204,542.35",
SURFACE TRANSPORT CORP,SIEMENS,Maintenance of Plant & Equipment,1002\5109659391,02-Dec-19,"203,075.21",
SURFACE TRANSPORT CORP,SIEMENS,Cameras,1002\5109659399,02-Dec-19,"201,923.14",
RAIL FOR LONDON LIMITED,ORION RAIL CONSTRUCTION SERVICES,Management & Support Consultancy,1020\5109631775,11-Nov-19,"198,125.56",
SURFACE TRANSPORT CORP,CAPITA BUSINESS SERVICES LTD,Management & Support Consultancy,1002\5109645775,02-Dec-19,"196,986.29",
LONDON UNDERGROUND LTD,KONE PLC,Escalators,1005\5109646387,18-Nov-19,"196,156.25",
RFL (INFRASTRUCTURE) LTD,INSIGHT DIRECT UK LIMITED,Software Maintenance,1025\5109636578,18-Nov-19,"192,168.00",
SURFACE TRANSPORT CORP,BRITISH TELECOMMUNICATIONS PLC,Contracted Services - Roads,1002\5109637395,13-Nov-19,"189,422.40",
TFL CORPORATE,OVE ARUP & PARTNERS LTD,Planning & Development Consultancy,1001\5109647850,13-Nov-19,"186,047.17",
LUL NOMINEE SSL LIMITED,KN NETWORK SERVICES LTD,MR Construction Costs,1031\5109651068,04-Dec-19,"185,744.10",
SURFACE TRANSPORT CORP,MOTT MACDONALD LIMITED,Contracted Services - Highway Bridges,1002\5109640425,11-Nov-19,"185,590.73",
SURFACE TRANSPORT CORP,CAPITA BUSINESS SERVICES LTD,Contracted Services - Roads,1002\5109631087,11-Nov-19,"185,556.63",
LONDON UNDERGROUND LTD,HAYLEY GROUP PLC,Protective Clothing,1005\5109655250,25-Nov-19,"185,035.75",
RAIL FOR LONDON LIMITED,NETWORK RAIL,Professional Engineering Services,1020\5109655006,04-Dec-19,"182,773.81",
LONDON BUS SERVICES LTD,BLUE TRIANGLE BUSES LTD,Bus Contract Payments,1006\1900043360,22-Nov-19,"180,074.23",
SURFACE TRANSPORT CORP,LONDON BOROUGH OF HAVERING,Borough Services - Claim Against Pr Yr Accrual,1002\1900061810,18-Nov-19,"178,849.89",
SURFACE TRANSPORT CORP,CAPITA BUSINESS SERVICES LTD,Contracted Services - Roads,1002\5109632214,11-Nov-19,"178,148.66",
LONDON BUS SERVICES LTD,GBM SERVICES LTD,Office Cleaning,1006\5109660764,04-Dec-19,"177,909.50",
LONDON UNDERGROUND LTD,MILWAUKEE COMPOSITES INC.,Maintenance Materials,1005\5109646600,29-Nov-19,"176,725.85",
TFL CORPORATE,MEDIAEDGE,Radio TV Press Poster Cinema Airtime And Space,1001\5109641340,13-Nov-19,"176,587.47",
SURFACE TRANSPORT CORP,CSTS LTD,Maintenance of Plant & Equipment,1002\5109654129,02-Dec-19,"175,392.33",
LONDON BUS SERVICES LTD,CT PLUS LIMITED,Bus Contract Payments,1006\1900043363,22-Nov-19,"175,270.22",
SURFACE TRANSPORT CORP,INTEROUTE NETWORK LTD ,Telephony Fixed,1002\5109645926,11-Nov-19,"173,388.26",
SURFACE TRANSPORT CORP,ROAD MANAGEMENT SERVICES PLC,A13 PFI Service Costs,1002\5109644634,13-Nov-19,"172,500.00",
TFL CORPORATE,TURNER & TOWNSEND LLP,Management & Support Consultancy,1001\5109656654,02-Dec-19,"171,188.37",
LONDON BUS SERVICES LTD,ARRIVA LONDON NORTH LTD,Vehicle Repairs & Maintenance,1006\5109644324,25-Nov-19,"171,000.00",
TRANSPORT TRADING LTD,BEMROSEBOOTH LIMITED,Ticket & Pass Production,1004\5109635621,18-Nov-19,"169,500.00",
DOCKLANDS LIGHT RAILWAY,THALES RAIL SIGNALLING SOLUTIONS,Professional Engineering Services,1012\5109636736,18-Nov-19,"168,172.17",
TRANSPORT TRADING LTD,GLOBAL OUTDOOR MEDIA LIMITED,Purchase of Associates Loan Notes (Activity),1004\5109659826,02-Dec-19,"168,087.36",
TFL CORPORATE,MEDIAEDGE,Radio TV Press Poster Cinema Airtime And Space,1001\5109652376,02-Dec-19,"167,500.03",
LONDON BUS SERVICES LTD,SULLIVAN BUS & COACH LTD,Bus Contract Payments,1006\1900043458,06-Dec-19,"163,303.08",
LUL NOMINEE SSL LIMITED,DUCTCLEAN (UK) LTD T/A DCUK FM,Track General Maintenance,1031\5109646631,12-Nov-19,"163,013.28",
LONDON UNDERGROUND LTD,BRYEN & LANGLEY LTD,Building Maintenance & Repairs,1005\5109641862,18-Nov-19,"162,927.09",
TRANSPORT TRADING LTD,GLOBAL OUTDOOR MEDIA LIMITED,Purchase of Associates Loan Notes (Activity),1004\5109652311,25-Nov-19,"162,749.68",
LONDON UNDERGROUND LTD,MULALLEY & CO LTD,Planning & Development Consultancy,1005\5109647250,02-Dec-19,"161,278.26",
TRANSPORT TRADING LTD,BEMROSEBOOTH LIMITED,Ticket & Pass Production,1004\5109639643,25-Nov-19,"160,500.00",
LONDON UNDERGROUND LTD,KONE PLC,Escalators,1005\5109646392,18-Nov-19,"156,010.51",
TRANSPORT TRADING LTD,GLOBAL OUTDOOR MEDIA LIMITED,Purchase of Associates Loan Notes (Activity),1004\5109652293,25-Nov-19,"155,268.21",
LUL NOMINEE SSL LIMITED,VAE GMBH,Stock of Signals and Electricals,1031\5109639415,15-Nov-19,"154,372.00",
TFL CORPORATE,CAPITA BUSINESS SERVICES LTD,Maintenance of Telecommunications Equipment,1001\5109641404,25-Nov-19,"153,080.66",
RAIL FOR LONDON LIMITED,EDF ENERGY,Traction Current,1020\5109646569,20-Nov-19,"152,962.36",
TFL CORPORATE,MOTT MACDONALD LIMITED,Planning & Development Consultancy,1001\5109656782,04-Dec-19,"152,631.03",
LONDON UNDERGROUND LTD,SCHINDLER LTD,Lift Maintenance,1005\5109658530,27-Nov-19,"151,855.40",
TFL CORPORATE,VCCP GROUP LLP,Agency Fees Paid To Marketing Agencies,1001\5109632800,13-Nov-19,"149,076.00",
LONDON UNDERGROUND LTD,MORGAN SINDALL  PLC,MR Construction Costs,1005\5109649769,25-Nov-19,"148,260.70",
SURFACE TRANSPORT CORP,INTEROUTE NETWORK LTD ,Telephony Fixed,1002\5109659819,02-Dec-19,"147,643.75",
VICTORIA COACH STATN LTD,NATIONAL EXPRESS LTD,VCS Repayments & Commission,1008\1900004432,18-Nov-19,"147,554.38",
SURFACE TRANSPORT CORP,RINGWAY JACOBS LIMITED,Contracted Services - Roads,1002\5109659329,02-Dec-19,"146,841.42",
SURFACE TRANSPORT CORP,CAPITA SYMONDS LTD,Software Maintenance,1002\5109640560,27-Nov-19,"146,153.51",
SURFACE TRANSPORT CORP,SOPRA STERIA LTD,Computer Software,1002\5109633449,13-Nov-19,"145,258.00",
RAIL FOR LONDON LIMITED,NETWORK RAIL,National Rail Contribution,1020\5109647871,04-Dec-19,"143,536.38",
RAIL FOR LONDON LIMITED,NETWORK RAIL,National Rail Contribution,1020\5109647874,04-Dec-19,"143,536.38",
LUL NOMINEE SSL LIMITED,VVB ENGINEERING (UK) LIMITED,Civil Engineering Construction Works,1031\5109646226,02-Dec-19,"142,528.17",
LONDON UNDERGROUND LTD,CPC PROJECT SERVICES LLP,Professional Engineering Services,1005\5109655311,26-Nov-19,"141,894.50",
SURFACE TRANSPORT CORP,CSTS LTD,Contracted Services - Tunnels,1002\5109638173,20-Nov-19,"139,547.76",
RAIL FOR LONDON LIMITED,HEATHROW AIRPORT LTD ,Franchise/Concession Fixed Fee,1020\5109645658,13-Nov-19,"139,004.00",
LONDON UNDERGROUND LTD,NETWORK RAIL,National Rail Variable Track Access Charges,1005\5109646994,02-Dec-19,"138,727.92",
LONDON UNDERGROUND LTD,DENTONS UKMEA LLP,Legal Fees,1005\5109658350,27-Nov-19,"138,340.50",
LONDON UNDERGROUND LTD,MULALLEY & CO LTD,Planning & Development Consultancy,1005\5109647263,02-Dec-19,"134,857.60",
TRANSPORT TRADING LTD,MVA CONSULTANCY GROUP,Customer Research And Counts,1004\5109637243,13-Nov-19,"134,499.75",
SURFACE TRANSPORT CORP,TELENT TECHNOLOGY SERVICES LTD,Road Maintenance,1002\5109641222,13-Nov-19,"134,328.57",
TRANSPORT TRADING LTD,LONDON BOROUGH OF LEWISHAM,Rates,1004\1901669659,28-Nov-19,"133,620.00",
LUL NOMINEE SSL LIMITED,OVE ARUP & PARTNERS LTD,Civil Engineering Construction Works,1031\5109661357,04-Dec-19,"132,267.87",
SURFACE TRANSPORT CORP,TELENT TECHNOLOGY SERVICES LTD,Maintenance of Plant & Equipment,1002\5109639788,11-Nov-19,"131,512.60",
SURFACE TRANSPORT CORP,REDSPEED INTERNATIONAL  LTD,Maintenance of Plant & Equipment,1002\5109655911,02-Dec-19,"130,960.12",
TRANSPORT TRADING LTD,CITY OF WESTMINSTER,Rates,1004\1901669650,28-Nov-19,"129,779.00",
TFL CORPORATE,MOTT MACDONALD LIMITED,Planning & Development Consultancy,1001\5109651636,18-Nov-19,"127,801.48",
RAIL FOR LONDON LIMITED,XANTA LIMITED,Professional Engineering Services,1020\5109652523,21-Nov-19,"125,993.09",
RAIL FOR LONDON LIMITED,NETWORK RAIL,Building Maintenance & Repairs,1020\5109636587,04-Dec-19,"125,960.68",
LUL NOMINEE SSL LIMITED,TRACKWORK RESOURCES LTD,Track General Maintenance,1031\5109647907,13-Nov-19,"125,850.88",
TRANSPORT TRADING LTD,GLOBAL OUTDOOR MEDIA LIMITED,Purchase of Associates Loan Notes (Activity),1004\5109652295,25-Nov-19,"125,514.58",
SURFACE TRANSPORT CORP,LONDON BOROUGH OF SOUTHWARK,Section 159 Payments,1002\1900062641,27-Nov-19,"125,000.00",
LONDON UNDERGROUND LTD,LANES GROUP PLC,Civil Engineering Construction Works,1005\5109633445,13-Nov-19,"123,621.98",
SURFACE TRANSPORT CORP,LONDON COUNCILS LTD,PCN and Penalty Fare Processing,1002\5109647088,19-Nov-19,"123,180.76",
RAIL FOR LONDON LIMITED,BOMBARDIER TRANSPORT UK,Vehicle Operating Leases,1020\5109635568,13-Nov-19,"122,512.54",
LONDON UNDERGROUND LTD,NETWORK RAIL,Traction Current,1005\5109646989,02-Dec-19,"122,462.73",
LUL NOMINEE BCV LIMITED,BARWIT CONTROL SYSTEMS LTD,Escalators,1033\5109663641,04-Dec-19,"120,315.00",
LONDON UNDERGROUND LTD,HMRC,Payroll Suspense,1005\1900211822,22-Nov-19,"119,036.00",
LONDON UNDERGROUND LTD,THALES GROUND TRANSPORTATION SYSTEM,Civil Engineering Construction Works,1005\5109656763,06-Dec-19,"119,026.22",
LONDON UNDERGROUND LTD,TAYLOR WOODROW CONS BAM NUTTAL LTD,MR Construction Costs,1005\5109651246,04-Dec-19,"118,522.59",
LONDON UNDERGROUND LTD,MERSEN UK TEESSIDE LIMITED,Maintenance Materials,1005\5109639771,25-Nov-19,"115,050.85",
LONDON UNDERGROUND LTD,KNORR-BREMSE RAIL LTD ,Signalling Systems,1005\5109649358,13-Nov-19,"114,621.64",
LONDON UNDERGROUND LTD,THE 4OC LIMITED,Professional Engineering Services,1005\5109647295,13-Nov-19,"114,425.00",
SURFACE TRANSPORT CORP,SOPRA STERIA LTD,Computer Software,1002\5109617158,13-Nov-19,"114,346.80",
TFL CORPORATE,ATOS IT SERVICES UK LTD,Manage IT Services,1001\5109632395,11-Nov-19,"113,887.60",
RAIL FOR LONDON LIMITED,NETWORK RAIL,Professional Engineering Services,1020\5109655007,04-Dec-19,"113,560.48",
LUL NOMINEE SSL LIMITED,TIFLEX LTD,Maintenance Materials,1031\5109641491,27-Nov-19,"112,682.90",
LONDON UNDERGROUND LTD,ALLFORD HALL MONAGHAN MORRIS LTD,Planning & Development Consultancy,1005\5109656618,27-Nov-19,"111,500.00",
LONDON UNDERGROUND LTD,TAYLOR WOODROW CONS BAM NUTTAL LTD,MR Construction Costs,1005\5109651261,04-Dec-19,"111,044.88",
LONDON UNDERGROUND LTD,NATIVE LAND LTD,Planning & Development Consultancy,1005\5109658922,27-Nov-19,"110,951.78",
LONDON UNDERGROUND LTD,MOTT MACDONALD LIMITED,Planning & Development Consultancy,1005\5109649297,27-Nov-19,"110,140.00",
RAIL FOR LONDON LIMITED,ESG RAIL,Management & Support Consultancy,1020\5109661429,04-Dec-19,"108,247.00",
SURFACE TRANSPORT CORP,ALMACANTAR (MARBLE ARCH) GENERAL,Other Joint Funding Contributions,1002\1900062366,18-Nov-19,"108,000.00",
TRANSPORT TRADING LTD,CITY OF WESTMINSTER,Rates,1004\1901669643,28-Nov-19,"107,944.00",
LONDON UNDERGROUND LTD,BARWIT CONTROL SYSTEMS LTD,Escalators,1005\5109646428,11-Nov-19,"107,735.00",
LONDON UNDERGROUND LTD,SPECIALISED COMPLIANT COATINGS LTD,Professional Engineering Services,1005\5109653831,20-Nov-19,"107,400.00",
LUL NOMINEE SSL LIMITED,TELEFONIKA KABLE SA,Electrical & Electronic Engineering,1031\5109645666,21-Nov-19,"106,132.86",
LONDON UNDERGROUND LTD,CAPITA BUSINESS SERVICES LTD,IT Consultancy,1005\5109641373,25-Nov-19,"105,713.58",
LONDON UNDERGROUND LTD,SCHINDLER LTD,Lift Maintenance,1005\5109658542,27-Nov-19,"105,439.66",
TRANSPORT TRADING LTD,LONDON BOROUGH OF CROYDON,Rates,1004\1901669587,28-Nov-19,"104,800.00",
LONDON UNDERGROUND LTD,ALSTOM NL SERVICE PROVISION LTD,Fleet Tsssa Contract,1005\5109637475,20-Nov-19,"104,252.07",
LONDON UNDERGROUND LTD,TPS LTD,Signalling Systems,1005\5109661494,04-Dec-19,"104,196.00",
TFL CORPORATE,GALLAGHER BASSETT INTERNAT. LTD,Claim Settlements,1001\1900068512,18-Nov-19,"104,023.59",
LONDON UNDERGROUND LTD,TOWER SUPPLIES,Track General Maintenance,1005\5109647747,12-Nov-19,"103,355.21",
LONDON UNDERGROUND LTD,SCHINDLER LTD,Lift Maintenance,1005\5109658534,27-Nov-19,"103,234.52",
LONDON UNDERGROUND LTD,AURORA LIFTS LTD,Lift Maintenance,1005\5109654983,25-Nov-19,"102,857.43",
LONDON UNDERGROUND LTD,OTIS LIMITED,Escalators,1005\5109631145,11-Nov-19,"102,313.56",
LONDON UNDERGROUND LTD,OTIS LIMITED,Escalators,1005\5109646242,02-Dec-19,"102,313.56",
TRANSPORT TRADING LTD,LH-PLC,Building Maintenance & Repairs,1004\5109639492,25-Nov-19,"101,655.75",
LONDON UNDERGROUND LTD,AECOM LTD,Planning & Development Consultancy,1005\5109656093,27-Nov-19,"101,050.00",
SURFACE TRANSPORT CORP,LONDON BOROUGH OF REDBRIDGE,Borough Services - Claim Against Pr Yr Accrual,1002\1900061951,11-Nov-19,"100,000.00",
RAIL FOR LONDON LIMITED,TNS UK LTD,Transport Planning Consultancy & Services,1020\5109632891,11-Nov-19,"99,675.00",
TFL CORPORATE,EQUINIX (UK) LTD,Manage IT Services,1001\5109647657,27-Nov-19,"99,282.76",
LONDON UNDERGROUND LTD,MULALLEY & CO LTD,Planning & Development Consultancy,1005\5109647239,02-Dec-19,"98,958.91",
TFL CORPORATE,MEDIAEDGE,Radio TV Press Poster Cinema Airtime And Space,1001\5109651973,02-Dec-19,"98,688.39",
LONDON BUS SERVICES LTD,MITIE CLEANING & ENVIRONMENTAL,Building Maintenance & Repairs,1006\5109640484,27-Nov-19,"98,494.07",
LONDON UNDERGROUND LTD,NCP SERVICES LTD,Property Development-Planning & Development Consul,1005\5109645026,27-Nov-19,"98,264.76",
LONDON UNDERGROUND LTD,GEOFFREY OSBORNE LIMITED,Civil Engineering Construction Works,1005\5109663409,04-Dec-19,"97,656.35",
TRANSPORT TRADING LTD,HAYS ACCOUNTANCY PERSONNEL,Agency Staff,1004\5109634312,18-Nov-19,"97,599.78",
TFL CORPORATE,TNS UK LTD,Customer Research And Counts,1001\5109637190,18-Nov-19,"97,500.00",
LONDON UNDERGROUND LTD,MORGAN SINDALL  PLC,MR Construction Costs,1005\5109649776,25-Nov-19,"97,442.11",
LONDON UNDERGROUND LTD,TOWER SUPPLIES,Track General Maintenance,1005\5109655852,25-Nov-19,"97,226.21",
TRANSPORT TRADING LTD,HAYS ACCOUNTANCY PERSONNEL,Agency Staff,1004\5109643626,02-Dec-19,"96,810.81",
TFL CORPORATE,JACOBS U.K LIMITED,Planning & Development Consultancy,1001\5109654033,20-Nov-19,"96,634.98",
LONDON UNDERGROUND LTD,SCHINDLER LTD,Lift Maintenance,1005\5109658531,27-Nov-19,"95,933.19",
RAIL FOR LONDON LIMITED,GIFFEN GROUP LTD,MR Construction Costs,1020\5109655017,21-Nov-19,"95,607.19",
DOCKLANDS LIGHT RAILWAY,POD-TRAK LTD,Civil Engineering Construction Works,1012\5109658910,06-Dec-19,"94,766.33",
SURFACE TRANSPORT CORP,SIEMENS,Traffic Signals,1002\5109647050,20-Nov-19,"94,658.78",
TRANSPORT TRADING LTD,HAYS ACCOUNTANCY PERSONNEL,Agency Staff,1004\5109629295,11-Nov-19,"94,537.58",
LONDON UNDERGROUND LTD,MULALLEY & CO LTD,Planning & Development Consultancy,1005\5109661022,02-Dec-19,"94,241.90",
LONDON UNDERGROUND LTD,TELENT TECHNOLOGY SERVICES LTD,Equipment Repairs & Maintenance,1005\5109641772,11-Nov-19,"94,024.37",
RAIL FOR LONDON LIMITED,ORION RAIL CONSTRUCTION SERVICES,Management & Support Consultancy,1020\5109630572,11-Nov-19,"93,954.00",
LONDON BUS SERVICES LTD,ABELLIO LONDON LTD,Bus Contract Payments,1006\1900043357,22-Nov-19,"93,597.70",
TRANSPORT TRADING LTD,HAYS ACCOUNTANCY PERSONNEL,Agency Staff,1004\5109638703,25-Nov-19,"92,626.07",
LUL NOMINEE SSL LIMITED,GPX ENGINEERING LTD,Track General Maintenance,1031\5109656640,27-Nov-19,"92,238.70",
LONDON UNDERGROUND LTD,MULALLEY & CO LTD,Planning & Development Consultancy,1005\5109647227,02-Dec-19,"92,063.78",
LONDON UNDERGROUND LTD,IPS COMMUNICATIONS LTD,MR Construction Costs,1005\5109630412,27-Nov-19,"91,787.31",
LONDON UNDERGROUND LTD,SCHINDLER LTD,Lift Maintenance,1005\5109658526,27-Nov-19,"91,235.89",
TFL CORPORATE,O2 UK LTD,Computer Hardware,1001\5109641274,20-Nov-19,"90,498.00",
LONDON BUS SERVICES LTD,MITIE CLEANING & ENVIRONMENTAL,Building Maintenance & Repairs,1006\5109633275,13-Nov-19,"90,253.45",
LONDON UNDERGROUND LTD,LENDLEASE JACOBS JOINT VENTURE,MR Construction Costs,1005\5109647145,27-Nov-19,"89,958.20",
LONDON UNDERGROUND LTD,MULALLEY & CO LTD,Planning & Development Consultancy,1005\5109647944,02-Dec-19,"89,631.51",
LUL NOMINEE BCV LIMITED,MARL INTERNATIONAL LTD,Maintenance Materials,1033\5109646920,25-Nov-19,"89,195.15",
TFL CORPORATE,ASHURST LLP,Purchase of Land & Buildings,1001\1900068252,11-Nov-19,"89,142.71",
LONDON TRANSPORT MUSEUM,GARENNE INTERIORS LIMITED,Building Maintenance & Repairs,1011\5109636561,14-Nov-19,"88,678.44",
LONDON UNDERGROUND LTD,NETWORK RAIL,National Rail Variable Track Access Charges,1005\5109647041,02-Dec-19,"88,209.55",
RAIL FOR LONDON LIMITED,LEND LEASE CONSULTING (EMEA) LTD,Professional Engineering Services,1020\5109658551,28-Nov-19,"88,087.50",
TRANSPORT TRADING LTD,NOVACROFT DIRECT LTD,Ticket & Pass Production,1004\5109650257,19-Nov-19,"88,082.63",
TRANSPORT TRADING LTD,BNP PARIBAS REAL ESTATE ADV & PROP,Management & Support Consultancy,1004\5109635910,13-Nov-19,"87,692.31",
RFL (INFRASTRUCTURE) LTD,SIEMENS,Computer Consumables,1025\5109636128,18-Nov-19,"87,302.40",
LUL NOMINEE SSL LIMITED,GIFFEN GROUP LTD,Civil Engineering Construction Works,1031\5109654176,27-Nov-19,"87,069.12",
LONDON UNDERGROUND LTD,LANES GROUP PLC,Building Maintenance & Repairs,1005\5109642182,25-Nov-19,"87,010.52",
LONDON UNDERGROUND LTD,KONE PLC,Lift Maintenance,1005\5109647742,20-Nov-19,"86,936.44",
SURFACE TRANSPORT CORP,DELOITTE,Management & Support Consultancy,1002\5109639718,11-Nov-19,"86,750.00",
LONDON UNDERGROUND LTD,COVENT GARDEN MARKET AUTHORITY,Purchase of Land & Buildings,1005\1900211802,20-Nov-19,"86,666.66",
TRANSPORT TRADING LTD,CENTURYLINK COMMUNICATIONS UK LTD,Maintenance of Telecommunications Equipment,1004\5109646518,27-Nov-19,"85,696.06",
LUL NOMINEE BCV LIMITED,CLESHAR CONTRACT SERVICES LTD,Track General Maintenance,1033\5109647290,13-Nov-19,"85,592.06",
LUL NOMINEE SSL LIMITED,EDMUNDSON ELECTRICAL LTD,Civil Engineering Construction Works,1031\5109645830,18-Nov-19,"85,550.00",
LUL NOMINEE SSL LIMITED,TRACKWORK RESOURCES LTD,Track General Maintenance,1031\5109647909,13-Nov-19,"84,585.06",
SURFACE TRANSPORT CORP,CEOX SERVICES LTD,Management & Support Consultancy,1002\5109649255,27-Nov-19,"84,570.00",
DOCKLANDS LIGHT RAILWAY,DYER & BUTLER LTD,Civil Engineering Construction Works,1012\5109655722,04-Dec-19,"84,443.28",
LONDON UNDERGROUND LTD,ENGIE SERVICES LTD,Equipment Repairs & Maintenance,1005\5109639835,13-Nov-19,"83,690.92",
TFL CORPORATE,COPPERMAN CONSULTING LTD,Software Maintenance,1001\5109658952,02-Dec-19,"83,325.00",
LUL NOMINEE SSL LIMITED,TRACKWORK RESOURCES LTD,Track General Maintenance,1031\5109654812,27-Nov-19,"82,915.45",
SURFACE TRANSPORT CORP,CAPITA BUSINESS SERVICES LTD,Management & Support Consultancy,1002\5109631124,11-Nov-19,"82,715.62",
SURFACE TRANSPORT CORP,EURO PARKING COLLECTION PLC,CCS DVLA Costs,1002\5109651007,20-Nov-19,"82,516.63",
TFL CORPORATE,MORSON HUMAN RESOURCES LTD,Agency Staff,1001\5109643843,02-Dec-19,"82,394.13",
TFL CORPORATE,INTERFLEET TECHNOLOGY LIMITED,Management & Support Consultancy,1001\5109631984,13-Nov-19,"82,028.12",
LONDON UNDERGROUND LTD,ARK SIGNALLING CONSULTANCY,Professional Engineering Services,1005\5109649952,18-Nov-19,"81,826.00",
LUL NOMINEE SSL LIMITED,GIFFEN GROUP LTD,Civil Engineering Construction Works,1031\5109654185,20-Nov-19,"81,676.40",
LUL NOMINEE SSL LIMITED,CLESHAR CONTRACT SERVICES LTD,Track General Maintenance,1031\5109647262,13-Nov-19,"81,609.74",
LONDON UNDERGROUND LTD,DELATIM LIMITED,MR Construction Costs,1005\5109655687,28-Nov-19,"81,116.54",
TFL CORPORATE,EDENRED (UK GROUP) LIMITED,Staff Welfare Benefits,1001\5109658409,27-Nov-19,"81,000.00",
TFL CORPORATE,MEDIAEDGE,Radio TV Press Poster Cinema Airtime And Space,1001\5109640994,13-Nov-19,"80,033.90",
LONDON UNDERGROUND LTD,JNG CONSTRUCTION & ENGINEERING,Building Maintenance & Repairs,1005\5109641792,13-Nov-19,"79,609.41",
LUL NOMINEE BCV LIMITED,MORSON HUMAN RESOURCES LTD,Track General Maintenance,1033\5109654130,20-Nov-19,"79,410.59",
LONDON UNDERGROUND LTD,GEOFFREY OSBORNE LIMITED,Civil Engineering Construction Works,1005\5109663384,04-Dec-19,"79,286.71",
RAIL FOR LONDON LIMITED,LINBROOKE SERVICES LTD,Management & Support Consultancy,1020\5109655652,04-Dec-19,"78,996.43",
TFL CORPORATE,OVE ARUP & PARTNERS LTD,Planning & Development Consultancy,1001\5109647853,13-Nov-19,"78,977.20",
SURFACE TRANSPORT CORP,CAPITA BUSINESS SERVICES LTD,Management & Support Consultancy,1002\5109645778,02-Dec-19,"78,521.23",
LONDON UNDERGROUND LTD,CLANCY DOCWRA LTD,Civil Engineering Construction Works,1005\5109661479,04-Dec-19,"78,038.98",
TFL CORPORATE,SENTRUM IV LIMITED,Manage IT Services,1001\5109658065,28-Nov-19,"77,967.10",
SURFACE TRANSPORT CORP,CAPITA BUSINESS SERVICES LTD,CCS Service Contract,1002\5109637164,20-Nov-19,"77,702.43",
TRANSPORT TRADING LTD,G4S CASH SOLUTIONS (UK) LTD,Cash Handling & Processing,1004\5109632096,11-Nov-19,"77,286.84",
DIAL A RIDE,WOODALL NICHOLSON LTD,Vehicle Purchases,1010\5109626717,25-Nov-19,"77,013.00",
DIAL A RIDE,WOODALL NICHOLSON LTD,Vehicle Purchases,1010\5109627390,25-Nov-19,"77,013.00",
DIAL A RIDE,WOODALL NICHOLSON LTD,Vehicle Purchases,1010\5109627392,25-Nov-19,"77,013.00",
DIAL A RIDE,WOODALL NICHOLSON LTD,Vehicle Purchases,1010\5109627395,18-Nov-19,"77,013.00",
DIAL A RIDE,WOODALL NICHOLSON LTD,Vehicle Purchases,1010\5109647036,13-Nov-19,"77,013.00",
DIAL A RIDE,WOODALL NICHOLSON LTD,Vehicle Purchases,1010\5109647037,13-Nov-19,"77,013.00",
DIAL A RIDE,WOODALL NICHOLSON LTD,Vehicle Purchases,1010\5109650626,18-Nov-19,"77,013.00",
DIAL A RIDE,WOODALL NICHOLSON LTD,Vehicle Purchases,1010\5109650635,18-Nov-19,"77,013.00",
DIAL A RIDE,WOODALL NICHOLSON LTD,Vehicle Purchases,1010\5109650637,18-Nov-19,"77,013.00",
DIAL A RIDE,WOODALL NICHOLSON LTD,Vehicle Purchases,1010\5109650639,18-Nov-19,"77,013.00",
DIAL A RIDE,WOODALL NICHOLSON LTD,Vehicle Purchases,1010\5109650642,18-Nov-19,"77,013.00",
DIAL A RIDE,WOODALL NICHOLSON LTD,Vehicle Purchases,1010\5109654260,27-Nov-19,"77,013.00",
DIAL A RIDE,WOODALL NICHOLSON LTD,Vehicle Purchases,1010\5109654262,27-Nov-19,"77,013.00",
DIAL A RIDE,WOODALL NICHOLSON LTD,Vehicle Purchases,1010\5109654263,27-Nov-19,"77,013.00",
DIAL A RIDE,WOODALL NICHOLSON LTD,Vehicle Purchases,1010\5109647040,13-Nov-19,"76,473.60",
LUL NOMINEE SSL LIMITED,SWIETELSKY,Track General Maintenance,1031\5109635536,13-Nov-19,"76,137.50",
LONDON UNDERGROUND LTD,SPECIALIST ENGINEERING SERVICES,Equipment Repairs & Maintenance,1005\5109651712,27-Nov-19,"75,909.62",
LUL NOMINEE BCV LIMITED,MORSON HUMAN RESOURCES LTD,Track General Maintenance,1033\5109654134,20-Nov-19,"75,517.12",
LONDON UNDERGROUND LTD,CASTLE WATER LIMITED,Water,1005\1900211718,13-Nov-19,"75,243.14",
LONDON UNDERGROUND LTD,MULALLEY & CO LTD,Planning & Development Consultancy,1005\5109647211,02-Dec-19,"75,011.16",
LONDON BUS SERVICES LTD,PROVENTIA OY,Vehicle Repairs & Maintenance,1006\5109653727,04-Dec-19,"74,475.00",
TRANSPORT TRADING LTD,LONDON BOROUGH OF CAMDEN,Rates,1004\1901669608,28-Nov-19,"74,408.00",
LONDON UNDERGROUND LTD,NETWORK RAIL,Traction Current,1005\5109647043,02-Dec-19,"74,323.67",
LUL NOMINEE SSL LIMITED,DUCTCLEAN (UK) LTD T/A DCUK FM,Building Maintenance & Repairs,1031\5109662820,04-Dec-19,"74,171.75",
LONDON UNDERGROUND LTD,SCHINDLER LTD,Lift Maintenance,1005\5109655943,25-Nov-19,"74,084.36",
DOCKLANDS LIGHT RAILWAY,KEOLIS AMEY DOCKLANDS LIMITED,Professional Engineering Services,1012\5109649517,13-Nov-19,"73,852.18",
TFL CORPORATE,MEDIAEDGE,Agency Fees Paid To Marketing Agencies,1001\5109651967,02-Dec-19,"73,000.00",
LUL NOMINEE BCV LIMITED,GPX ENGINEERING LTD,Track General Maintenance,1033\5109656642,27-Nov-19,"72,733.74",
RAIL FOR LONDON LIMITED,NETWORK RAIL,Professional Engineering Services,1020\5109639736,25-Nov-19,"72,716.15",
TRANSPORT TRADING LTD,FUSION PEOPLE LIMITED,Agency Staff,1004\5109648990,13-Nov-19,"72,534.41",
LUL NOMINEE SSL LIMITED,CLESHAR CONTRACT SERVICES LTD,Track General Maintenance,1031\5109654811,27-Nov-19,"72,441.97",
TFL CORPORATE,MEDIAEDGE,Social Media And Digital Advertising Space,1001\5109649222,25-Nov-19,"72,371.11",
LONDON UNDERGROUND LTD,Z-TECH CONTROL SYSTEMS LTD,MR Construction Costs,1005\5109661360,04-Dec-19,"72,320.12",
LONDON UNDERGROUND LTD,LH GROUP WHEELSETS LTD,Equipment Repairs & Maintenance,1005\5109635082,18-Nov-19,"72,194.00",
LUL NOMINEE SSL LIMITED,1STINRAIL LIMITED,Contractors,1031\5109661303,04-Dec-19,"72,093.37",
SURFACE TRANSPORT CORP,CAPITA BUSINESS SERVICES LTD,CCS Service Contract,1002\5109637487,20-Nov-19,"71,436.59",
LONDON BUS SERVICES LTD,METROLINE TRAVEL LTD,Vehicle Repairs & Maintenance,1006\5109642056,27-Nov-19,"71,280.00",
LONDON BUS SERVICES LTD,METROLINE TRAVEL LTD,Vehicle Repairs & Maintenance,1006\5109642057,27-Nov-19,"71,280.00",
LONDON BUS SERVICES LTD,METROLINE TRAVEL LTD,Vehicle Repairs & Maintenance,1006\5109642060,27-Nov-19,"71,280.00",
TFL CORPORATE,COPYRIGHT LICENSING AGENCY LTD,Publications & Periodicals,1001\5109616160,26-Nov-19,"71,085.96",
LONDON UNDERGROUND LTD,OCL RAIL LTD,MR Construction Costs,1005\5109658921,27-Nov-19,"71,068.42",
TFL CORPORATE,PROJECT 7 CONSULTANCY LTD,Management & Support Consultancy,1001\5109645579,02-Dec-19,"70,960.18",
LONDON BUS SERVICES LTD,TRAPEZE PTI LTD,Electrical & Electronic Engineering,1006\5109651106,06-Dec-19,"70,701.03",
TFL CORPORATE,SENTRUM IV LIMITED,Manage IT Services,1001\5109655436,27-Nov-19,"70,695.47",
DOCKLANDS LIGHT RAILWAY,CB E&M SERVICES LIMITED,Civil Engineering Construction Works,1012\5109646275,04-Dec-19,"70,159.84",
LUL NOMINEE SSL LIMITED,DUCTCLEAN (UK) LTD T/A DCUK FM,Building Maintenance & Repairs,1031\5109658899,27-Nov-19,"70,126.15",
LUL NOMINEE SSL LIMITED,LANES GROUP PLC,MR Construction Costs,1031\5109632402,20-Nov-19,"70,041.00",
TFL CORPORATE,THE RETEARN GROUP LTD,Management & Support Consultancy,1001\5109664031,06-Dec-19,"70,033.00",
LONDON UNDERGROUND LTD,DYER & BUTLER LTD,Building Maintenance & Repairs,1005\5109650647,18-Nov-19,"69,531.80",
TFL CORPORATE,CAPITA BUSINESS SERVICES LTD,IT Consultancy,1001\5109641371,25-Nov-19,"69,285.21",
TRANSPORT TRADING LTD,HMRC,CIS Withholding Tax,1004\1901669264,13-Nov-19,"69,068.82",
DOCKLANDS LIGHT RAILWAY,ANTAGRADE ELECTRICAL LTD,Civil Engineering Construction Works,1012\5109644459,04-Dec-19,"68,870.00",
LONDON UNDERGROUND LTD,SCHWEERBAU GMBH & CO.KG *PAID BACS*,Track General Maintenance,1005\5109645505,02-Dec-19,"68,750.00",
TFL CORPORATE,MEDIAEDGE,Radio TV Press Poster Cinema Airtime And Space,1001\5109652381,02-Dec-19,"68,405.92",
LUL NOMINEE SSL LIMITED,CPC PROJECT SERVICES LLP,Civil Engineering Construction Works,1031\5109646269,19-Nov-19,"68,325.05",
LONDON UNDERGROUND LTD,IPS COMMUNICATIONS LTD,MR Construction Costs,1005\5109651008,27-Nov-19,"67,732.31",
LONDON UNDERGROUND LTD,BALFOUR BEATTY RAIL LTD,MR Construction Costs,1005\5109654214,04-Dec-19,"67,561.79",
TRANSPORT TRADING LTD,DAISY COMMUNICATIONS LTD,Telephony Fixed,1004\5109632959,13-Nov-19,"67,500.00",
SURFACE TRANSPORT CORP,TELENT TECHNOLOGY SERVICES LTD,Maintenance of Plant & Equipment,1002\5109635691,18-Nov-19,"67,055.60",
LONDON UNDERGROUND LTD,EDF ENERGY,Electricity,1005\1900211980,04-Dec-19,"66,933.08",
LONDON UNDERGROUND LTD,ALBA POWER LIMITED,Electrical Equipment Maintenance,1005\5109645998,11-Nov-19,"66,911.90",
LONDON UNDERGROUND LTD,RJC (UK) LTD,Escalators,1005\5109650641,18-Nov-19,"66,696.00",
DOCKLANDS LIGHT RAILWAY,KEOLIS AMEY DOCKLANDS LIMITED,Professional Engineering Services,1012\5109658008,04-Dec-19,"66,252.01",
LONDON UNDERGROUND LTD,RAILWAY WHEELSET & BRAKE LTD ,Equipment Repairs & Maintenance,1005\5109645578,14-Nov-19,"65,940.00",
LONDON UNDERGROUND LTD,GEOFFREY OSBORNE LIMITED,Civil Engineering Construction Works,1005\5109663370,04-Dec-19,"65,939.43",
LONDON UNDERGROUND LTD,BRYEN & LANGLEY LTD,Building Maintenance & Repairs,1005\5109641868,02-Dec-19,"65,916.48",
LONDON BUS SERVICES LTD,TOWER TRANSIT OPERATIONS LTD,Vehicle Operating Leases,1006\5109635456,18-Nov-19,"65,600.00",
LONDON BUS SERVICES LTD,ABELLIO LONDON LTD,Rail Replacement Service Costs,1006\1900043194,11-Nov-19,"65,429.44",
LUL NOMINEE SSL LIMITED,CLESHAR CONTRACT SERVICES LTD,Track General Maintenance,1031\5109647325,11-Nov-19,"65,182.09",
LONDON UNDERGROUND LTD,CASTLE WATER LIMITED,Water,1005\1900211711,13-Nov-19,"64,791.03",
RAIL FOR LONDON LIMITED,BARKING RIVERSIDE LIMITED,Civil Engineering Construction Works,1020\5109651987,19-Nov-19,"64,672.13",
SURFACE TRANSPORT CORP,BRITISH TELECOMMUNICATIONS PLC,Contracted Services - Roads,1002\5109645701,27-Nov-19,"64,056.91",
TRANSPORT TRADING LTD,SAVILLS COMMERCIAL LTD,Planning & Development Consultancy,1004\5109645608,27-Nov-19,"64,050.00",
LONDON BUS SERVICES LTD,TRUEFORM ENGINEERING LTD,Purchase of Bus Shelters,1006\5109650596,18-Nov-19,"63,924.66",
TFL CORPORATE,MORSON HUMAN RESOURCES LTD,Agency Staff,1001\5109629590,11-Nov-19,"63,531.53",
LONDON UNDERGROUND LTD,ATKINS LIMITED,Planning & Development Consultancy,1005\5109639664,11-Nov-19,"63,500.00",
DOCKLANDS LIGHT RAILWAY,OYSTER SALES SERVICE,Civil Engineering Construction Works,1012\5109645589,27-Nov-19,"63,319.00",
LUL NOMINEE SSL LIMITED,CLESHAR CONTRACT SERVICES LTD,Civil Engineering Construction Works,1031\5109654769,25-Nov-19,"63,186.29",
TRANSPORT TRADING LTD,CORONA ENERGY RETAIL 4 LTD,Gas,1004\1901669272,27-Nov-19,"63,142.56",
SURFACE TRANSPORT CORP,CAPITA BUSINESS SERVICES LTD,Contracted Services - Roads,1002\5109638198,25-Nov-19,"62,983.32",
LONDON UNDERGROUND LTD,PCG ASSOCIATES LIMITED,Signalling Systems,1005\5109661556,04-Dec-19,"62,817.00",
SURFACE TRANSPORT CORP,REDSPEED INTERNATIONAL  LTD,Maintenance of Plant & Equipment,1002\5109655913,04-Dec-19,"62,734.83",
TRANSPORT TRADING LTD,BT SERVICE AGILITY,Computer Hardware,1004\1901669286,04-Dec-19,"62,693.72",
LONDON UNDERGROUND LTD,KONE PLC,Lift Maintenance,1005\5109646259,18-Nov-19,"62,442.87",
TFL CORPORATE,"SISCOG - SISTEMAS COGNITIVOS, SA",Software Maintenance,1001\5109646949,06-Dec-19,"62,118.58",
SURFACE TRANSPORT CORP,CAPITA BUSINESS SERVICES LTD,CCS Service Contract,1002\5109636934,20-Nov-19,"61,845.81",
LONDON UNDERGROUND LTD,SKANSKA CONTRUCTIONS UK LTD,Civil Engineering Construction Works,1005\5109645978,11-Nov-19,"61,423.21",
TFL CORPORATE,COMPUTACENTER PLC,Computer Hardware,1001\5109644372,04-Dec-19,"61,380.00",
LONDON UNDERGROUND LTD,GEOFFREY OSBORNE LIMITED,Civil Engineering Construction Works,1005\5109663367,04-Dec-19,"60,719.42",
LONDON TRANSPORT MUSEUM,CF CORPORATE FINANCE,Photocopying,1011\1900014106,27-Nov-19,"60,597.29",
LONDON UNDERGROUND LTD,SCHINDLER LTD,Lift Maintenance,1005\5109658523,27-Nov-19,"60,442.08",
PUBLIC CARRIAGE OFFICE,NSL LIMITED,PCO Outsourced Services,1003\5109651087,25-Nov-19,"60,400.93",
TFL CORPORATE,GARDINER & THEOBALD LLP,Management & Support Consultancy,1001\5109646299,04-Dec-19,"60,017.25",
LONDON UNDERGROUND LTD,SCHINDLER LTD,Lift Maintenance,1005\5109655932,25-Nov-19,"59,724.47",
TRANSPORT TRADING LTD,ELEMENTA CONSULTING LIMITED,Planning & Development Consultancy,1004\5109661304,04-Dec-19,"59,695.00",
TFL CORPORATE,TNS UK LTD,Planning & Development Consultancy,1001\5109637936,20-Nov-19,"59,530.00",
TRANSPORT TRADING LTD,CITY OF LONDON CORPORATION,Rates,1004\1901669612,28-Nov-19,"59,360.00",
LUL NOMINEE SSL LIMITED,CLESHAR CONTRACT SERVICES LTD,Track General Maintenance,1031\5109647306,11-Nov-19,"59,030.08",
LUL NOMINEE SSL LIMITED,SPECIALIST ENGINEERING SERVICES,Track General Maintenance,1031\5109651297,18-Nov-19,"58,943.28",
RAIL FOR LONDON LIMITED,INTERSERVE,Security Services (Guards),1020\5109649508,18-Nov-19,"58,892.83",
LUL NOMINEE SSL LIMITED,CPC PROJECT SERVICES LLP,Civil Engineering Construction Works,1031\5109646266,19-Nov-19,"58,865.91",
LONDON UNDERGROUND LTD,SPECIALIST ENGINEERING SERVICES,Equipment Repairs & Maintenance,1005\5109649234,13-Nov-19,"58,649.60",
LUL NOMINEE BCV LIMITED,VAE GMBH,Fleet,1033\5109647644,27-Nov-19,"58,560.00",
LONDON UNDERGROUND LTD,JNG CONSTRUCTION & ENGINEERING,MR Construction Costs,1005\5109649066,03-Dec-19,"58,491.69",
TFL CORPORATE,MEDIAEDGE,Radio TV Press Poster Cinema Airtime And Space,1001\5109649264,25-Nov-19,"58,043.66",
LONDON BUS SERVICES LTD,TRUEFORM ENGINEERING LTD,Purchase of Bus Shelters,1006\5109652541,19-Nov-19,"58,042.98",
TRANSPORT TRADING LTD,TECHNOLOGY DESKING LIMITED,Furniture & Equipment,1004\5109647098,11-Nov-19,"58,039.00",
LONDON BUS SERVICES LTD,TAIT EUROPE LTD,Radio Systems Equipment & Maintenance,1006\5109649548,04-Dec-19,"57,716.12",
TFL CORPORATE,GARDINER & THEOBALD LLP,Planning & Development Consultancy,1001\5109646601,02-Dec-19,"57,669.25",
LUL NOMINEE SSL LIMITED,CLESHAR CONTRACT SERVICES LTD,Track General Maintenance,1031\5109647331,11-Nov-19,"57,658.44",
LONDON UNDERGROUND LTD,KELLY INTEGRATED TRANS SERV LTD,Signalling Systems,1005\5109647812,13-Nov-19,"57,568.74",
TFL CORPORATE,CAP GEMINI UK PLC,Manage IT Services,1001\5109637390,27-Nov-19,"57,510.00",
TFL CORPORATE,CAP GEMINI UK PLC,Manage IT Services,1001\5109645563,25-Nov-19,"57,510.00",
LONDON UNDERGROUND LTD,CASTLE WATER LIMITED,Water,1005\1900211979,04-Dec-19,"57,338.95",
LONDON UNDERGROUND LTD,BARWIT CONTROL SYSTEMS LTD,Escalators,1005\5109654055,20-Nov-19,"57,191.96",
LONDON BUS SERVICES LTD,TRUEFORM ENGINEERING LTD,Purchase of Bus Shelters,1006\5109650594,14-Nov-19,"57,178.98",
LUL NOMINEE BCV LIMITED,EKE-ELECTRONICS LTD.,Maintenance Materials,1033\5109510076,14-Nov-19,"57,149.40",
LONDON UNDERGROUND LTD,LANES GROUP PLC,Civil Engineering Construction Works,1005\5109660640,04-Dec-19,"56,856.29",
TRANSPORT TRADING LTD,GLOBAL OUTDOOR MEDIA LIMITED,Purchase of Associates Loan Notes (Activity),1004\5109622859,25-Nov-19,"56,386.60",
TRANSPORT TRADING LTD,DESIGN RATIONALE LTD,Minor Property Expenses / Receipts,1004\5109663362,04-Dec-19,"56,297.98",
LONDON UNDERGROUND LTD,HOK INTERNATIONAL LIMITED,Planning & Development Consultancy,1005\5109658635,03-Dec-19,"56,250.00",
LONDON UNDERGROUND LTD,SCHWEERBAU GMBH & CO.KG *PAID BACS*,Track General Maintenance,1005\5109645758,02-Dec-19,"56,250.00",
LONDON BUS SERVICES LTD,EDF ENERGY,Electricity,1006\5109652531,25-Nov-19,"55,992.27",
LUL NOMINEE SSL LIMITED,1STINRAIL LIMITED,Track General Maintenance,1031\5109654820,25-Nov-19,"55,714.52",
LUL NOMINEE SSL LIMITED,1STINRAIL LIMITED,Track General Maintenance,1031\5109654824,25-Nov-19,"55,649.90",
SURFACE TRANSPORT CORP,TELENT TECHNOLOGY SERVICES LTD,Road Maintenance,1002\5109641934,13-Nov-19,"55,509.52",
LONDON UNDERGROUND LTD,MCGINLEY SUPPORT SERVICES LTD,MR Construction Costs,1005\5109659150,28-Nov-19,"55,413.20",
LONDON UNDERGROUND LTD,SKANSKA CONTRUCTIONS UK LTD,Civil Engineering Construction Works,1005\5109645961,11-Nov-19,"55,165.26",
LONDON UNDERGROUND LTD,LANES GROUP PLC,MR Construction Costs,1005\5109637486,13-Nov-19,"55,043.54",
LUL NOMINEE BCV LIMITED,KONE PLC,Lift Maintenance,1033\5109636512,13-Nov-19,"54,957.93",
TFL CORPORATE,TRAPEZE PTI LTD,Software Maintenance,1001\5109659002,03-Dec-19,"54,941.47",
DOCKLANDS LIGHT RAILWAY,OYSTER SALES SERVICE,Civil Engineering Construction Works,1012\5109654344,25-Nov-19,"54,930.95",
LONDON UNDERGROUND LTD,CLEAR ROUTE UTILITY SERVICES LTD,Electrical Equipment Maintenance,1005\5109647336,11-Nov-19,"54,191.05",
LONDON UNDERGROUND LTD,MORSON HUMAN RESOURCES LTD,Agency Staff,1005\5109634381,18-Nov-19,"54,014.28",
LUL NOMINEE SSL LIMITED,1STINRAIL LIMITED,Track General Maintenance,1031\5109654818,25-Nov-19,"53,800.31",
LONDON UNDERGROUND LTD,TIMKEN RAIL SERVICES,Equipment Repairs & Maintenance,1005\5109637765,11-Nov-19,"53,704.00",
TFL CORPORATE,THE NICHOLS GROUP LTD,Planning & Development Consultancy,1001\5109651228,19-Nov-19,"53,627.25",
LONDON UNDERGROUND LTD,CENTRE OF ADVERTISE EU LTD,Equipment Repairs & Maintenance,1005\5109651150,18-Nov-19,"53,550.00",
RAIL FOR LONDON LIMITED,AECOM LTD,Professional Engineering Services,1020\5109647961,02-Dec-19,"53,296.68",
TFL CORPORATE,MORSON HUMAN RESOURCES LTD,Agency Staff,1001\5109629587,11-Nov-19,"53,273.50",
TRANSPORT TRADING LTD,BRITISH GAS BUSINESS ,Gas,1004\5109659418,04-Dec-19,"53,123.49",
LUL NOMINEE SSL LIMITED,CLESHAR CONTRACT SERVICES LTD,Track General Maintenance,1031\5109647330,11-Nov-19,"52,881.95",
LUL NOMINEE SSL LIMITED,MORSON HUMAN RESOURCES LTD,Track General Maintenance,1031\5109655607,25-Nov-19,"52,438.29",
TRANSPORT TRADING LTD,POST OFFICE LTD,Ticket & Pass Production,1004\5109641365,27-Nov-19,"52,396.00",
TRANSPORT TRADING LTD,BERWIN LEIGHTON PAISNER,Legal Fees,1004\5109651819,18-Nov-19,"52,148.50",
LONDON BUS SERVICES LTD,EAST LONDON BUS & COACH COMPANY LTD,Bus Contract Payments,1006\1900043354,22-Nov-19,"52,101.46",
LONDON UNDERGROUND LTD,MORSON HUMAN RESOURCES LTD,Agency Staff,1005\5109634382,18-Nov-19,"52,098.88",
DOCKLANDS LIGHT RAILWAY,OYSTER SALES SERVICE,Ticket & Pass Production,1012\5109612673,11-Nov-19,"51,954.17",
LUL NOMINEE BCV LIMITED,CONTITECH LUFTFEDERSYSTEME GMBH,Fleet,1033\5109636605,22-Nov-19,"51,940.48",
LONDON UNDERGROUND LTD,KELLY INTEGRATED TRANS SERV LTD,Signalling Systems,1005\5109661503,04-Dec-19,"51,872.92",
LONDON UNDERGROUND LTD,KONE PLC,Escalators,1005\5109646370,18-Nov-19,"51,865.87",
TFL CORPORATE,MOTT MACDONALD LIMITED,Planning & Development Consultancy,1001\5109647863,13-Nov-19,"51,785.79",
SURFACE TRANSPORT CORP,CAPITA BUSINESS SERVICES LTD,Management & Support Consultancy,1002\5109645770,02-Dec-19,"51,737.75",
RAIL FOR LONDON LIMITED,BUCKINGHAM GROUP CONTRACTING LTD,Civil Engineering Construction Works,1020\5109660264,02-Dec-19,"51,275.85",
SURFACE TRANSPORT CORP,MEDIAEDGE,Radio TV Press Poster Cinema Airtime And Space,1002\5109652366,02-Dec-19,"51,178.16",
TFL CORPORATE,MORSON HUMAN RESOURCES LTD,Agency Staff,1001\5109643838,02-Dec-19,"51,177.42",
LUL NOMINEE SSL LIMITED,CLESHAR CONTRACT SERVICES LTD,Track General Maintenance,1031\5109647323,11-Nov-19,"50,833.55",
LUL NOMINEE BCV LIMITED,HAYLEY GROUP PLC,Maintenance Materials,1033\5109647570,04-Dec-19,"50,798.88",
LONDON UNDERGROUND LTD,CERTEL ENGINEERING SERVICES LIMITED,Traction Current,1005\5109635617,13-Nov-19,"50,780.19",
LONDON UNDERGROUND LTD,TAYLOR WOODROW CONS BAM NUTTAL LTD,MR Construction Costs,1005\5109651274,04-Dec-19,"50,479.06",
TRANSPORT TRADING LTD,LONDON BOROUGH OF ISLINGTON,Rates,1004\1901669654,28-Nov-19,"50,304.00",
LUL NOMINEE BCV LIMITED,INTERFLEET TECHNOLOGY LIMITED,Professional Engineering Services,1033\5109658020,04-Dec-19,"50,177.15",
RAIL FOR LONDON LIMITED,TRAPEZE PTI LTD,Maintenance of Plant & Equipment,1020\5109593151,12-Nov-19,"50,000.00",
RAIL FOR LONDON LIMITED,BARKING RIVERSIDE LIMITED,Civil Engineering Construction Works,1020\5109651982,19-Nov-19,"50,000.00",
LUL NOMINEE SSL LIMITED,CLESHAR CONTRACT SERVICES LTD,Track General Maintenance,1031\5109649755,20-Nov-19,"49,977.33",
LONDON UNDERGROUND LTD,SCHWEERBAU GMBH & CO.KG *PAID BACS*,Track General Maintenance,1005\5109645504,02-Dec-19,"49,750.00",
TFL CORPORATE,VCCP GROUP LLP,Production Artwork And Design For Marketing,1001\5109646362,04-Dec-19,"49,690.00",
LUL NOMINEE SSL LIMITED,CLESHAR CONTRACT SERVICES LTD,Track General Maintenance,1031\5109649703,20-Nov-19,"49,670.49",
TFL CORPORATE,MORSON HUMAN RESOURCES LTD,Agency Staff,1001\5109634019,18-Nov-19,"49,534.20",
LONDON UNDERGROUND LTD,BT SERVICE AGILITY,Telephony Fixed,1005\1900211726,04-Dec-19,"49,446.75",
LUL NOMINEE SSL LIMITED,CLESHAR CONTRACT SERVICES LTD,Track General Maintenance,1031\5109649762,20-Nov-19,"49,356.24",
LUL NOMINEE SSL LIMITED,CLESHAR CONTRACT SERVICES LTD,Track General Maintenance,1031\5109649706,20-Nov-19,"49,220.01",
LONDON UNDERGROUND LTD,HA MARKS LTD,MR Construction Costs,1005\5109509087,04-Dec-19,"49,106.73",
LONDON UNDERGROUND LTD,NETWORK RAIL,Professional Engineering Services,1005\5109616447,11-Nov-19,"48,989.75",
TFL CORPORATE,MORSON HUMAN RESOURCES LTD,Agency Staff,1001\5109629604,11-Nov-19,"48,801.02",
TFL CORPORATE,DELOITTE,Management & Support Consultancy,1001\5109632099,11-Nov-19,"48,750.00",
TRANSPORT TRADING LTD,DAISY COMMUNICATIONS LTD,Telephony Fixed,1004\5109642262,27-Nov-19,"48,625.00",
DOCKLANDS LIGHT RAILWAY,TRACK AND BUILD LTD.,Civil Engineering Construction Works,1012\5109661389,04-Dec-19,"48,378.75",
TRANSPORT TRADING LTD,HARVEY NICHOLS & CO LTD,Transys Control - TTL,1004\1901669312,18-Nov-19,"48,031.79",
TRANSPORT TRADING LTD,SENATOR INTERNATIONAL LTD,Furniture & Equipment,1004\5109649204,04-Dec-19,"48,010.30",
LUL NOMINEE SSL LIMITED,CH2M HILL UNITED KINGDOM,Civil Engineering Construction Works,1031\5109653728,27-Nov-19,"47,883.44",
LONDON UNDERGROUND LTD,ENGIE SERVICES LTD,Equipment Repairs & Maintenance,1005\5109647880,27-Nov-19,"47,768.06",
LONDON UNDERGROUND LTD,WILLIAM COOK RAIL LTD,Fleet,1005\5109644803,27-Nov-19,"47,586.00",
SURFACE TRANSPORT CORP,CAPITA BUSINESS SERVICES LTD,CCS Service Contract,1002\5109637170,20-Nov-19,"47,435.42",
LONDON BUS SERVICES LTD,TRUEFORM ENGINEERING LTD,Purchase of Bus Shelters,1006\5109664880,06-Dec-19,"47,382.65",
SURFACE TRANSPORT CORP,SIEMENS,Road Maintenance,1002\5109642079,13-Nov-19,"47,242.23",
TFL CORPORATE,ELEMENT ENERGY,Professional Engineering Services,1001\5109658839,02-Dec-19,"47,236.00",
LONDON UNDERGROUND LTD,THALES TRANSPORT & SECURITY LIMITED,IT Consultancy,1005\5109631250,11-Nov-19,"47,178.23",
LONDON UNDERGROUND LTD,TELENT TECHNOLOGY SERVICES LTD,Equipment Repairs & Maintenance,1005\5109651951,02-Dec-19,"46,868.86",
DOCKLANDS LIGHT RAILWAY,RJ POWER RAIL LIMITED,Civil Engineering Construction Works,1012\5109647361,13-Nov-19,"46,864.68",
LUL NOMINEE SSL LIMITED,1STINRAIL LIMITED,Track General Maintenance,1031\5109654823,25-Nov-19,"46,810.40",
LONDON TRANSPORT MUSEUM,EXIB LTD,Production Artwork And Design For Marketing,1011\5109642064,11-Nov-19,"46,717.00",
LONDON UNDERGROUND LTD,NETWORK RAIL,Traction Current,1005\5109646988,02-Dec-19,"46,688.55",
SURFACE TRANSPORT CORP,CAPITA BUSINESS SERVICES LTD,Management & Support Consultancy,1002\5109631088,11-Nov-19,"46,596.25",
TFL CORPORATE,CAP GEMINI UK PLC,Computer Hardware,1001\5109645874,25-Nov-19,"46,535.39",
LONDON UNDERGROUND LTD,LINKS SIGNS LTD,Production Artwork And Design For Marketing,1005\5109644474,12-Nov-19,"46,000.00",
LONDON BUS SERVICES LTD,STEPS DRAMA LEARNING DEVELOPMENT LTD,Staff Training,1006\5109649865,19-Nov-19,"45,964.00",
LONDON BUS SERVICES LTD,TRUEFORM ENGINEERING LTD,Purchase of Bus Shelters,1006\5109664873,05-Dec-19,"45,959.57",
LONDON BUS SERVICES LTD,ARRIVA LONDON NORTH LTD,Rail Replacement Service Costs,1006\1900043298,11-Nov-19,"45,877.45",
DIAL A RIDE,EVERSHEDS,Minor Property Expenses / Receipts,1010\1900011534,11-Nov-19,"45,855.00",
LUL NOMINEE SSL LIMITED,VAE GMBH,Track General Maintenance,1031\5109639795,20-Nov-19,"45,672.00",
LUL NOMINEE SSL LIMITED,CLESHAR CONTRACT SERVICES LTD,Track General Maintenance,1031\5109649714,20-Nov-19,"45,396.45",
LONDON BUS SERVICES LTD,SULLIVAN BUS & COACH LTD,Rail Replacement Service Costs,1006\1900043426,02-Dec-19,"45,227.63",
LONDON UNDERGROUND LTD,BARWIT CONTROL SYSTEMS LTD,Escalators,1005\5109639526,19-Nov-19,"45,120.00",
LONDON UNDERGROUND LTD,TRITON CONTRACTS LTD,Building Maintenance & Repairs,1005\5109654883,25-Nov-19,"44,935.00",
LONDON BUS SERVICES LTD,TELENT TECHNOLOGY SERVICES LTD,Maintenance of Plant & Equipment,1006\5109632075,13-Nov-19,"44,924.68",
LUL NOMINEE SSL LIMITED,CPC PROJECT SERVICES LLP,Civil Engineering Construction Works,1031\5109642151,19-Nov-19,"44,637.50",
TRANSPORT TRADING LTD,SCAN COIN OMSER (UK) LTD,Cash Handling & Processing,1004\5109651864,04-Dec-19,"44,410.31",
LUL NOMINEE SSL LIMITED,CAPITA BUSINESS SERVICES LTD,Manage IT Services,1031\5109641401,25-Nov-19,"44,305.86",
TFL CORPORATE,COMPUTACENTER PLC,Computer Hardware,1001\5109642107,27-Nov-19,"44,269.95",
DIAL A RIDE,DABD,Operator Costs,1010\5109647094,15-Nov-19,"44,227.32",
LONDON UNDERGROUND LTD,CLEAR ROUTE UTILITY SERVICES LTD,Electrical Equipment Maintenance,1005\5109660654,04-Dec-19,"44,208.06",
LONDON UNDERGROUND LTD,NETWORK RAIL,Traction Current,1005\5109647042,02-Dec-19,"44,185.26",
DIAL A RIDE,DABD,Operator Costs,1010\5109664267,05-Dec-19,"44,167.82",
TFL CORPORATE,COMPUTACENTER PLC,Computer Hardware,1001\5109630707,11-Nov-19,"44,122.10",
TRANSPORT TRADING LTD,SAS INTERNATIONAL,Minor Property Expenses / Receipts,1004\5109650748,20-Nov-19,"43,956.37",
LONDON UNDERGROUND LTD,HEGENSCHEIDT-MFD GMBH,Fleet,1005\5109640437,29-Nov-19,"43,950.00",
LONDON UNDERGROUND LTD,MODULAR DISTRIBUTION SYSTEMS,Escalators,1005\5109638075,20-Nov-19,"43,909.92",
LONDON UNDERGROUND LTD,SCHINDLER LTD,Lift Maintenance,1005\5109655951,25-Nov-19,"43,892.09",
DIAL A RIDE,WALTHAM FOREST CT LTD,Operator Costs,1010\5109639551,11-Nov-19,"43,864.87",
LUL NOMINEE SSL LIMITED,1STINRAIL LIMITED,Track General Maintenance,1031\5109654819,25-Nov-19,"43,819.84",
LONDON UNDERGROUND LTD,GERALD EVE,Planning & Development Consultancy,1005\5109650516,18-Nov-19,"43,633.00",
SURFACE TRANSPORT CORP,CAPITA BUSINESS SERVICES LTD,Contracted Services - Roads,1002\5109631089,11-Nov-19,"43,441.80",
LONDON UNDERGROUND LTD,METS LTD,Traction Current,1005\5109663344,04-Dec-19,"42,984.04",
TFL CORPORATE,MORSON HUMAN RESOURCES LTD,Agency Staff,1001\5109634059,18-Nov-19,"42,943.24",
LONDON UNDERGROUND LTD,OTIS LIMITED,Lift Maintenance,1005\5109655551,04-Dec-19,"42,940.11",
TFL CORPORATE,RACKSPACE LTD,Manage IT Services,1001\5109647311,27-Nov-19,"42,922.51",
LONDON UNDERGROUND LTD,CAP GEMINI UK PLC,Manage IT Services,1005\5109637387,13-Nov-19,"42,740.39",
LONDON UNDERGROUND LTD,NETWORK RAIL,National Rail Long Term Charges,1005\5109642008,20-Nov-19,"42,543.10",
LONDON BUS SERVICES LTD,METROLINE TRAVEL LTD,Rail Replacement Service Costs,1006\1900043308,13-Nov-19,"42,517.00",
TFL CORPORATE,COMPUTACENTER PLC,Computer Hardware,1001\5109641920,25-Nov-19,"42,456.37",
LONDON UNDERGROUND LTD,MCGINLEY SUPPORT SERVICES LTD,MR Construction Costs,1005\5109659124,28-Nov-19,"42,444.80",
LONDON BUS SERVICES LTD,METROLINE TRAVEL LTD,Rail Replacement Service Costs,1006\1900043303,25-Nov-19,"42,306.97",
LUL NOMINEE BCV LIMITED,PANDROL UK LTD,Track General Maintenance,1033\5109636493,13-Nov-19,"42,222.00",
LONDON BUS SERVICES LTD,EMINOX,Vehicle Repairs & Maintenance,1006\5109641559,27-Nov-19,"42,215.52",
SURFACE TRANSPORT CORP,CAPITA BUSINESS SERVICES LTD,CCS Service Contract,1002\5109636933,20-Nov-19,"42,213.16",
TFL CORPORATE,ATKINS LIMITED,Planning & Development Consultancy,1001\5109645792,25-Nov-19,"42,200.00",
TFL CORPORATE,MORSON HUMAN RESOURCES LTD,Agency Staff,1001\5109629606,11-Nov-19,"41,968.87",
SURFACE TRANSPORT CORP,INTEROUTE NETWORK LTD ,Radio Systems Equipment & Maintenance,1002\5109659821,02-Dec-19,"41,938.46",
LONDON UNDERGROUND LTD,NETWORK RAIL,National Rail Fixed Track Access Charges,1005\5109646984,02-Dec-19,"41,925.73",
TFL CORPORATE,SOLID SOLUTIONS MANAGEMENT LTD,Software Maintenance,1001\5109640136,18-Nov-19,"41,838.00",
LONDON UNDERGROUND LTD,TELENT TECHNOLOGY SERVICES LTD,Equipment Repairs & Maintenance,1005\5109663231,04-Dec-19,"41,725.60",
SURFACE TRANSPORT CORP,WSP UK LTD,Planning & Development Consultancy,1002\5109654835,04-Dec-19,"41,487.57",
TFL CORPORATE,LENDLEASE JACOBS JOINT VENTURE,Management & Support Consultancy,1001\5109647204,27-Nov-19,"41,405.07",
LONDON UNDERGROUND LTD,SCHINDLER LTD,Lift Maintenance,1005\5109655926,25-Nov-19,"41,359.27",
LUL NOMINEE BCV LIMITED,MORGANITE ELECTRICAL CARBON LTD,Fleet,1033\5109659348,02-Dec-19,"41,225.25",
LONDON UNDERGROUND LTD,NETWORK RAIL,National Rail Schedule 4 Payments,1005\5109646983,02-Dec-19,"41,134.94",
DOCKLANDS LIGHT RAILWAY,OYSTER SALES SERVICE,Civil Engineering Construction Works,1012\5109650932,18-Nov-19,"41,098.21",
TFL CORPORATE,CLIFFORD CHANCE LLP,Legal Fees,1001\5109654964,25-Nov-19,"41,092.41",
RAIL FOR LONDON LIMITED,VTS TRACK TECHNOLOGY LTD,Building Maintenance & Repairs,1020\5109652265,18-Nov-19,"41,020.50",
LONDON UNDERGROUND LTD,SOUTH WESTERN RAILWAY,National Rail Qualifying Expenditure Charges,1005\5109641228,27-Nov-19,"40,807.46",
SURFACE TRANSPORT CORP,EDF ENERGY,Electricity,1002\5109652463,25-Nov-19,"40,792.37",
RAIL FOR LONDON LIMITED,LANES GROUP PLC,Building Maintenance & Repairs,1020\5109650649,20-Nov-19,"40,770.75",
DIAL A RIDE,WESTWAY COMMUNITY TRANSPORT,Operator Costs,1010\5109656012,02-Dec-19,"40,686.44",
SURFACE TRANSPORT CORP,VCCP GROUP LLP,External Events Roads Shows And Face To Face,1002\5109640469,25-Nov-19,"40,600.00",
SURFACE TRANSPORT CORP,"SYSTEMS ENGINEERING, ASSESSMENT",PCN and Penalty Fare Processing,1002\5109640664,27-Nov-19,"40,492.68",
RAIL FOR LONDON LIMITED,LENDLEASE JACOBS JOINT VENTURE,MR Construction Costs,1020\5109653981,02-Dec-19,"40,485.30",
SURFACE TRANSPORT CORP,LONDON BOROUGH OF BEXLEY,Borough Services,1002\1900061801,11-Nov-19,"40,461.63",
SURFACE TRANSPORT CORP,CSTS LTD,Cameras,1002\5109644438,13-Nov-19,"40,396.18",
LUL NOMINEE SSL LIMITED,EMERSON NETWORK POWER LTD,Equipment Repairs & Maintenance,1031\5109642043,27-Nov-19,"40,384.27",
LUL NOMINEE SSL LIMITED,EMERSON NETWORK POWER LTD,Equipment Repairs & Maintenance,1031\5109642049,27-Nov-19,"40,384.27",
LUL NOMINEE SSL LIMITED,EMERSON NETWORK POWER LTD,Equipment Repairs & Maintenance,1031\5109642052,27-Nov-19,"40,384.27",
RAIL FOR LONDON LIMITED,HYDER CONSULTING (UK) LTD,Professional Engineering Services,1020\5109650718,18-Nov-19,"40,236.99",
RFL (INFRASTRUCTURE) LTD,SIEMENS,Computer Consumables,1025\5109636125,18-Nov-19,"40,111.88",
LONDON UNDERGROUND LTD,MODULAR DISTRIBUTION SYSTEMS,Escalators,1005\5109635056,18-Nov-19,"40,033.48",
LONDON BUS SERVICES LTD,AECOM LTD,IT Consultancy,1006\5109650294,27-Nov-19,"40,000.00",
DOCKLANDS LIGHT RAILWAY,OYSTER SALES SERVICE,Civil Engineering Construction Works,1012\5109650443,04-Dec-19,"39,936.31",
SURFACE TRANSPORT CORP,CAPITA BUSINESS SERVICES LTD,Management & Support Consultancy,1002\5109645780,02-Dec-19,"39,801.72",
LONDON BUS SERVICES LTD,STEWART SIGNS LTD,Printing,1006\5109649842,27-Nov-19,"39,500.00",
LONDON BUS SERVICES LTD,STEWART SIGNS LTD,Printing,1006\5109654200,21-Nov-19,"39,500.00",
TRANSPORT TRADING LTD,NJW LIMITED,Software Maintenance,1004\5109649289,02-Dec-19,"39,464.15",
TRANSPORT TRADING LTD,NJW LIMITED,Software Maintenance,1004\5109650306,19-Nov-19,"39,464.15",
SURFACE TRANSPORT CORP,CAPITA BUSINESS SERVICES LTD,Management & Support Consultancy,1002\5109645764,02-Dec-19,"39,326.26",
RAIL FOR LONDON LIMITED,WABTEC RAIL LIMITED,Management & Support Consultancy,1020\5109637375,20-Nov-19,"39,286.32",
RAIL FOR LONDON LIMITED,WABTEC RAIL LIMITED,Management & Support Consultancy,1020\5109647259,04-Dec-19,"39,286.32",
LUL NOMINEE BCV LIMITED,BARWIT CONTROL SYSTEMS LTD,Escalators,1033\5109663642,04-Dec-19,"39,155.00",
TFL CORPORATE,FLEET SOURCE LIMITED,Transport Planning Consultancy & Services,1001\5109650461,15-Nov-19,"39,010.00",
LONDON UNDERGROUND LTD,MCGINLEY SUPPORT SERVICES LTD,Track General Maintenance,1005\5109659118,28-Nov-19,"38,821.97",
LUL NOMINEE SSL LIMITED,MOQUETA LTD,Protective Clothing,1031\5109658326,29-Nov-19,"38,793.60",
LUL NOMINEE SSL LIMITED,MOQUETA LTD,Protective Clothing,1031\5109658329,29-Nov-19,"38,793.60",
LUL NOMINEE SSL LIMITED,MOQUETA LTD,Protective Clothing,1031\5109658333,29-Nov-19,"38,793.60",
RAIL FOR LONDON LIMITED,NETWORK RAIL,National Rail Contribution,1020\5109635057,11-Nov-19,"38,546.48",
LONDON UNDERGROUND LTD,ALSTOM TRANSPORT LTD,Fleet,1005\5109571865,18-Nov-19,"38,366.00",
LONDON BUS SERVICES LTD,AIRWAVE SOLUTIONS LTD,Equipment Hire & Rental,1006\5109632388,11-Nov-19,"38,270.07",
LONDON UNDERGROUND LTD,EC HARRIS UK LTD,Management & Support Consultancy,1005\5109644321,27-Nov-19,"38,025.00",
LUL NOMINEE SSL LIMITED,WESTCODE UK LIMITED,Fleet,1031\5109649114,13-Nov-19,"38,000.00",
LUL NOMINEE SSL LIMITED,1STINRAIL LIMITED,Track General Maintenance,1031\5109654821,25-Nov-19,"37,959.00",
LUL NOMINEE SSL LIMITED,EASTERN COMPRESSORS LTD,Equipment Repairs & Maintenance,1031\5109650541,14-Nov-19,"37,910.23",
LUL NOMINEE BCV LIMITED,TIFLEX LTD,Track General Maintenance,1033\5109641473,27-Nov-19,"37,800.00",
LONDON RIVER SERVICES LTD,RINGWAY JACOBS LIMITED,Building Maintenance & Repairs,1007\5109659333,02-Dec-19,"37,761.20",
LONDON UNDERGROUND LTD,MCGINLEY SUPPORT SERVICES LTD,Track General Maintenance,1005\5109659107,28-Nov-19,"37,742.96",
LONDON UNDERGROUND LTD,SCHINDLER LTD,Lift Maintenance,1005\5109655924,25-Nov-19,"37,645.25",
LUL NOMINEE SSL LIMITED,FUTURE DESIGNS LIMITED,Traction Current,1031\5109640443,20-Nov-19,"37,199.10",
TFL CORPORATE,MEDIAEDGE,Agency Fees Paid To Marketing Agencies,1001\5109641345,13-Nov-19,"36,870.71",
LONDON UNDERGROUND LTD,CLANCY DOCWRA LTD,Civil Engineering Construction Works,1005\5109645741,11-Nov-19,"36,623.50",
LONDON UNDERGROUND LTD,MCGINLEY SUPPORT SERVICES LTD,MR Construction Costs,1005\5109659152,28-Nov-19,"36,594.96",
LONDON UNDERGROUND LTD,MODULAR DISTRIBUTION SYSTEMS,Escalators,1005\5109635058,13-Nov-19,"36,591.60",
LUL NOMINEE SSL LIMITED,MORSON HUMAN RESOURCES LTD,Track General Maintenance,1031\5109654117,20-Nov-19,"36,557.20",
TFL CORPORATE,CLIFFORD CHANCE LLP,Legal Fees,1001\5109654945,25-Nov-19,"36,495.83",
LONDON UNDERGROUND LTD,PLOWMAN CRAVEN & ASSOC LTD,Planning & Development Consultancy,1005\5109655237,25-Nov-19,"36,400.00",
RAIL FOR LONDON LIMITED,OSL RAIL LTD,Professional Engineering Services,1020\5109660275,05-Dec-19,"36,392.85",
LONDON BUS SERVICES LTD,TAIT EUROPE LTD,Computer Hardware,1006\5109640300,20-Nov-19,"36,200.00",
LONDON BUS SERVICES LTD,UNIVERSITYBUS LTD,Bus Contract Payments,1006\1900043393,22-Nov-19,"36,120.96",
LONDON UNDERGROUND LTD,DELATIM LIMITED,Maintenance Materials,1005\5109655689,27-Nov-19,"36,020.63",
TFL CORPORATE,EQUINIX (UK) LTD,Manage IT Services,1001\5109647658,27-Nov-19,"35,974.22",
CYCLE HIRE SCHEME,JOURNEYCALL LTD,Ticket & Pass Production,1016\5109630955,27-Nov-19,"35,908.16",
LONDON UNDERGROUND LTD,TRENITALIA C2C LTD,National Rail Qualifying Expenditure Charges,1005\5109644906,27-Nov-19,"35,903.45",
LONDON UNDERGROUND LTD,ALBA POWER LIMITED,Electrical Equipment Maintenance,1005\5109645891,11-Nov-19,"35,853.79",
LONDON UNDERGROUND LTD,O2 UK LTD,Computer Software,1005\5109642012,13-Nov-19,"35,845.80",
SURFACE TRANSPORT CORP,EVERSHEDS,Legal Fees,1002\5109658758,27-Nov-19,"35,656.60",
TRANSPORT TRADING LTD,ROYAL BOROUGH KENSINGTON & CHELSEA,Rates,1004\1901669655,28-Nov-19,"35,632.00",
LUL NOMINEE SSL LIMITED,BONATRANS GROUP A.S.,Fleet,1031\5109631298,14-Nov-19,"35,600.00",
LUL NOMINEE SSL LIMITED,BONATRANS GROUP A.S.,Fleet,1031\5109636086,21-Nov-19,"35,600.00",
LONDON BUS SERVICES LTD,TAIT EUROPE LTD,Radio Systems Equipment & Maintenance,1006\5109640674,20-Nov-19,"35,590.00",
TFL CORPORATE,O2 UK LTD,Computer Hardware,1001\5109641277,20-Nov-19,"35,500.00",
LONDON UNDERGROUND LTD,OTIS LIMITED,Lift Maintenance,1005\5109633207,11-Nov-19,"35,441.61",
LONDON UNDERGROUND LTD,LANES GROUP PLC,Civil Engineering Construction Works,1005\5109660639,04-Dec-19,"35,323.55",
VICTORIA COACH STATN LTD,FLIXBUS DACH GMBH,VCS Repayments & Commission,1008\1900004435,02-Dec-19,"35,310.55",
LONDON UNDERGROUND LTD,ONE TRANSPORT LIMITED,Travel to/from work (Unsocial Hours),1005\5109651222,18-Nov-19,"35,309.40",
RAIL FOR LONDON LIMITED,LENDLEASE JACOBS JOINT VENTURE,MR Construction Costs,1020\5109653980,02-Dec-19,"35,167.05",
LUL NOMINEE BCV LIMITED,UESL,Escalators,1033\5109649507,13-Nov-19,"35,030.81",
LONDON UNDERGROUND LTD,QUINN INFRASTRUCTURE SERVICES LTD,Building Maintenance & Repairs,1005\5109640169,13-Nov-19,"35,014.40",
DIAL A RIDE,WANDSWORTH COMMUNITY TRANSPORT,Operator Costs,1010\5109651005,22-Nov-19,"35,005.20",
LONDON UNDERGROUND LTD,PTSG ACCESS AND SAFETY LTD,Building Maintenance & Repairs,1005\5109633266,13-Nov-19,"34,864.50",
LONDON UNDERGROUND LTD,NETWORK RAIL,National Rail Signal Control Charges,1005\5109647044,02-Dec-19,"34,831.73",
TRANSPORT TRADING LTD,BERWIN LEIGHTON PAISNER,Legal Fees,1004\5109651820,18-Nov-19,"34,740.50",
TRANSPORT TRADING LTD,CYBERSOURCE  LIMITED,Software Maintenance,1004\5109646201,12-Nov-19,"34,670.07",
TFL CORPORATE,TNS UK LTD,Customer Research And Counts,1001\5109633483,13-Nov-19,"34,500.00",
SURFACE TRANSPORT CORP,WSP UK LTD,Planning & Development Consultancy,1002\5109646245,13-Nov-19,"34,451.14",
LONDON BUS SERVICES LTD,ABELLIO LONDON LTD,Rail Replacement Service Costs,1006\1900043193,11-Nov-19,"34,417.75",
TRANSPORT TRADING LTD,TNS UK LTD,Customer Research And Counts,1004\5109637867,20-Nov-19,"34,412.50",
DOCKLANDS LIGHT RAILWAY,TNS UK LTD,Civil Engineering Construction Works,1012\5109637193,18-Nov-19,"34,412.50",
TRANSPORT TRADING LTD,JNG CONSTRUCTION & ENGINEERING,Building Maintenance & Repairs,1004\5109642620,12-Nov-19,"34,347.50",
LONDON UNDERGROUND LTD,WILLMOTT DIXON INTERIORS LTD,MR Construction Costs,1005\5109660602,02-Dec-19,"34,317.90",
TFL CORPORATE,MOTT MACDONALD LIMITED,Planning & Development Consultancy,1001\5109632040,13-Nov-19,"34,284.09",
LUL NOMINEE BCV LIMITED,MORSON HUMAN RESOURCES LTD,Track General Maintenance,1033\5109654151,20-Nov-19,"34,269.76",
SURFACE TRANSPORT CORP,TELENT TECHNOLOGY SERVICES LTD,Traffic Signals,1002\5109656631,04-Dec-19,"33,891.08",
LONDON BUS SERVICES LTD,AECOM LTD,IT Consultancy,1006\5109630969,20-Nov-19,"33,843.72",
LONDON UNDERGROUND LTD,NETWORK RAIL,National Rail Fixed Track Access Charges,1005\5109646992,02-Dec-19,"33,829.34",
TFL CORPORATE,MORSON HUMAN RESOURCES LTD,Agency Staff,1001\5109629581,11-Nov-19,"33,720.16",
LUL NOMINEE BCV LIMITED,VOITH TURBO LTD,Fleet,1033\5109619395,25-Nov-19,"33,706.20",
TFL CORPORATE,MEDIAEDGE,Social Media And Digital Advertising Space,1001\5109652418,02-Dec-19,"33,674.24",
TFL CORPORATE,COMPUTACENTER PLC,Computer Hardware,1001\5109636786,20-Nov-19,"33,350.40",
LONDON BUS SERVICES LTD,SULLIVAN BUS & COACH LTD,Rail Replacement Service Costs,1006\1900043296,11-Nov-19,"33,007.17",
LONDON TRANSPORT MUSEUM,INTERSERVE,Security Services (Guards),1011\5109642175,18-Nov-19,"32,901.29",
SURFACE TRANSPORT CORP,SIEMENS,Traffic Signals,1002\5109645693,13-Nov-19,"32,861.61",
LONDON UNDERGROUND LTD,GRUNDON WASTE MANAGEMENT LTD,Non Recyclable Waste Disposal/Refuse Collection,1005\5109658892,02-Dec-19,"32,815.05",
LONDON UNDERGROUND LTD,ENGIE SERVICES LTD,Fire and Safety Equipment,1005\5109639817,20-Nov-19,"32,812.41",
LUL NOMINEE SSL LIMITED,KONE PLC,Lift Maintenance,1031\5109636505,13-Nov-19,"32,805.83",
LUL NOMINEE BCV LIMITED,ERIKS  EMS,Professional Engineering Services,1033\5109646198,27-Nov-19,"32,803.00",
LUL NOMINEE BCV LIMITED,ERIKS  EMS,Professional Engineering Services,1033\5109646200,27-Nov-19,"32,803.00",
LONDON UNDERGROUND LTD,TELENT TECHNOLOGY SERVICES LTD,MR Construction Costs,1005\5109644528,18-Nov-19,"32,792.16",
TFL CORPORATE,KPMG,Management & Support Consultancy,1001\5109631814,13-Nov-19,"32,724.38",
TRANSPORT TRADING LTD,PA CONSULTING SERVICES LTD,IT Consultancy,1004\5109635768,18-Nov-19,"32,675.00",
TRANSPORT TRADING LTD,CITY OF WESTMINSTER,Rates,1004\1901669351,18-Nov-19,"32,643.00",
TRANSPORT TRADING LTD,CITY OF WESTMINSTER,Rates,1004\1901669635,28-Nov-19,"32,643.00",
TRANSPORT TRADING LTD,CITY OF WESTMINSTER,Rates,1004\1901669350,18-Nov-19,"32,641.12",
LONDON UNDERGROUND LTD,MCGINLEY SUPPORT SERVICES LTD,MR Construction Costs,1005\5109659100,28-Nov-19,"32,441.84",
LONDON BUS SERVICES LTD,TRAPEZE PTI LTD,Computer Consumables,1006\5109646588,05-Dec-19,"32,434.93",
LONDON UNDERGROUND LTD,MET SYSTEMS LTD,MR Construction Costs,1005\5109651043,18-Nov-19,"32,303.71",
TFL CORPORATE,MEDIAEDGE,Radio TV Press Poster Cinema Airtime And Space,1001\5109649112,25-Nov-19,"32,286.70",
LONDON UNDERGROUND LTD,MORGAN SINDALL  PLC,MR Construction Costs,1005\5109649784,25-Nov-19,"32,180.61",
LONDON UNDERGROUND LTD,BERWIN LEIGHTON PAISNER,Legal Fees,1005\5109654178,20-Nov-19,"32,161.00",
TRANSPORT TRADING LTD,DAISY COMMUNICATIONS LTD,Telephony Fixed,1004\5109641216,18-Nov-19,"32,145.22",
LONDON UNDERGROUND LTD,MORSON HUMAN RESOURCES LTD,Agency Staff,1005\5109629580,11-Nov-19,"32,114.61",
CYCLE HIRE SCHEME,JOURNEYCALL LTD,Ticket & Pass Production,1016\5109649757,04-Dec-19,"32,104.16",
RAIL FOR LONDON LIMITED,LOCKEN,Maintenance Materials,1020\5109632162,13-Nov-19,"32,050.81",
LUL NOMINEE BCV LIMITED,CLESHAR CONTRACT SERVICES LTD,Track General Maintenance,1033\5109647287,13-Nov-19,"32,027.16",
TRANSPORT TRADING LTD,THE BIG BUS COMPANY,Ticket & Pass Production,1004\1901669199,27-Nov-19,"31,900.41",
SURFACE TRANSPORT CORP,ARDENT MANAGEMENT LTD,Planning & Development Consultancy,1002\5109652443,26-Nov-19,"31,703.50",
DOCKLANDS LIGHT RAILWAY,OTB ENGINEERING LTD,Professional Engineering Services,1012\5109649543,04-Dec-19,"31,685.50",
DOCKLANDS LIGHT RAILWAY,OTB ENGINEERING LTD,Professional Engineering Services,1012\5109651342,03-Dec-19,"31,643.00",
LONDON UNDERGROUND LTD,ISS LTD,Traction Current,1005\5109649617,04-Dec-19,"31,530.91",
DOCKLANDS LIGHT RAILWAY,CGL RAIL,Civil Engineering Construction Works,1012\5109658298,27-Nov-19,"31,510.40",
TFL CORPORATE,WSO2 UK LIMITED,Software Maintenance,1001\5109640476,25-Nov-19,"31,500.00",
TFL CORPORATE,MOTT MACDONALD LIMITED,Planning & Development Consultancy,1001\5109640616,25-Nov-19,"31,500.00",
TFL CORPORATE,TNS UK LTD,Customer Research And Counts,1001\5109633475,13-Nov-19,"31,475.00",
LUL NOMINEE BCV LIMITED,VAE GMBH,Track General Maintenance,1033\5109659958,06-Dec-19,"31,400.00",
LONDON UNDERGROUND LTD,SOLUTION RAIL LIMITED,MR Construction Costs,1005\5109655011,26-Nov-19,"31,386.15",
LONDON UNDERGROUND LTD,NATIVE LAND LTD,Planning & Development Consultancy,1005\5109658920,27-Nov-19,"31,250.00",
TRANSPORT TRADING LTD,JOURNEYCALL LTD,Ticket & Pass Production,1004\5109649883,04-Dec-19,"31,234.50",
SURFACE TRANSPORT CORP,CSTS LTD,Traffic Signals,1002\5109658882,27-Nov-19,"31,181.74",
LUL NOMINEE SSL LIMITED,CLESHAR CONTRACT SERVICES LTD,Track General Maintenance,1031\5109647310,11-Nov-19,"31,164.93",
DIAL A RIDE,BRENT COMMUNITY TRANSPORT,Operator Costs,1010\5109651283,22-Nov-19,"30,968.61",
TFL CORPORATE,ATKINS LIMITED,Management & Support Consultancy,1001\5109630697,11-Nov-19,"30,950.00",
LONDON UNDERGROUND LTD,GBM SERVICES LTD,Operational Cleaning,1005\5109646405,11-Nov-19,"30,835.97",
SURFACE TRANSPORT CORP,TELENT TECHNOLOGY SERVICES LTD,Road Maintenance,1002\5109641916,13-Nov-19,"30,806.36",
LONDON UNDERGROUND LTD,PERCY LANE PRODUCTS,Maintenance Materials,1005\5109647743,19-Nov-19,"30,769.06",
TFL CORPORATE,PROBRAND LTD,Computer Hardware,1001\5109635916,20-Nov-19,"30,726.80",
LONDON BUS SERVICES LTD,SULLIVAN BUS & COACH LTD,Rail Replacement Service Costs,1006\1900043300,11-Nov-19,"30,717.51",
LONDON BUS SERVICES LTD,FREIGHT TRANSPORT ASSOCIATION,Management & Support Consultancy,1006\5109649357,27-Nov-19,"30,710.00",
LUL NOMINEE SSL LIMITED,MORSON HUMAN RESOURCES LTD,Track General Maintenance,1031\5109654126,20-Nov-19,"30,707.36",
LONDON UNDERGROUND LTD,NETWORK RAIL,Traction Current,1005\5109647046,02-Dec-19,"30,670.02",
LONDON UNDERGROUND LTD,ALPHABET (GB) LIMITED,Vehicle Operating Leases,1005\5109649077,27-Nov-19,"30,667.51",
LUL NOMINEE SSL LIMITED,CLANCY DOCWRA LTD,Building Maintenance & Repairs,1031\5109641925,13-Nov-19,"30,585.50",
TFL CORPORATE,MEDIAEDGE,Radio TV Press Poster Cinema Airtime And Space,1001\5109641343,13-Nov-19,"30,577.14",
LONDON UNDERGROUND LTD,PROBRAND LTD,Computer Software,1005\5109645944,13-Nov-19,"30,472.32",
SURFACE TRANSPORT CORP,CAPITA BUSINESS SERVICES LTD,CCS Service Contract,1002\5109637281,20-Nov-19,"30,431.66",
DOCKLANDS LIGHT RAILWAY,TRACK AND BUILD LTD.,Civil Engineering Construction Works,1012\5109661381,04-Dec-19,"30,359.16",
RFL (INFRASTRUCTURE) LTD,PROBRAND LTD,Computer Software,1025\5109623126,25-Nov-19,"30,345.00",
DOCKLANDS LIGHT RAILWAY,SIMOCO EMEA LTD,Professional Engineering Services,1012\5109661293,04-Dec-19,"30,304.49",
LUL NOMINEE BCV LIMITED,LIONWELD KENNEDY FLOORING LTD,Signalling Systems,1033\5109649607,13-Nov-19,"30,254.40",
TRANSPORT TRADING LTD,PA CONSULTING SERVICES LTD,IT Consultancy,1004\5109616594,11-Nov-19,"30,080.00",
LONDON UNDERGROUND LTD,CBRE LIMITED,Planning & Development Consultancy,1005\5109641966,25-Nov-19,"30,000.00",
LONDON UNDERGROUND LTD,PLOWMAN CRAVEN & ASSOC LTD,Planning & Development Consultancy,1005\5109655242,25-Nov-19,"30,000.00",
TFL CORPORATE,VCCP GROUP LLP,Photography And Video Design And Production,1001\5109649074,04-Dec-19,"29,871.65",
LONDON UNDERGROUND LTD,LENDLEASE JACOBS JOINT VENTURE,MR Construction Costs,1005\5109647144,27-Nov-19,"29,746.90",
SURFACE TRANSPORT CORP,CONWAY AECOM LTD,Contracted Services - Highway Bridges,1002\5109654806,02-Dec-19,"29,734.00",
TFL CORPORATE,VCCP GROUP LLP,Production Artwork And Design For Marketing,1001\5109632924,13-Nov-19,"29,696.12",
TFL CORPORATE,ENVIRONMENT AGENCY,Management & Support Consultancy,1001\5109650923,14-Nov-19,"29,690.00",
LONDON UNDERGROUND LTD,MET OFFICE,Security Equipment,1005\5109649110,04-Dec-19,"29,689.40",
TFL CORPORATE,AXON SOLUTIONS LTD,Computer Software,1001\5109637515,18-Nov-19,"29,477.40",
TRANSPORT TRADING LTD,CITY OF WESTMINSTER,Rates,1004\1901669692,02-Dec-19,"29,452.71",
LONDON UNDERGROUND LTD,W A FAIRHURST & PARTNERS,Planning & Development Consultancy,1005\5109642080,12-Nov-19,"29,431.22",
SURFACE TRANSPORT CORP,EVERSHEDS,Legal Fees,1002\5109651792,18-Nov-19,"29,339.20",
LONDON UNDERGROUND LTD,ONE TRANSPORT LIMITED,Travel to/from work (Unsocial Hours),1005\5109651333,18-Nov-19,"29,293.18",
LONDON UNDERGROUND LTD,DENTONS UKMEA LLP,Legal Fees,1005\5109660829,02-Dec-19,"29,281.00",
LONDON UNDERGROUND LTD,BRYEN & LANGLEY LTD,Building Maintenance & Repairs,1005\5109641832,20-Nov-19,"29,212.06",
DOCKLANDS LIGHT RAILWAY,EXCEL EXHIBITION CENTRE,Professional Engineering Services,1012\5109662707,03-Dec-19,"29,166.67",
LONDON UNDERGROUND LTD,LENDLEASE JACOBS JOINT VENTURE,MR Construction Costs,1005\5109647140,27-Nov-19,"29,073.00",
LONDON BUS SERVICES LTD,SKANSKA CONTRUCTIONS UK LTD,Building Maintenance & Repairs,1006\5109646267,13-Nov-19,"29,019.54",
TFL CORPORATE,PROBRAND LTD,Software Maintenance,1001\5109642065,11-Nov-19,"28,990.00",
SURFACE TRANSPORT CORP,SIEMENS,Road Maintenance,1002\5109642178,13-Nov-19,"28,950.65",
LONDON UNDERGROUND LTD,SKANSKA CONTRUCTIONS UK LTD,Civil Engineering Construction Works,1005\5109661544,04-Dec-19,"28,685.94",
SURFACE TRANSPORT CORP,TELENT TECHNOLOGY SERVICES LTD,Traffic Signals,1002\5109647778,20-Nov-19,"28,681.16",
TFL CORPORATE,INTERFLEET TECHNOLOGY LIMITED,Management & Support Consultancy,1001\5109649747,18-Nov-19,"28,654.81",
TRANSPORT TRADING LTD,NOVACROFT DIRECT LTD,Ticket & Pass Production,1004\5109650267,19-Nov-19,"28,647.45",
SURFACE TRANSPORT CORP,TELENT TECHNOLOGY SERVICES LTD,Traffic Signals,1002\5109647182,13-Nov-19,"28,608.82",
SURFACE TRANSPORT CORP,LONDON BOROUGH OF LAMBETH,Borough Services - Claim Against Pr Yr Accrual,1002\1900061437,25-Nov-19,"28,599.98",
SURFACE TRANSPORT CORP,LONDON COUNCILS LTD,Taxicard Funding,1002\1900062643,27-Nov-19,"28,598.00",
LONDON UNDERGROUND LTD,NETWORK RAIL,National Rail Long Term Charges,1005\5109641849,20-Nov-19,"28,584.37",
LONDON BUS SERVICES LTD,ARRIVA LONDON NORTH LTD,Rail Replacement Service Costs,1006\1900043302,18-Nov-19,"28,529.68",
TFL CORPORATE,GARDINER & THEOBALD LLP,Management & Support Consultancy,1001\5109632463,13-Nov-19,"28,501.00",
SURFACE TRANSPORT CORP,RINGWAY JACOBS LIMITED,Statutory Ads Notices Communications & Consultatio,1002\5109655312,02-Dec-19,"28,400.00",
LONDON UNDERGROUND LTD,BOMBARDIER TRANSPORT UK,Maintenance Materials,1005\5109637831,18-Nov-19,"28,400.00",
TRANSPORT TRADING LTD,CITY OF WESTMINSTER,Rates,1004\1901669637,28-Nov-19,"28,296.00",
SURFACE TRANSPORT CORP,SIEMENS,Traffic Signals,1002\5109658654,27-Nov-19,"28,289.14",
LONDON UNDERGROUND LTD,WILLMOTT DIXON INTERIORS LTD,MR Construction Costs,1005\5109660608,02-Dec-19,"28,198.67",
LONDON BUS SERVICES LTD,SULLIVAN BUS & COACH LTD,Rail Replacement Service Costs,1006\1900043301,11-Nov-19,"28,195.93",
RAIL FOR LONDON LIMITED,XANTA LIMITED,Professional Engineering Services,1020\5109650484,22-Nov-19,"28,160.53",
LONDON BUS SERVICES LTD,TRAPEZE PTI LTD,Maintenance of Plant & Equipment,1006\5109644785,13-Nov-19,"28,090.77",
LUL NOMINEE SSL LIMITED,CLEVELAND CABLE CO LTD,Civil Engineering Construction Works,1031\5109616088,18-Nov-19,"27,977.00",
RAIL FOR LONDON LIMITED,UK POWER NETWORKS LTD,Management & Support Consultancy,1020\5109639790,20-Nov-19,"27,906.33",
TFL CORPORATE,ARK SIGNALLING CONSULTANCY,Management & Support Consultancy,1001\5109649949,18-Nov-19,"27,770.00",
TRANSPORT TRADING LTD,THE LONDON EYE COMPANY LTD,Ticket & Pass Production,1004\1901669280,18-Nov-19,"27,707.50",
TRANSPORT TRADING LTD,CITY OF WESTMINSTER,Rates,1004\1901669640,28-Nov-19,"27,666.00",
LUL NOMINEE SSL LIMITED,TOTAL RAIL SOLUTIONS,Track General Maintenance,1031\5109647703,19-Nov-19,"27,640.00",
LUL NOMINEE BCV LIMITED,JOHN BRADLEY & SON (SPRINGS) LTD,Track General Maintenance,1033\5109645903,02-Dec-19,"27,600.00",
LONDON UNDERGROUND LTD,BOMBARDIER TRANSPORT UK,Maintenance Materials,1005\5109653712,20-Nov-19,"27,600.00",
LONDON UNDERGROUND LTD,ALLSTAR BUSINESS SOLUTIONS,Vehicle Running Costs,1005\5109655325,25-Nov-19,"27,596.20",
TRANSPORT TRADING LTD,THE LONDON EYE COMPANY LTD,Ticket & Pass Production,1004\1901669279,18-Nov-19,"27,531.67",
LONDON UNDERGROUND LTD,SCHINDLER LTD,Lift Maintenance,1005\5109658537,27-Nov-19,"27,508.72",
TFL CORPORATE,THE LAW SOCIETY,Professional & Academic Fees - Employees,1001\1900068385,13-Nov-19,"27,486.00",
SURFACE TRANSPORT CORP,TELENT TECHNOLOGY SERVICES LTD,Road Maintenance,1002\5109655973,04-Dec-19,"27,474.76",
TFL CORPORATE,LENDLEASE JACOBS JOINT VENTURE,MR Construction Costs,1001\5109649531,20-Nov-19,"27,430.01",
LONDON UNDERGROUND LTD,OVE ARUP & PARTNERS LTD,Planning & Development Consultancy,1005\5109655507,25-Nov-19,"27,354.38",
SURFACE TRANSPORT CORP,TELENT TECHNOLOGY SERVICES LTD,Traffic Signals,1002\5109647774,20-Nov-19,"27,346.05",
LONDON BUS SERVICES LTD,INTEROUTE NETWORK LTD ,Maintenance of Plant & Equipment,1006\5109635356,18-Nov-19,"27,295.25",
TRANSPORT TRADING LTD,TELENT TECHNOLOGY SERVICES LTD,Equipment Repairs & Maintenance,1004\5109637412,20-Nov-19,"27,287.48",
TFL CORPORATE,CAPITA BUSINESS SERVICES LTD,Recruitment Expenses,1001\5109641561,25-Nov-19,"27,270.60",
LONDON UNDERGROUND LTD,SOUTH WESTERN RAILWAY,National Rail Qualifying Expenditure Charges,1005\5109641235,27-Nov-19,"27,270.31",
LUL NOMINEE BCV LIMITED,PROGRESS RAIL SERVICES UK LTD,Track General Maintenance,1033\5109638020,20-Nov-19,"27,240.00",
LONDON BUS SERVICES LTD,AECOM LTD,IT Consultancy,1006\5109631219,20-Nov-19,"27,184.64",
VICTORIA COACH STATN LTD,ADDLESHAW GODDARD LLP,Legal Fees,1008\5109651823,18-Nov-19,"27,121.50",
LONDON BUS SERVICES LTD,CONWAY AECOM LTD,Contracted Services - Roads,1006\5109659165,02-Dec-19,"27,032.56",
TFL CORPORATE,ENTERPRISE AMS GROUP LTD,IT Consultancy,1001\5109642093,27-Nov-19,"27,025.00",
TRANSPORT TRADING LTD,NOVACROFT DIRECT LTD,Ticket & Pass Production,1004\5109650272,19-Nov-19,"27,000.00",
LUL NOMINEE SSL LIMITED,MCGINLEY SUPPORT SERVICES LTD,Track General Maintenance,1031\5109659153,28-Nov-19,"26,995.20",
LONDON UNDERGROUND LTD,NCP SERVICES LTD,Planning & Development Consultancy,1005\5109645024,27-Nov-19,"26,986.00",
TFL CORPORATE,AB PUBLISHING LIMITED,Storage And Distribution Of Publicity Materials,1001\5109665099,06-Dec-19,"26,965.10",
LONDON UNDERGROUND LTD,MORSON HUMAN RESOURCES LTD,MR Construction Costs,1005\5109649800,13-Nov-19,"26,882.00",
LONDON TRANSPORT MUSEUM,DISPLAYWAYS,Production Artwork And Design For Marketing,1011\5109649083,13-Nov-19,"26,878.00",
LONDON UNDERGROUND LTD,SIEMENS,MR Construction Costs,1005\5109653723,04-Dec-19,"26,850.30",
LONDON UNDERGROUND LTD,KONE PLC,Escalators,1005\5109646381,18-Nov-19,"26,847.46",
LONDON UNDERGROUND LTD,TELENT TECHNOLOGY SERVICES LTD,Equipment Repairs & Maintenance,1005\5109639900,13-Nov-19,"26,834.78",
TRANSPORT TRADING LTD,NOVACROFT DIRECT LTD,Ticket & Pass Production,1004\5109650259,19-Nov-19,"26,760.47",
LUL NOMINEE SSL LIMITED,1STINRAIL LIMITED,MR Construction Costs,1031\5109652550,20-Nov-19,"26,714.94",
LONDON UNDERGROUND LTD,THALES TRANSPORT & SECURITY LIMITED,Computer Hardware,1005\5109633463,13-Nov-19,"26,698.00",
LONDON UNDERGROUND LTD,BARWIT CONTROL SYSTEMS LTD,Escalators,1005\5109639524,19-Nov-19,"26,670.00",
TFL CORPORATE,COMPUTACENTER PLC,Computer Hardware,1001\5109642791,27-Nov-19,"26,574.00",
LUL NOMINEE SSL LIMITED,CLESHAR CONTRACT SERVICES LTD,Track General Maintenance,1031\5109647237,13-Nov-19,"26,563.68",
LUL NOMINEE SSL LIMITED,CLESHAR CONTRACT SERVICES LTD,Track General Maintenance,1031\5109647271,13-Nov-19,"26,512.08",
LUL NOMINEE BCV LIMITED,MODULAR DISTRIBUTION SYSTEMS,Lifts & Escalators stock issues,1033\5109649148,04-Dec-19,"26,485.80",
LONDON UNDERGROUND LTD,NETWORK RAIL,National Rail Fixed Track Access Charges,1005\5109647039,02-Dec-19,"26,474.27",
TFL CORPORATE,GVA GRIMLEY LTD ,Purchase of Land & Buildings,1001\1900068540,20-Nov-19,"26,445.00",
SURFACE TRANSPORT CORP,PINSENTS MASONS,Legal Fees,1002\5109651859,18-Nov-19,"26,429.70",
TFL CORPORATE,COMPUTACENTER PLC,Computer Hardware,1001\5109642801,27-Nov-19,"26,265.00",
TFL CORPORATE,MEDIAEDGE,Social Media And Digital Advertising Space,1001\5109639590,11-Nov-19,"26,191.08",
LONDON UNDERGROUND LTD,ALLSTAR BUSINESS SOLUTIONS,Vehicle Running Costs,1005\5109655433,25-Nov-19,"26,185.63",
LONDON UNDERGROUND LTD,GARDINER & THEOBALD LLP,Planning & Development Consultancy,1005\5109656059,27-Nov-19,"26,000.00",
LONDON BUS SERVICES LTD,SULLIVAN BUS & COACH LTD,Rail Replacement Service Costs,1006\1900043309,12-Nov-19,"25,992.02",
SURFACE TRANSPORT CORP,ATKINS LIMITED,Contracted Services - Highway Bridges,1002\5109655406,27-Nov-19,"25,979.98",
SURFACE TRANSPORT CORP,CAPITA BUSINESS SERVICES LTD,CCS Service Contract,1002\5109637165,20-Nov-19,"25,973.20",
LONDON UNDERGROUND LTD,HR KILNS LTD,Equipment Repairs & Maintenance,1005\5109635764,25-Nov-19,"25,906.00",
LONDON UNDERGROUND LTD,APPROVED INSPECTOR SERVICES LTD,MR Construction Costs,1005\5109654088,20-Nov-19,"25,905.00",
LONDON UNDERGROUND LTD,NETWORK RAIL,National Rail Long Term Charges,1005\5109641851,20-Nov-19,"25,877.63",
LONDON UNDERGROUND LTD,DELATIM LIMITED,MR Construction Costs,1005\5109658925,27-Nov-19,"25,795.75",
TRANSPORT TRADING LTD,WAVE UTILITIES,Water,1004\1901669354,19-Nov-19,"25,768.18",
LONDON UNDERGROUND LTD,TRACKWORK RESOURCES LTD,MR Construction Costs,1005\5109647919,25-Nov-19,"25,765.06",
LUL NOMINEE SSL LIMITED,CLEVELAND CABLE CO LTD,Civil Engineering Construction Works,1031\5109616091,18-Nov-19,"25,738.84",
CYCLE HIRE SCHEME,SERCO LTD,Concession Maintenance Charge,1016\5109641418,20-Nov-19,"25,701.39",
LONDON UNDERGROUND LTD,LANES GROUP PLC,Building Maintenance & Repairs,1005\5109642991,20-Nov-19,"25,687.16",
DIAL A RIDE,HACKNEY COMMUNITY TRANSPORT,Operator Costs,1010\5109634640,13-Nov-19,"25,679.83",
TFL CORPORATE,EVERSHEDS,Legal Fees,1001\5109651791,18-Nov-19,"25,656.00",
LONDON UNDERGROUND LTD,SCHINDLER LTD,Escalators,1005\5109655781,25-Nov-19,"25,628.49",
DOCKLANDS LIGHT RAILWAY,RAILX UK LTD,Civil Engineering Construction Works,1012\5109633223,11-Nov-19,"25,628.06",
TFL CORPORATE,EDENRED (UK GROUP) LIMITED,Staff Welfare Benefits,1001\5109663432,04-Dec-19,"25,625.00",
LONDON UNDERGROUND LTD,T-T PUMPS LTD,Building Maintenance & Repairs,1005\5109646985,13-Nov-19,"25,607.40",
LUL NOMINEE SSL LIMITED,MCGINLEY SUPPORT SERVICES LTD,Track General Maintenance,1031\5109655901,25-Nov-19,"25,571.20",
LONDON UNDERGROUND LTD,BYWATERS (LEYTON) LIMITED,Non Recyclable Waste Disposal/Refuse Collection,1005\5109633358,13-Nov-19,"25,534.73",
LONDON UNDERGROUND LTD,LANES GROUP PLC,Building Maintenance & Repairs,1005\5109643005,20-Nov-19,"25,492.41",
TFL CORPORATE,INTERFLEET TECHNOLOGY LIMITED,Management & Support Consultancy,1001\5109636618,20-Nov-19,"25,467.85",
LONDON UNDERGROUND LTD,ALLSTAR BUSINESS SOLUTIONS,Vehicle Running Costs,1005\5109654667,25-Nov-19,"25,433.30",
LONDON BUS SERVICES LTD,TRUEFORM ENGINEERING LTD,Purchase of Bus Shelters,1006\5109664900,06-Dec-19,"25,402.23",
LONDON BUS SERVICES LTD,TAIT EUROPE LTD,Computer Hardware,1006\5109640703,20-Nov-19,"25,375.00",
TFL CORPORATE,INTERFLEET TECHNOLOGY LIMITED,Management & Support Consultancy,1001\5109639676,25-Nov-19,"25,369.20",
LONDON BUS SERVICES LTD,ESOTEC LIMITED,Building Maintenance & Repairs,1006\5109641523,27-Nov-19,"25,366.41",
RAIL FOR LONDON LIMITED,PCG ASSOCIATES LIMITED,Professional Engineering Services,1020\5109662988,04-Dec-19,"25,288.00",
TRANSPORT TRADING LTD,LONDON BOROUGH OF SOUTHWARK,Rates,1004\1901669618,28-Nov-19,"25,283.00",
TFL CORPORATE,THE 4OC LIMITED,Professional Engineering Services,1001\5109651886,03-Dec-19,"25,215.00",
LONDON UNDERGROUND LTD,KONE PLC,MR Construction Costs,1005\5109635712,18-Nov-19,"25,212.45",
RAIL FOR LONDON LIMITED,UNIPART RAIL LTD,Management & Support Consultancy,1020\5109646544,04-Dec-19,"25,190.00",
LUL NOMINEE SSL LIMITED,SIEMENS,Fleet,1031\5109636537,18-Nov-19,"25,172.85",
LONDON UNDERGROUND LTD,SKANSKA CONTRUCTIONS UK LTD,Building Maintenance & Repairs,1005\5109661546,04-Dec-19,"25,158.39",
LUL NOMINEE SSL LIMITED,MORSON HUMAN RESOURCES LTD,Track General Maintenance,1031\5109654155,27-Nov-19,"25,086.40",
LONDON UNDERGROUND LTD,MORSON HUMAN RESOURCES LTD,MR Construction Costs,1005\5109649795,27-Nov-19,"25,045.20",
SURFACE TRANSPORT CORP,LONDON BOROUGH OF LAMBETH,Borough Services - Claim Against Pr Yr Accrual,1002\1900062023,25-Nov-19,"25,032.00",
RAIL FOR LONDON LIMITED,THALES RAIL SIGNALLING SOLUTIONS,Management & Support Consultancy,1020\5109646140,20-Nov-19,"25,000.00",
TFL CORPORATE,LOUGHBOROUGH UNI ENTERPRISES LTD,Planning & Development Consultancy,1001\5109646475,03-Dec-19,"25,000.00",
TFL CORPORATE,LONDON BOROUGH OF WALTHAM FOREST,Planning & Development Consultancy,1001\5109659103,02-Dec-19,"25,000.00",
LONDON UNDERGROUND LTD,CBRE LIMITED,Planning & Development Consultancy,1005\5109641964,25-Nov-19,"25,000.00",
LONDON BUS SERVICES LTD,TRAPEZE PTI LTD,Maintenance of Plant & Equipment,1006\5109644783,13-Nov-19,"25,000.00",
LUL NOMINEE SSL LIMITED,NORTHERN ESCALATOR INST LIMITED,Track General Maintenance,1031\5109641202,27-Nov-19,"25,000.00",
SURFACE TRANSPORT CORP,STRAIGHTFORWARD COMMUNICATIONS LTD,Photography And Video Design And Production,1002\5109660996,04-Dec-19,"24,982.00",
SURFACE TRANSPORT CORP,HUNTRESS SEARCH LTD,Passenger Surveys,1002\5109632432,13-Nov-19,"24,960.20",
RAIL FOR LONDON LIMITED,UK POWER NETWORKS LTD,Management & Support Consultancy,1020\5109639816,20-Nov-19,"24,929.24",
LONDON BUS SERVICES LTD,TRUEFORM ENGINEERING LTD,Purchase of Bus Shelters,1006\5109664887,06-Dec-19,"24,923.66",
LUL NOMINEE SSL LIMITED,SCHUNK CARBON TECHNOLOGY LIMITED,Fleet,1031\5109664996,05-Dec-19,"24,881.18",
RAIL FOR LONDON LIMITED,HYDER CONSULTING (UK) LTD,Professional Engineering Services,1020\5109650719,18-Nov-19,"24,874.28",
SURFACE TRANSPORT CORP,SIEMENS,Traffic Signals,1002\5109653785,20-Nov-19,"24,860.84",
LONDON UNDERGROUND LTD,ALLSTAR BUSINESS SOLUTIONS,Vehicle Running Costs,1005\5109660296,02-Dec-19,"24,741.05",
LONDON UNDERGROUND LTD,ENGIE SERVICES LTD,Equipment Repairs & Maintenance,1005\5109655561,25-Nov-19,"24,664.55",
LONDON UNDERGROUND LTD,ALPHABET (GB) LIMITED,Operating Lease Expense - Motor Vehicles,1005\5109650003,27-Nov-19,"24,554.40",
LONDON UNDERGROUND LTD,ROTHSCHILD LONDON,Minor Property Expenses / Receipts,1005\1900211587,18-Nov-19,"24,552.46",
LUL NOMINEE SSL LIMITED,MORSON HUMAN RESOURCES LTD,Track General Maintenance,1031\5109655605,25-Nov-19,"24,420.68",
LONDON UNDERGROUND LTD,TELENT TECHNOLOGY SERVICES LTD,Professional Engineering Services,1005\5109627924,11-Nov-19,"24,406.52",
TFL CORPORATE,MEDIAEDGE,Radio TV Press Poster Cinema Airtime And Space,1001\5109639577,11-Nov-19,"24,334.31",
LUL NOMINEE SSL LIMITED,KN NETWORK SERVICES LTD,Civil Engineering Construction Works,1031\5109651059,04-Dec-19,"24,322.41",
LONDON UNDERGROUND LTD,BROOKVEX IMS LTD,MR Construction Costs,1005\5109652551,20-Nov-19,"24,281.27",
LONDON TRANSPORT MUSEUM,GBM SERVICES LTD,Office Cleaning,1011\5109660680,04-Dec-19,"24,252.40",
LONDON UNDERGROUND LTD,AUSTIN REYNOLDS LTD,Fleet,1005\5109644305,26-Nov-19,"24,222.00",
TRANSPORT TRADING LTD,THE ORIG. LONDON SIGHTSEE. TOUR LTD,Ticket & Pass Production,1004\1901669022,20-Nov-19,"24,220.35",
SURFACE TRANSPORT CORP,EDF ENERGY,Electricity,1002\5109646578,18-Nov-19,"24,096.38",
LUL NOMINEE SSL LIMITED,TRATOS LTD,Electrical & Electronic Engineering,1031\5109647249,11-Nov-19,"23,933.70",
LUL NOMINEE SSL LIMITED,CLESHAR CONTRACT SERVICES LTD,Track General Maintenance,1031\5109647299,13-Nov-19,"23,925.80",
LONDON UNDERGROUND LTD,EVERSHEDS,Legal Fees,1005\5109651779,18-Nov-19,"23,907.20",
TFL CORPORATE,MOTT MACDONALD LIMITED,Planning & Development Consultancy,1001\5109654805,04-Dec-19,"23,882.55",
DOCKLANDS LIGHT RAILWAY,CH2M HILL UNITED KINGDOM,Professional Engineering Services,1012\5109647169,04-Dec-19,"23,816.25",
LUL NOMINEE SSL LIMITED,MORS SMITT STS SIGNALS,Equipment Repairs & Maintenance,1031\5109650737,18-Nov-19,"23,756.80",
LONDON UNDERGROUND LTD,CLANCY DOCWRA LTD,Civil Engineering Construction Works,1005\5109661395,04-Dec-19,"23,713.94",
TFL CORPORATE,EDENRED (UK GROUP) LIMITED,Staff Welfare Benefits,1001\5109654061,20-Nov-19,"23,707.67",
RAIL FOR LONDON LIMITED,UK POWER NETWORKS LTD,Management & Support Consultancy,1020\5109639791,20-Nov-19,"23,648.01",
LONDON UNDERGROUND LTD,MULALLEY & CO LTD,Planning & Development Consultancy,1005\5109647193,02-Dec-19,"23,614.36",
LONDON UNDERGROUND LTD,GRIMSHAW ARCHITECTS LLP,Other Professional Fees,1005\5109660058,04-Dec-19,"23,470.00",
LUL NOMINEE SSL LIMITED,CLESHAR CONTRACT SERVICES LTD,Track General Maintenance,1031\5109647284,13-Nov-19,"23,454.43",
RAIL FOR LONDON LIMITED,UK POWER NETWORKS LTD,Management & Support Consultancy,1020\5109639819,20-Nov-19,"23,448.01",
RAIL FOR LONDON LIMITED,UK POWER NETWORKS LTD,Management & Support Consultancy,1020\5109639822,20-Nov-19,"23,448.01",
RAIL FOR LONDON LIMITED,UK POWER NETWORKS LTD,Management & Support Consultancy,1020\5109639827,20-Nov-19,"23,448.01",
TRANSPORT TRADING LTD,DELOITTE,Planning & Development Consultancy,1004\5109649725,20-Nov-19,"23,405.00",
LUL NOMINEE SSL LIMITED,CLESHAR CONTRACT SERVICES LTD,Track General Maintenance,1031\5109647279,13-Nov-19,"23,387.18",
DOCKLANDS LIGHT RAILWAY,EDF ENERGY,Electricity,1012\1900004990,11-Nov-19,"23,336.19",
TFL CORPORATE,MOTT MACDONALD LIMITED,Planning & Development Consultancy,1001\5109647860,13-Nov-19,"23,289.57",
RAIL FOR LONDON LIMITED,UK POWER NETWORKS LTD,Management & Support Consultancy,1020\5109639794,20-Nov-19,"23,288.41",
LONDON UNDERGROUND LTD,GEOFFREY OSBORNE LIMITED,Civil Engineering Construction Works,1005\5109663378,04-Dec-19,"23,275.75",
RAIL FOR LONDON LIMITED,WABTEC RAIL LIMITED,Plant & Equipment Purchases,1020\5109646355,02-Dec-19,"23,260.59",
TRANSPORT TRADING LTD,LONDON BOROUGH OF NEWHAM ,Rates,1004\1901669590,28-Nov-19,"23,252.00",
DOCKLANDS LIGHT RAILWAY,CLESHAR CONTRACT SERVICES LTD,Civil Engineering Construction Works,1012\5109638196,11-Nov-19,"23,240.41",
TFL CORPORATE,MORSON HUMAN RESOURCES LTD,Agency Staff,1001\5109629562,11-Nov-19,"23,228.04",
TRANSPORT TRADING LTD,HA MARKS LTD,Maintenance of Plant & Equipment,1004\5109659094,02-Dec-19,"23,220.00",
LUL NOMINEE SSL LIMITED,INTERSERVE,Track General Maintenance,1031\5109634766,13-Nov-19,"23,162.59",
LONDON UNDERGROUND LTD,ALLSTAR BUSINESS SOLUTIONS,Vehicle Running Costs,1005\5109655321,25-Nov-19,"23,136.33",
LONDON BUS SERVICES LTD,SULLIVAN BUS & COACH LTD,Rail Replacement Service Costs,1006\1900043310,12-Nov-19,"23,116.90",
LONDON UNDERGROUND LTD,POWERDAY PLC,Non Recyclable Waste Disposal/Refuse Collection,1005\5109633230,13-Nov-19,"23,082.92",
LONDON UNDERGROUND LTD,KN NETWORK SERVICES LTD,MR Construction Costs,1005\5109649635,04-Dec-19,"22,971.12",
LUL NOMINEE SSL LIMITED,KNORR-BREMSE RAIL LTD ,Fleet,1031\5109632599,11-Nov-19,"22,952.00",
LUL NOMINEE SSL LIMITED,KNORR-BREMSE RAIL LTD ,Fleet,1031\5109633171,13-Nov-19,"22,952.00",
LUL NOMINEE SSL LIMITED,KNORR-BREMSE RAIL LTD ,Fleet,1031\5109641667,25-Nov-19,"22,952.00",
LUL NOMINEE SSL LIMITED,KNORR-BREMSE RAIL LTD ,Fleet,1031\5109646827,02-Dec-19,"22,952.00",
LONDON UNDERGROUND LTD,MALCOLM READING CONSULTANTS,Planning & Development Consultancy,1005\5109652404,20-Nov-19,"22,950.00",
LUL NOMINEE SSL LIMITED,DPSS CABLING SERVICES LIMITED,MR Construction Costs,1031\5109647784,13-Nov-19,"22,877.63",
LONDON UNDERGROUND LTD,TELENT TECHNOLOGY SERVICES LTD,Equipment Repairs & Maintenance,1005\5109640768,27-Nov-19,"22,875.00",
LONDON UNDERGROUND LTD,GEOFFREY OSBORNE LIMITED,Civil Engineering Construction Works,1005\5109663419,04-Dec-19,"22,856.87",
RAIL FOR LONDON LIMITED,UK POWER NETWORKS LTD,Management & Support Consultancy,1020\5109639824,20-Nov-19,"22,794.18",
RAIL FOR LONDON LIMITED,UK POWER NETWORKS LTD,Management & Support Consultancy,1020\5109639828,20-Nov-19,"22,784.18",
TFL CORPORATE,TNS UK LTD,Customer Research And Counts,1001\5109633364,13-Nov-19,"22,750.00",
LUL NOMINEE SSL LIMITED,MITSUBISHI ELECTRIC EUROPE BV,Fleet,1031\5109632017,15-Nov-19,"22,700.00",
LUL NOMINEE BCV LIMITED,FAZAKERLEY REWINDS LTD,Fleet,1033\5109647701,27-Nov-19,"22,684.00",
TRANSPORT TRADING LTD,DESIGN RATIONALE LTD,Minor Property Expenses / Receipts,1004\5109663364,04-Dec-19,"22,621.75",
LUL NOMINEE SSL LIMITED,LANES GROUP PLC,Building Maintenance & Repairs,1031\5109642984,20-Nov-19,"22,601.38",
TFL CORPORATE,CAPITA BUSINESS SERVICES LTD,Recruitment Expenses,1001\5109641567,25-Nov-19,"22,400.00",
LONDON UNDERGROUND LTD,MORSON HUMAN RESOURCES LTD,MR Construction Costs,1005\5109649791,13-Nov-19,"22,342.24",
LONDON UNDERGROUND LTD,ONE TRANSPORT LIMITED,Travel to/from work (Unsocial Hours),1005\5109651250,18-Nov-19,"22,242.29",
RAIL FOR LONDON LIMITED,VOLKERRAIL SPECIALIST BUSINESSES LTD,Professional Engineering Services,1020\5109655269,25-Nov-19,"22,223.65",
LT MUSEUM TRADING LTD, RETRO VINTAGE WHOLESALE,Purchase of Souvenirs for Resale,1024\1900018363,25-Nov-19,"22,210.50",
LONDON UNDERGROUND LTD,TRENITALIA C2C LTD,National Rail Long Term Charges,1005\5109647678,27-Nov-19,"22,209.90",
LONDON UNDERGROUND LTD,MORSON HUMAN RESOURCES LTD,MR Construction Costs,1005\5109649788,13-Nov-19,"22,209.52",
LUL NOMINEE BCV LIMITED,NORA FLOORING SYSTEMS UK LTD,Maintenance Materials,1033\5109640282,25-Nov-19,"22,172.69",
DOCKLANDS LIGHT RAILWAY,TRACK AND BUILD LTD.,Civil Engineering Construction Works,1012\5109647857,14-Nov-19,"22,099.51",
LUL NOMINEE SSL LIMITED,CLEVELAND CABLE CO LTD,Civil Engineering Construction Works,1031\5109621974,18-Nov-19,"22,077.75",
TFL CORPORATE,FUSION PEOPLE LIMITED,Agency Staff,1001\5109648974,13-Nov-19,"22,027.68",
TRANSPORT TRADING LTD,MYSOCIETY LTD,Computer Hardware,1004\5109635779,18-Nov-19,"22,000.00",
LONDON UNDERGROUND LTD,LANES GROUP PLC,Building Maintenance & Repairs,1005\5109660633,04-Dec-19,"21,946.62",
LONDON BUS SERVICES LTD,TRUEFORM ENGINEERING LTD,Purchase of Bus Shelters,1006\5109649924,18-Nov-19,"21,814.83",
TFL CORPORATE,CLIFFORD CHANCE LLP,Legal Fees,1001\5109654960,25-Nov-19,"21,754.84",
LONDON UNDERGROUND LTD,MORSON HUMAN RESOURCES LTD,MR Construction Costs,1005\5109655747,02-Dec-19,"21,698.16",
LUL NOMINEE BCV LIMITED,MORGANITE ELECTRICAL CARBON LTD,Maintenance Materials,1033\5109647902,04-Dec-19,"21,680.00",
LUL NOMINEE SSL LIMITED,CONTITECH LUFTFEDERSYSTEME GMBH,Fleet,1031\5109644922,04-Dec-19,"21,657.20",
SURFACE TRANSPORT CORP,MEDIAEDGE,Radio TV Press Poster Cinema Airtime And Space,1002\5109641337,13-Nov-19,"21,637.12",
LONDON BUS SERVICES LTD,TRUEFORM ENGINEERING LTD,Maintenance of  Bus Stops,1006\5109664865,05-Dec-19,"21,589.68",
TRANSPORT TRADING LTD,BROOKVEX IMS LTD,Building Maintenance & Repairs,1004\5109651030,20-Nov-19,"21,511.92",
TFL CORPORATE,MORSON HUMAN RESOURCES LTD,Agency Staff,1001\5109634060,18-Nov-19,"21,472.44",
LONDON UNDERGROUND LTD,BT SERVICE AGILITY,Telephony Fixed,1005\1900211447,11-Nov-19,"21,471.98",
LUL NOMINEE SSL LIMITED,MITSUBISHI ELECTRIC EUROPE BV,Fleet,1031\5109652421,19-Nov-19,"21,450.00",
LONDON UNDERGROUND LTD,MORSON HUMAN RESOURCES LTD,MR Construction Costs,1005\5109636821,11-Nov-19,"21,428.96",
LONDON UNDERGROUND LTD,NETWORK RAIL,National Rail Performance Charges,1005\5109651891,20-Nov-19,"21,423.00",
RAIL FOR LONDON LIMITED,OTB ENGINEERING LTD,Professional Engineering Services,1020\5109652532,20-Nov-19,"21,391.50",
TFL CORPORATE,INTERFLEET TECHNOLOGY LIMITED,Management & Support Consultancy,1001\5109636027,18-Nov-19,"21,332.20",
LUL NOMINEE SSL LIMITED,TRACKWORK RESOURCES LTD,Track General Maintenance,1031\5109647914,13-Nov-19,"21,315.00",
LUL NOMINEE BCV LIMITED,AGGREGATE INDUSTRIES UK LTD,Maintenance Materials,1033\5109654618,20-Nov-19,"21,301.81",
TRANSPORT TRADING LTD,MOTT MACDONALD LIMITED,Management & Support Consultancy,1004\5109637420,20-Nov-19,"21,299.80",
LONDON UNDERGROUND LTD,MORSON HUMAN RESOURCES LTD,MR Construction Costs,1005\5109645945,11-Nov-19,"21,227.04",
LONDON UNDERGROUND LTD,MCGINLEY SUPPORT SERVICES LTD,MR Construction Costs,1005\5109659096,28-Nov-19,"21,222.40",
LONDON UNDERGROUND LTD,MCGINLEY SUPPORT SERVICES LTD,MR Construction Costs,1005\5109659113,28-Nov-19,"21,222.40",
TRANSPORT TRADING LTD,PETER BRETT ASSOCIATES LLP,Planning & Development Consultancy,1004\5109646971,13-Nov-19,"21,160.06",
LUL NOMINEE SSL LIMITED,HOPPECKE INDUSTRIAL BATTERIES,Stock Issues - Repairables,1031\5109653991,25-Nov-19,"21,097.44",
TFL CORPORATE,ZURICH ASSURANCE LIMITED,General Insurance,1001\5109663723,04-Dec-19,"21,091.41",
LUL NOMINEE BCV LIMITED,VAE GMBH,Track General Maintenance,1033\5109659957,06-Dec-19,"21,070.00",
LONDON UNDERGROUND LTD,NCP SERVICES LTD,Property Development-Planning & Development Consul,1005\5109645027,27-Nov-19,"21,067.38",
LONDON UNDERGROUND LTD,BYWATERS (LEYTON) LIMITED,Non Recyclable Waste Disposal/Refuse Collection,1005\5109633201,13-Nov-19,"21,053.90",
LUL NOMINEE BCV LIMITED,HAYLEY GROUP PLC,Maintenance Materials,1033\5109655248,25-Nov-19,"21,023.87",
TFL CORPORATE,TNS UK LTD,Customer Research And Counts,1001\5109640416,20-Nov-19,"21,000.00",
LONDON UNDERGROUND LTD,MONTAGU EVANS LLP,Planning & Development Consultancy,1005\5109656026,04-Dec-19,"21,000.00",
LUL NOMINEE SSL LIMITED,TIFLEX LTD,Maintenance Materials,1031\5109641471,02-Dec-19,"20,990.00",
LONDON UNDERGROUND LTD,AUGMENTAS GROUP LIMITED,IT Consultancy,1005\5109654825,21-Nov-19,"20,975.00",
LONDON UNDERGROUND LTD,FORD ELECTRONICS LTD,Computer Consumables,1005\5109650954,18-Nov-19,"20,891.25",
LONDON UNDERGROUND LTD,MORSON HUMAN RESOURCES LTD,MR Construction Costs,1005\5109655741,02-Dec-19,"20,871.20",
LONDON UNDERGROUND LTD,OCL RAIL LTD,MR Construction Costs,1005\5109660287,02-Dec-19,"20,867.60",
LONDON BUS SERVICES LTD,ABELLIO LONDON LTD,Rail Replacement Service Costs,1006\1900043190,11-Nov-19,"20,852.84",
LUL NOMINEE BCV LIMITED,SCHWIHAG GMBH,Track General Maintenance,1033\5109636837,22-Nov-19,"20,850.00",
LONDON UNDERGROUND LTD,HOLOPHANE EUROPE LTD,Heating & Lighting,1005\5109644320,27-Nov-19,"20,850.00",
SURFACE TRANSPORT CORP,CSTS LTD,Traffic Signals,1002\5109641460,13-Nov-19,"20,843.46",
LONDON UNDERGROUND LTD,SCHLATTER INDUSTRIES AG,Equipment Repairs & Maintenance,1005\5109562108,13-Nov-19,"20,765.11",
LONDON UNDERGROUND LTD,BT SERVICE AGILITY,Telephony Fixed,1005\1900211470,13-Nov-19,"20,747.76",
TFL CORPORATE,MORSON HUMAN RESOURCES LTD,Agency Staff,1001\5109629520,11-Nov-19,"20,738.34",
LONDON UNDERGROUND LTD,MORSON HUMAN RESOURCES LTD,MR Construction Costs,1005\5109655765,02-Dec-19,"20,736.56",
TFL CORPORATE,ENVIRONMENT AGENCY,Planning & Development Consultancy,1001\5109646386,27-Nov-19,"20,699.25",
TRANSPORT TRADING LTD,BBC FIRE PROTECTION LIMITED,Building Maintenance & Repairs,1004\5109640598,05-Dec-19,"20,697.49",
SURFACE TRANSPORT CORP,T-KARTOR SWEDEN AB,Design & Production Of Maps & Timetable Publicity,1002\5109641905,29-Nov-19,"20,640.00",
RAIL FOR LONDON LIMITED,LENDLEASE JACOBS JOINT VENTURE,Management & Support Consultancy,1020\5109656068,02-Dec-19,"20,580.40",
LONDON BUS SERVICES LTD,EDF ENERGY,Electricity,1006\5109646527,18-Nov-19,"20,568.10",
DOCKLANDS LIGHT RAILWAY,RJ POWER RAIL LIMITED,Civil Engineering Construction Works,1012\5109646249,11-Nov-19,"20,533.48",
LONDON UNDERGROUND LTD,HIMA-SELLA LTD,Maintenance of Plant & Equipment,1005\5109651998,27-Nov-19,"20,520.00",
SURFACE TRANSPORT CORP,BRITISH TELECOMMUNICATIONS PLC,Telephony Fixed,1002\5109632813,20-Nov-19,"20,478.53",
LONDON UNDERGROUND LTD,WILLMOTT DIXON INTERIORS LTD,MR Construction Costs,1005\5109660597,02-Dec-19,"20,396.14",
LUL NOMINEE BCV LIMITED,A&A ELECTRICAL DISTRIBUTORS LTD,Plant & Equipment Purchases,1033\5109662824,05-Dec-19,"20,387.48",
RFL (INFRASTRUCTURE) LTD,SIEMENS,Computer Consumables,1025\5109628513,27-Nov-19,"20,346.30",
TFL CORPORATE,JACOBS U.K LIMITED,Planning & Development Consultancy,1001\5109644846,02-Dec-19,"20,300.91",
LONDON UNDERGROUND LTD,CPS RAIL LTD,Equipment Repairs & Maintenance,1005\5109650395,21-Nov-19,"20,284.36",
RAIL FOR LONDON LIMITED,GBM SERVICES LTD,Office Cleaning,1020\5109660733,04-Dec-19,"20,276.52",
TFL CORPORATE,REDCENTRIC,Computer Hardware,1001\5109649701,14-Nov-19,"20,250.00",
LUL NOMINEE BCV LIMITED,PRV ENGINEERING LTD,Track General Maintenance,1033\5109646241,27-Nov-19,"20,250.00",
TFL CORPORATE,BT SERVICE AGILITY,Telephony Fixed,1001\1900068113,11-Nov-19,"20,181.18",
LONDON BUS SERVICES LTD,ARRIVA LONDON NORTH LTD,Vehicle Repairs & Maintenance,1006\5109658315,02-Dec-19,"20,157.86",
RAIL FOR LONDON LIMITED,TRAM OPERATIONS LIMITED,Franchise/Concession Variable Fee,1020\5109640182,20-Nov-19,"20,138.02",
LONDON BUS SERVICES LTD,AA DRIVETECH,Management & Support Consultancy,1006\5109647137,27-Nov-19,"20,137.32",
SURFACE TRANSPORT CORP,DEEPSTORE LIMITED,Passenger Surveys,1002\5109644866,26-Nov-19,"20,091.59",
TRANSPORT TRADING LTD,NOVACROFT DIRECT LTD,Ticket & Pass Production,1004\5109650254,19-Nov-19,"20,088.65",
LUL NOMINEE SSL LIMITED,HEICO AEROSPACE CORPORATION,Fleet,1031\5109626506,26-Nov-19,"20,030.00",
TFL CORPORATE,MEDIAEDGE,Production Artwork And Design For Marketing,1001\5109639576,11-Nov-19,"20,000.00",
TFL CORPORATE,INITIATE CONSULTING LTD,Management & Support Consultancy,1001\5109654640,04-Dec-19,"20,000.00",
TRANSPORT TRADING LTD,URBAN INTELLIGENCE,Planning & Development Consultancy,1004\5109649846,18-Nov-19,"20,000.00",
LONDON UNDERGROUND LTD,KNIGHT FRANK LLP,Planning & Development Consultancy,1005\5109650588,18-Nov-19,"20,000.00",
LONDON UNDERGROUND LTD,VUK @MEMBERS LTD,Track General Maintenance,1005\1900211886,25-Nov-19,"20,000.00",
LONDON UNDERGROUND LTD,CAP GEMINI UK PLC,Manage IT Services,1005\5109645570,25-Nov-19,"19,970.39",
SURFACE TRANSPORT CORP,SECURITY FORCE MANAGEMENT LTD,Contracted Services - Highway Bridges,1002\5109636419,11-Nov-19,"19,958.42",
LONDON UNDERGROUND LTD,CLESHAR CONTRACT SERVICES LTD,Signalling Systems,1005\5109654084,20-Nov-19,"19,936.48",
LONDON BUS SERVICES LTD,METROLINE TRAVEL LTD,Rail Replacement Service Costs,1006\1900043299,25-Nov-19,"19,876.44",
LUL NOMINEE BCV LIMITED,BRITISH STEEL LIMITED ,Track General Maintenance,1033\5109647936,02-Dec-19,"19,813.16",
LUL NOMINEE BCV LIMITED,BRITISH STEEL LIMITED ,Track General Maintenance,1033\5109648569,27-Nov-19,"19,813.16",
TRANSPORT TRADING LTD,NOVACROFT DIRECT LTD,Ticket & Pass Production,1004\5109656628,26-Nov-19,"19,772.65",
RAIL FOR LONDON LIMITED,NORTHSTAR CONSULTANCY,Agency Staff,1020\5109663872,06-Dec-19,"19,760.00",
SURFACE TRANSPORT CORP,INTEROUTE NETWORK LTD ,Maintenance of Telecommunications Equipment,1002\5109633424,11-Nov-19,"19,650.01",
LONDON UNDERGROUND LTD,STRYKESLIP LTD,Planning & Development Consultancy,1005\5109637192,25-Nov-19,"19,625.00",
TRANSPORT TRADING LTD,EVERSHEDS,Legal Fees,1004\5109654881,25-Nov-19,"19,620.60",
RFL (INFRASTRUCTURE) LTD,INTERSERVE,Security Services (Guards),1025\5109655707,25-Nov-19,"19,609.25",
TFL CORPORATE,ROYAL INSTITUTION OF CHARTERED SURV,MR Construction Costs,1001\5109628525,13-Nov-19,"19,600.00",
RAIL FOR LONDON LIMITED,PLASSER UK LTD,Professional Engineering Services,1020\5109645474,02-Dec-19,"19,586.44",
LUL NOMINEE SSL LIMITED,BOMBARDIER TRANSPORT UK,Fleet,1031\5109636326,20-Nov-19,"19,571.20",
LUL NOMINEE SSL LIMITED,BOMBARDIER TRANSPORT UK,Fleet,1031\5109641595,27-Nov-19,"19,571.20",
RAIL FOR LONDON LIMITED,OTB ENGINEERING LTD,Professional Engineering Services,1020\5109650630,15-Nov-19,"19,570.00",
SURFACE TRANSPORT CORP,PINSENTS MASONS,Legal Fees,1002\5109651865,18-Nov-19,"19,568.65",
SURFACE TRANSPORT CORP,HUNTRESS SEARCH LTD,Passenger Surveys,1002\5109637342,20-Nov-19,"19,563.72",
LONDON BUS SERVICES LTD,TRAPEZE PTI LTD,Electrical & Electronic Engineering,1006\5109651117,06-Dec-19,"19,546.42",
TFL CORPORATE,CH2M HILL UNITED KINGDOM,Planning & Development Consultancy,1001\5109655523,04-Dec-19,"19,513.39",
LUL NOMINEE SSL LIMITED,BOMBARDIER TRANSPORT UK,Stock Issues - Repairables,1031\5109630799,11-Nov-19,"19,495.00",
LONDON BUS SERVICES LTD,ARRIVA LONDON NORTH LTD,Rail Replacement Service Costs,1006\1900043294,11-Nov-19,"19,468.15",
LUL NOMINEE BCV LIMITED,BRECKNELL WILLIS & CO LTD,Fleet,1033\5109630744,11-Nov-19,"19,397.50",
LONDON UNDERGROUND LTD,LENDLEASE JACOBS JOINT VENTURE,Planning & Development Consultancy,1005\5109640978,11-Nov-19,"19,390.63",
LONDON UNDERGROUND LTD,GBM SERVICES LTD,Operational Cleaning,1005\5109660767,04-Dec-19,"19,361.04",
TFL CORPORATE,COGNIZANT WORLDWIDE LIMITED,Software Maintenance,1001\5109640270,25-Nov-19,"19,356.00",
SURFACE TRANSPORT CORP,CLIPFINE LIMITED,Planning & Development Consultancy,1002\5109644170,25-Nov-19,"19,286.40",
LUL NOMINEE SSL LIMITED,4 RAIL SERVICES LTD,Building Maintenance & Repairs,1031\5109659192,04-Dec-19,"19,250.00",
TFL CORPORATE,VCCP GROUP LLP,Production Artwork And Design For Marketing,1001\5109640336,25-Nov-19,"19,240.00",
TFL CORPORATE,GREATER LONDON AUTHORITY ,External Events Roads Shows And Face To Face,1001\5109640518,20-Nov-19,"19,171.71",
SURFACE TRANSPORT CORP,TELENT TECHNOLOGY SERVICES LTD,Road Maintenance,1002\5109636871,11-Nov-19,"19,165.30",
SURFACE TRANSPORT CORP,SIEMENS,Traffic Signals,1002\5109647001,11-Nov-19,"19,096.60",
TRANSPORT TRADING LTD,LONDON BOROUGH OF TOWER HAMLETS,Rates,1004\1901669622,28-Nov-19,"19,085.00",
TRANSPORT TRADING LTD,LONDON BOROUGH OF TOWER HAMLETS,Rates,1004\1901669623,28-Nov-19,"19,085.00",
LONDON BUS SERVICES LTD,TRUEFORM ENGINEERING LTD,Maintenance of  Bus Stops,1006\5109644798,11-Nov-19,"19,065.80",
LUL NOMINEE SSL LIMITED,KNORR-BREMSE RAIL LTD ,Fleet,1031\5109632600,11-Nov-19,"19,064.16",
LUL NOMINEE SSL LIMITED,KNORR-BREMSE RAIL LTD ,Fleet,1031\5109633172,13-Nov-19,"19,064.16",
LUL NOMINEE SSL LIMITED,KNORR-BREMSE RAIL LTD ,Fleet,1031\5109641666,25-Nov-19,"19,064.16",
LUL NOMINEE SSL LIMITED,KNORR-BREMSE RAIL LTD ,Fleet,1031\5109647485,04-Dec-19,"19,064.16",
SURFACE TRANSPORT CORP,CITY OF WESTMINSTER,Section 159 Payments,1002\1900062349,04-Dec-19,"19,040.10",
LONDON UNDERGROUND LTD,MORGAN SINDALL  PLC,MR Construction Costs,1005\5109660251,02-Dec-19,"19,000.00",
LONDON UNDERGROUND LTD,SPECIALISED COMPLIANT COATINGS LTD,Maintenance Materials,1005\5109661300,04-Dec-19,"18,951.75",
LONDON UNDERGROUND LTD,MODULAR DISTRIBUTION SYSTEMS,Escalators,1005\5109642617,27-Nov-19,"18,905.66",
LONDON UNDERGROUND LTD,GANNON OILS LIMITED,Traction Current,1005\5109642844,13-Nov-19,"18,895.00",
LUL NOMINEE SSL LIMITED,THALES TRANSPORT & SECURITY LIMITED,Equipment Repairs & Maintenance,1031\5109638092,13-Nov-19,"18,892.00",
TFL CORPORATE,HALCROW GROUP LTD,Planning & Development Consultancy,1001\5109655524,04-Dec-19,"18,840.69",
TFL CORPORATE,ENGIE SERVICES LTD,Planning & Development Consultancy,1001\5109650357,04-Dec-19,"18,793.00",
TRANSPORT TRADING LTD,STS STORAGE SYSTEMS LTD,Building Maintenance & Repairs,1004\5109652016,18-Nov-19,"18,781.00",
LUL NOMINEE SSL LIMITED,LOWERY LTD,Track General Maintenance,1031\5109572206,11-Nov-19,"18,729.34",
LONDON UNDERGROUND LTD,CLESHAR CONTRACT SERVICES LTD,MR Construction Costs,1005\5109647303,13-Nov-19,"18,725.60",
SURFACE TRANSPORT CORP,MEDIAEDGE,Radio TV Press Poster Cinema Airtime And Space,1002\5109651969,02-Dec-19,"18,718.70",
TFL CORPORATE,LENDLEASE JACOBS JOINT VENTURE,Management & Support Consultancy,1001\5109647198,27-Nov-19,"18,675.83",
LONDON UNDERGROUND LTD,DELATIM LIMITED,MR Construction Costs,1005\5109650638,18-Nov-19,"18,605.77",
LUL NOMINEE SSL LIMITED,SIEMENS,Traffic Signals,1031\5109636534,18-Nov-19,"18,537.90",
LONDON UNDERGROUND LTD,BIFFA WASTE SERVICES LIMITED,Non Recyclable Waste Disposal/Refuse Collection,1005\5109645831,27-Nov-19,"18,504.72",
LUL NOMINEE SSL LIMITED,VAE GMBH,Stock of Signals and Electricals,1031\5109639412,15-Nov-19,"18,490.00",
RAIL FOR LONDON LIMITED,INFOSYS LIMITED,Management & Support Consultancy,1020\5109651221,27-Nov-19,"18,470.00",
SURFACE TRANSPORT CORP,SIEMENS,Traffic Signals,1002\5109644805,11-Nov-19,"18,449.30",
SURFACE TRANSPORT CORP,CSJ CIVIL & MECHANICAL ENGINE. LTD,Civil Engineering Construction Works,1002\5109651648,05-Dec-19,"18,396.96",
LONDON BUS SERVICES LTD,ABELLIO LONDON LTD,Rail Replacement Service Costs,1006\1900043192,11-Nov-19,"18,362.48",
LONDON UNDERGROUND LTD,ENGIE SERVICES LTD,Equipment Repairs & Maintenance,1005\5109633381,11-Nov-19,"18,342.11",
LONDON UNDERGROUND LTD,CLANCY DOCWRA LTD,Civil Engineering Construction Works,1005\5109661409,04-Dec-19,"18,311.74",
LONDON UNDERGROUND LTD,BEN RENSHAW LTD,Contractors,1005\5109642993,22-Nov-19,"18,300.00",
LONDON BUS SERVICES LTD,TRUEFORM ENGINEERING LTD,Maintenance of  Bus Stops,1006\5109652543,19-Nov-19,"18,287.65",
SURFACE TRANSPORT CORP,SIEMENS,Traffic Signals,1002\5109645688,13-Nov-19,"18,200.51",
TRANSPORT TRADING LTD,HAYS ACCOUNTANCY PERSONNEL,Agency Staff,1004\5109643628,02-Dec-19,"18,190.96",
LONDON UNDERGROUND LTD,1STINRAIL LIMITED,Track General Maintenance,1005\5109654817,25-Nov-19,"18,154.93",
LONDON UNDERGROUND LTD,BIFFA WASTE SERVICES LIMITED,Non Recyclable Waste Disposal/Refuse Collection,1005\5109649993,04-Dec-19,"18,127.98",
TRANSPORT TRADING LTD,HAYS ACCOUNTANCY PERSONNEL,Agency Staff,1004\5109629297,11-Nov-19,"18,043.42",
LONDON UNDERGROUND LTD,TRELLEBORG INDUSTRIAL AVS,Fleet,1005\5109631114,11-Nov-19,"18,010.00",
LUL NOMINEE BCV LIMITED,TRELLEBORG INDUSTRIAL AVS,Maintenance Materials,1033\5109647792,04-Dec-19,"18,010.00",
LUL NOMINEE BCV LIMITED,VAE GMBH,Track General Maintenance,1033\5109663746,06-Dec-19,"17,990.00",
TFL CORPORATE,MORSON HUMAN RESOURCES LTD,Agency Staff,1001\5109629605,11-Nov-19,"17,975.52",
SURFACE TRANSPORT CORP,ARNOLD HOUSE LIMITED,Other Joint Funding Contributions,1002\1900062597,02-Dec-19,"17,973.00",
DOCKLANDS LIGHT RAILWAY,RJ POWER RAIL LIMITED,Civil Engineering Construction Works,1012\5109660631,04-Dec-19,"17,960.00",
RAIL FOR LONDON LIMITED,BLACKROCK EXPERT SERVICES LIMITED,Legal Fees,1020\5109658761,27-Nov-19,"17,955.00",
TFL CORPORATE,VCCP GROUP LLP,Research For Marketing Campaigns And Activities,1001\5109646281,04-Dec-19,"17,950.00",
LONDON TRANSPORT MUSEUM,ETHOS COMMUNICATIONS SOLUTIONS PLC,Furniture & Equipment,1011\5109649923,14-Nov-19,"17,947.40",
LUL NOMINEE BCV LIMITED,BRITISH STEEL LIMITED ,Track General Maintenance,1033\5109635513,13-Nov-19,"17,936.50",
LUL NOMINEE BCV LIMITED,BRITISH STEEL LIMITED ,Track General Maintenance,1033\5109635515,11-Nov-19,"17,936.50",
LUL NOMINEE BCV LIMITED,BRITISH STEEL LIMITED ,Track General Maintenance,1033\5109638005,20-Nov-19,"17,936.50",
LUL NOMINEE BCV LIMITED,BRITISH STEEL LIMITED ,Track General Maintenance,1033\5109638009,20-Nov-19,"17,936.50",
LUL NOMINEE BCV LIMITED,BRITISH STEEL LIMITED ,Track General Maintenance,1033\5109638010,18-Nov-19,"17,936.50",
LUL NOMINEE BCV LIMITED,BRITISH STEEL LIMITED ,Track General Maintenance,1033\5109644312,27-Nov-19,"17,936.50",
LUL NOMINEE BCV LIMITED,BRITISH STEEL LIMITED ,Track General Maintenance,1033\5109644314,25-Nov-19,"17,936.50",
LUL NOMINEE BCV LIMITED,BRITISH STEEL LIMITED ,Track General Maintenance,1033\5109648415,02-Dec-19,"17,936.50",
LUL NOMINEE BCV LIMITED,BRITISH STEEL LIMITED ,Track General Maintenance,1033\5109649900,02-Dec-19,"17,936.50",
TFL CORPORATE,CENTRE OF ADVERTISE EU LTD,Contractors,1001\5109649876,13-Nov-19,"17,928.35",
LUL NOMINEE SSL LIMITED,IPS COMMUNICATIONS LTD,MR Construction Costs,1031\5109649509,26-Nov-19,"17,908.28",
TRANSPORT TRADING LTD,GLOBAL OUTDOOR MEDIA LIMITED,Purchase of Associates Loan Notes (Activity),1004\5109652305,25-Nov-19,"17,852.84",
DIAL A RIDE,MERTON COMMUNITY TRANSPORT,Operator Costs,1010\5109654591,22-Nov-19,"17,852.47",
RAIL FOR LONDON LIMITED,PLASSER UK LTD,Professional Engineering Services,1020\5109645510,02-Dec-19,"17,845.28",
RAIL FOR LONDON LIMITED,THALES TRANSPORT & SECURITY LIMITED,Management & Support Consultancy,1020\5109637835,20-Nov-19,"17,833.33",
TFL CORPORATE,LENDLEASE JACOBS JOINT VENTURE,Management & Support Consultancy,1001\5109647153,27-Nov-19,"17,753.82",
TRANSPORT TRADING LTD,HAYS ACCOUNTANCY PERSONNEL,Agency Staff,1004\5109634314,18-Nov-19,"17,743.99",
LONDON UNDERGROUND LTD,MOTT MACDONALD LIMITED,Professional Engineering Services,1005\5109661559,04-Dec-19,"17,743.56",
LUL NOMINEE SSL LIMITED,TRACKWORK RESOURCES LTD,Track General Maintenance,1031\5109647916,13-Nov-19,"17,708.75",
LONDON BUS SERVICES LTD,PROVENTIA OY,Vehicle Repairs & Maintenance,1006\5109645506,18-Nov-19,"17,675.00",
TRANSPORT TRADING LTD,POST OFFICE LTD,Ticket & Pass Production,1004\5109628385,11-Nov-19,"17,666.25",
LONDON UNDERGROUND LTD,BIFFA WASTE SERVICES LIMITED,Non Recyclable Waste Disposal/Refuse Collection,1005\5109635281,13-Nov-19,"17,657.64",
TRANSPORT TRADING LTD,TURNER & TOWNSEND LLP,Planning & Development Consultancy,1004\5109639698,25-Nov-19,"17,640.00",
LUL NOMINEE BCV LIMITED,CLESHAR CONTRACT SERVICES LTD,Track General Maintenance,1033\5109647291,13-Nov-19,"17,585.28",
SURFACE TRANSPORT CORP,ATKINS LIMITED,Contracted Services - Roads,1002\5109630669,11-Nov-19,"17,522.50",
TRANSPORT TRADING LTD,NEWBRIDGE ADVISORS,Planning & Development Consultancy,1004\5109653977,20-Nov-19,"17,500.00",
SURFACE TRANSPORT CORP,STRAIGHTFORWARD COMMUNICATIONS LTD,Photography And Video Design And Production,1002\5109659092,02-Dec-19,"17,487.00",
LONDON UNDERGROUND LTD,DEEPSTORE LIMITED,Document Archive & Storage,1005\5109663731,05-Dec-19,"17,473.28",
LONDON UNDERGROUND LTD,COGNIZANT WORLDWIDE LIMITED,Software Maintenance,1005\5109640323,25-Nov-19,"17,465.00",
SURFACE TRANSPORT CORP,T-KARTOR SWEDEN AB,Design & Production Of Maps & Timetable Publicity,1002\5109647034,06-Dec-19,"17,456.00",
LONDON UNDERGROUND LTD,BIFFA WASTE SERVICES LIMITED,Non Recyclable Waste Disposal/Refuse Collection,1005\5109638099,20-Nov-19,"17,449.38",
SURFACE TRANSPORT CORP,CAPITA BUSINESS SERVICES LTD,Contracted Services - Roads,1002\5109645760,02-Dec-19,"17,448.30",
LUL NOMINEE BCV LIMITED,RJC (UK) LTD,MR Construction Costs,1033\5109646205,11-Nov-19,"17,428.08",
TFL CORPORATE,RULLION ENGINEERING LTD,Agency Staff,1001\5109629872,11-Nov-19,"17,425.00",
SURFACE TRANSPORT CORP,THE NICHOLS GROUP LTD,Management & Support Consultancy,1002\5109651201,20-Nov-19,"17,331.25",
LONDON UNDERGROUND LTD,WATSON FUELS,Electrical Equipment Maintenance,1005\5109639436,18-Nov-19,"17,318.18",
TFL CORPORATE,PROBRAND LTD,Computer Software,1001\5109651146,25-Nov-19,"17,285.00",
TFL CORPORATE,LENDLEASE JACOBS JOINT VENTURE,Contractors,1001\5109653989,02-Dec-19,"17,232.43",
TRANSPORT TRADING LTD,HAYS ACCOUNTANCY PERSONNEL,Agency Staff,1004\5109638705,25-Nov-19,"17,214.69",
LONDON UNDERGROUND LTD,WATSON FUELS,Electrical Equipment Maintenance,1005\5109638040,20-Nov-19,"17,196.58",
TFL CORPORATE,CPC PROJECT SERVICES LLP,Contractors,1001\5109651694,19-Nov-19,"17,169.60",
LUL NOMINEE SSL LIMITED,TELENT TECHNOLOGY SERVICES LTD,Equipment Repairs & Maintenance,1031\5109641765,27-Nov-19,"17,158.51",
DIAL A RIDE,CITYFLEET,Operator Costs,1010\5109646310,02-Dec-19,"17,040.28",
LONDON UNDERGROUND LTD,LENDLEASE JACOBS JOINT VENTURE,MR Construction Costs,1005\5109647142,27-Nov-19,"17,038.80",
LONDON UNDERGROUND LTD,TELENT TECHNOLOGY SERVICES LTD,MR Construction Costs,1005\5109614090,02-Dec-19,"17,012.22",
SURFACE TRANSPORT CORP,STREET BEHAVIOUR LTD,Contracted Services - Roads,1002\5109622391,21-Nov-19,"16,995.00",
SURFACE TRANSPORT CORP,PLACE SURVEYS,Contracted Services - Roads,1002\5109654724,25-Nov-19,"16,995.00",
DOCKLANDS LIGHT RAILWAY,SPECIALIST ENGINEERING SERVICES,Civil Engineering Construction Works,1012\5109663132,04-Dec-19,"16,989.75",
LONDON UNDERGROUND LTD,SIEMENS,Signalling Systems,1005\5109659841,02-Dec-19,"16,904.23",
DOCKLANDS LIGHT RAILWAY,THAMES CLIPPERS,Ticket & Pass Production,1012\1900004992,13-Nov-19,"16,889.20",
LONDON UNDERGROUND LTD,WESTON WILLIAMSON ARCHITECTS,Planning & Development Consultancy,1005\5109650366,15-Nov-19,"16,883.52",
LONDON UNDERGROUND LTD,NCP SERVICES LTD,Property Development-Planning & Development Consul,1005\5109645022,27-Nov-19,"16,882.63",
LONDON UNDERGROUND LTD,THALES GROUND TRANSPORTATION SYSTEM,Civil Engineering Construction Works,1005\5109636511,11-Nov-19,"16,843.34",
TFL CORPORATE,TNS UK LTD,Customer Research And Counts,1001\5109640412,20-Nov-19,"16,800.00",
TFL CORPORATE,CH2M HILL UNITED KINGDOM,Planning & Development Consultancy,1001\5109637162,04-Dec-19,"16,786.91",
LUL NOMINEE BCV LIMITED,LAWRENCE INDUSTRIES LTD,Vehicle Parts Gas Oil & Lubricants,1033\5109650466,04-Dec-19,"16,772.00",
TFL CORPORATE,IPSOS MORI,Customer Research And Counts,1001\5109637291,20-Nov-19,"16,750.00",
TFL CORPORATE,XANTA LIMITED,Management & Support Consultancy,1001\5109650277,18-Nov-19,"16,740.00",
TRANSPORT TRADING LTD,GLOBAL OUTDOOR MEDIA LIMITED,Purchase of Associates Loan Notes (Activity),1004\5109652313,25-Nov-19,"16,663.69",
RAIL FOR LONDON LIMITED,NCC SERVICES LIMITED,Management & Support Consultancy,1020\5109640438,25-Nov-19,"16,654.02",
LONDON UNDERGROUND LTD,WESTON WILLIAMSON ARCHITECTS,Planning & Development Consultancy,1005\5109650358,15-Nov-19,"16,628.98",
SURFACE TRANSPORT CORP,CSTS LTD,Contracted Services - Tunnels,1002\5109632852,13-Nov-19,"16,620.93",
LUL NOMINEE SSL LIMITED,CLANCY DOCWRA LTD,Building Maintenance & Repairs,1031\5109641919,13-Nov-19,"16,565.11",
LONDON UNDERGROUND LTD,BIFFA WASTE SERVICES LIMITED,Non Recyclable Waste Disposal/Refuse Collection,1005\5109631406,25-Nov-19,"16,548.48",
RAIL FOR LONDON LIMITED,WABTEC RAIL LIMITED,Management & Support Consultancy,1020\5109636468,20-Nov-19,"16,542.04",
TFL CORPORATE,2CV RESEARCH,Research For Marketing Campaigns And Activities,1001\5109644959,18-Nov-19,"16,540.00",
RAIL FOR LONDON LIMITED,MTR CORPORATION (CROSSRAIL) LTD,Management & Support Consultancy,1020\5109655726,27-Nov-19,"16,536.11",
SURFACE TRANSPORT CORP,T-KARTOR SWEDEN AB,Design & Production Of Maps & Timetable Publicity,1002\5109643028,29-Nov-19,"16,520.00",
DOCKLANDS LIGHT RAILWAY,RJ POWER RAIL LIMITED,Civil Engineering Construction Works,1012\5109660632,04-Dec-19,"16,510.57",
TRANSPORT TRADING LTD,LONDON BOROUGH OF HAMM& FULHAM,Rates,1004\1901669630,28-Nov-19,"16,506.00",
TFL CORPORATE,VCCP GROUP LLP,Production Artwork And Design For Marketing,1001\5109640354,25-Nov-19,"16,500.00",
LONDON UNDERGROUND LTD,LANES GROUP PLC,Building Maintenance & Repairs,1005\5109642943,20-Nov-19,"16,498.47",
LONDON UNDERGROUND LTD,GBM SERVICES LTD,Operational Cleaning,1005\5109660744,04-Dec-19,"16,473.32",
DIAL A RIDE,ALLSTAR BUSINESS SOLUTIONS,Vehicle Running Costs,1010\5109654140,25-Nov-19,"16,428.04",
LONDON UNDERGROUND LTD,SPEEDY HIRE DIRECT LTD,Plant & Equipment Purchases,1005\5109651618,18-Nov-19,"16,367.07",
RAIL FOR LONDON LIMITED,NETWORK RAIL,Civil Engineering Construction Works,1020\5109639451,20-Nov-19,"16,341.95",
DOCKLANDS LIGHT RAILWAY,THAMES CLIPPERS,Ticket & Pass Production,1012\1900004993,13-Nov-19,"16,274.72",
TFL CORPORATE,INSIGHT DIRECT UK LIMITED,Manage IT Services,1001\5109616588,18-Nov-19,"16,250.00",
LONDON UNDERGROUND LTD,CPC PROJECT SERVICES LLP,MR Construction Costs,1005\5109655509,25-Nov-19,"16,242.20",
LUL NOMINEE SSL LIMITED,WESTCODE UK LIMITED,Fleet,1031\5109656610,25-Nov-19,"16,207.50",
LONDON UNDERGROUND LTD,MCGINLEY SUPPORT SERVICES LTD,Track General Maintenance,1005\5109659147,28-Nov-19,"16,176.58",
LONDON UNDERGROUND LTD,FAIVELEY TRANSPORT,Maintenance Materials,1005\5109570816,11-Nov-19,"16,159.92",
TFL CORPORATE,LENDLEASE JACOBS JOINT VENTURE,Management & Support Consultancy,1001\5109647154,27-Nov-19,"16,145.43",
LONDON UNDERGROUND LTD,HAYLEY GROUP PLC,Maintenance Materials,1005\5109655525,25-Nov-19,"16,136.89",
LUL NOMINEE SSL LIMITED,DUCTCLEAN (UK) LTD T/A DCUK FM,Track General Maintenance,1031\5109653982,03-Dec-19,"16,128.76",
RAIL FOR LONDON LIMITED,INFOSYS LIMITED,Management & Support Consultancy,1020\5109633345,27-Nov-19,"16,110.00",
LONDON UNDERGROUND LTD,SPEEDY ASSET SERVICES LTD,Equipment Repairs & Maintenance,1005\5109647648,27-Nov-19,"16,109.80",
VICTORIA COACH STATN LTD,STAGECOACH,VCS Repayments & Commission,1008\1900004427,25-Nov-19,"16,095.90",
TFL CORPORATE,CAPITA BUSINESS SERVICES LTD,Recruitment Expenses,1001\5109621091,11-Nov-19,"16,000.00",
LONDON UNDERGROUND LTD,BIO-CIRCLE SURFACE TECHNOLOGY LTD,Building Maintenance & Repairs,1005\5109664222,05-Dec-19,"16,000.00",
RAIL FOR LONDON LIMITED,APCOA PARKING UK LTD,Property Management Fees,1020\5109646483,04-Dec-19,"16,000.00",
TFL CORPORATE,STREET BEHAVIOUR LTD,Planning & Development Consultancy,1001\5109663645,06-Dec-19,"15,995.00",
LUL NOMINEE SSL LIMITED,MITSUBISHI ELECTRIC EUROPE BV,Fleet,1031\5109632015,15-Nov-19,"15,980.00",
TFL CORPORATE,MORSON HUMAN RESOURCES LTD,Agency Staff,1001\5109629603,11-Nov-19,"15,978.24",
TRANSPORT TRADING LTD,SHREKS ADVENTURE,Ticket & Pass Production,1004\1901669520,27-Nov-19,"15,950.00",
DIAL A RIDE,ALLSTAR BUSINESS SOLUTIONS,Vehicle Running Costs,1010\5109654111,20-Nov-19,"15,879.10",
CYCLE HIRE SCHEME,SERCO LTD,Concession Maintenance Charge,1016\5109642951,20-Nov-19,"15,878.61",
TRANSPORT TRADING LTD,LONDON BOROUGH OF GREENWICH,Rates,1004\1901669664,28-Nov-19,"15,851.00",
VICTORIA COACH STATN LTD,OYSTER SALES SERVICE,VCS Repayments & Commission,1008\5109653724,02-Dec-19,"15,838.33",
VICTORIA COACH STATN LTD,STAGECOACH,VCS Repayments & Commission,1008\1900004434,27-Nov-19,"15,835.43",
LUL NOMINEE SSL LIMITED,ARMADILLO LED,Signalling Systems,1031\5109650523,28-Nov-19,"15,810.00",
LONDON UNDERGROUND LTD,ENGIE SERVICES LTD,Equipment Repairs & Maintenance,1005\5109633385,11-Nov-19,"15,789.28",
LUL NOMINEE BCV LIMITED,HIRD RAIL SERVICES LTD,Track General Maintenance,1033\5109633265,13-Nov-19,"15,761.00",
LUL NOMINEE SSL LIMITED,VIKING PRECISION ENGINEERS LTD,Pumps & Drainage,1031\5109649161,12-Nov-19,"15,760.00",
LONDON UNDERGROUND LTD,NETWORK RAIL,Traction Current,1005\5109647031,02-Dec-19,"15,759.01",
TRANSPORT TRADING LTD,BURLINGTON CREDIT LIMITED,Building Maintenance & Repairs,1004\5109646594,11-Nov-19,"15,750.00",
LONDON UNDERGROUND LTD,CPC PROJECT SERVICES LLP,Fleet,1005\5109646558,28-Nov-19,"15,750.00",
LONDON UNDERGROUND LTD,CPC PROJECT SERVICES LLP,Fleet,1005\5109646560,28-Nov-19,"15,750.00",
LONDON UNDERGROUND LTD,CPC PROJECT SERVICES LLP,Fleet,1005\5109646561,28-Nov-19,"15,750.00",
LONDON UNDERGROUND LTD,CPC PROJECT SERVICES LLP,Fleet,1005\5109646562,28-Nov-19,"15,750.00",
LONDON UNDERGROUND LTD,CPC PROJECT SERVICES LLP,Fleet,1005\5109664792,05-Dec-19,"15,750.00",
LONDON UNDERGROUND LTD,GPX ENGINEERING LTD,MR Construction Costs,1005\5109656645,26-Nov-19,"15,677.40",
SURFACE TRANSPORT CORP,LONDON BOROUGH OF LAMBETH,Borough Services - Claim Against Pr Yr Accrual,1002\1900061438,25-Nov-19,"15,671.24",
TRANSPORT TRADING LTD,SSE CONTRACTING,Building Maintenance & Repairs,1004\5109645678,27-Nov-19,"15,646.25",
TRANSPORT TRADING LTD,SHREKS ADVENTURE,Ticket & Pass Production,1004\1901669519,27-Nov-19,"15,631.67",
RAIL FOR LONDON LIMITED,PCG ASSOCIATES LIMITED,Agency Staff,1020\5109654367,25-Nov-19,"15,612.00",
TFL CORPORATE,LENDLEASE JACOBS JOINT VENTURE,Contractors,1001\5109653985,02-Dec-19,"15,605.60",
LUL NOMINEE SSL LIMITED,ZF FRIEDRICHSHAFEN AG,Fleet,1031\5109631664,14-Nov-19,"15,591.09",
LUL NOMINEE SSL LIMITED,ZF FRIEDRICHSHAFEN AG,Fleet,1031\5109641979,29-Nov-19,"15,591.09",
TFL CORPORATE,JACOBS U.K LIMITED,Management & Support Consultancy,1001\5109654109,20-Nov-19,"15,564.96",
LUL NOMINEE BCV LIMITED,DENCO LUBRICATION LTD,Escalators,1033\5109655870,29-Nov-19,"15,545.00",
LONDON UNDERGROUND LTD,MCGINLEY SUPPORT SERVICES LTD,MR Construction Costs,1005\5109659121,28-Nov-19,"15,521.40",
LUL NOMINEE SSL LIMITED,MITSUBISHI ELECTRIC EUROPE BV,Fleet,1031\5109652403,19-Nov-19,"15,500.00",
LONDON UNDERGROUND LTD,LESMAC (FASTENERS) LTD,Maintenance Materials,1005\5109659390,02-Dec-19,"15,500.00",
LUL NOMINEE BCV LIMITED,INTERSERVE,Track General Maintenance,1033\5109634757,13-Nov-19,"15,485.64",
TRANSPORT TRADING LTD,PARKGUARD LIMITED,Maintenance of Plant & Equipment,1004\5109656702,26-Nov-19,"15,444.00",
TRANSPORT TRADING LTD,SHREKS ADVENTURE,Ticket & Pass Production,1004\1901669517,27-Nov-19,"15,407.50",
LONDON UNDERGROUND LTD,COONEEN DEFENCE LTD,Uniforms,1005\5109647293,11-Nov-19,"15,404.77",
TRANSPORT TRADING LTD,DAISY COMMUNICATIONS LTD,Telephony Fixed,1004\5109654911,27-Nov-19,"15,375.42",
VICTORIA COACH STATN LTD,IDBUS,VCS Repayments & Commission,1008\1900004433,02-Dec-19,"15,365.98",
LONDON UNDERGROUND LTD,FUSION PEOPLE LIMITED,Agency Staff,1005\5109653448,20-Nov-19,"15,362.80",
LONDON UNDERGROUND LTD,VOITH TURBO LTD,Maintenance Materials,1005\5109642061,27-Nov-19,"15,361.56",
LONDON BUS SERVICES LTD,TRAPEZE PTI LTD,Computer Consumables,1006\5109642676,29-Nov-19,"15,339.23",
DIAL A RIDE,HACKNEY COMMUNITY TRANSPORT,Operator Costs,1010\5109634638,13-Nov-19,"15,333.44",
TRANSPORT TRADING LTD,LONDON BOROUGH OF LAMBETH,Rates,1004\1901669658,28-Nov-19,"15,327.00",
RAIL FOR LONDON LIMITED,HYDER CONSULTING (UK) LTD,Civil Engineering Construction Works,1020\5109662814,04-Dec-19,"15,316.86",
TFL CORPORATE,MOTT MACDONALD LIMITED,Management & Support Consultancy,1001\5109637519,20-Nov-19,"15,260.00",
TRANSPORT TRADING LTD,CATERCOVER SERVICE LTD,Plant & Equipment Purchases,1004\5109645887,11-Nov-19,"15,250.69",
TRANSPORT TRADING LTD,CATERCOVER SERVICE LTD,Plant & Equipment Purchases,1004\5109663491,04-Dec-19,"15,250.69",
LUL NOMINEE BCV LIMITED,BRITISH STEEL LIMITED ,Track General Maintenance,1033\5109638007,20-Nov-19,"15,243.02",
TFL CORPORATE,COMPUTACENTER PLC,Computer Hardware,1001\5109628619,02-Dec-19,"15,240.00",
LONDON BUS SERVICES LTD,ENSIGN BUS COMPANY LTD,Rail Replacement Service Costs,1006\1900043315,15-Nov-19,"15,228.30",
LONDON BUS SERVICES LTD,ENSIGN BUS COMPANY LTD,Rail Replacement Service Costs,1006\1900043317,15-Nov-19,"15,228.30",
LONDON BUS SERVICES LTD,TRAPEZE PTI LTD,Computer Consumables,1006\5109631010,13-Nov-19,"15,217.80",
SURFACE TRANSPORT CORP,INDRA SISTEMAS S.A.-BRANCH IN UK,Cameras,1002\5109635115,13-Nov-19,"15,213.49",
TRANSPORT TRADING LTD,LONDON BOROUGH OF HAMM& FULHAM,Rates,1004\1901669632,28-Nov-19,"15,196.00",
LUL NOMINEE BCV LIMITED,MACHINE TOOL ENGINEERS,Lifts & Escalators stock issues,1033\5109661490,04-Dec-19,"15,195.00",
LUL NOMINEE SSL LIMITED,KNORR-BREMSE RAIL LTD ,Fleet,1031\5109645165,27-Nov-19,"15,189.20",
RAIL FOR LONDON LIMITED,STOCKTON ENGINEERING MANAGEMENT LTD,Professional Engineering Services,1020\5109650706,18-Nov-19,"15,180.00",
SURFACE TRANSPORT CORP,CSTS LTD,Road Maintenance,1002\5109641464,13-Nov-19,"15,096.15",
SURFACE TRANSPORT CORP,REDSPEED INTERNATIONAL  LTD,Maintenance of Plant & Equipment,1002\5109655912,04-Dec-19,"15,029.90",
LONDON UNDERGROUND LTD,CPC PROJECT SERVICES LLP,MR Construction Costs,1005\5109655501,25-Nov-19,"15,015.00",
LUL NOMINEE BCV LIMITED,MODULAR DISTRIBUTION SYSTEMS,Lifts & Escalators stock issues,1033\5109642616,27-Nov-19,"15,008.62",
LONDON UNDERGROUND LTD,CORONA ENERGY RETAIL 4 LTD,Gas,1005\5109651721,27-Nov-19,"15,002.66",
TRANSPORT TRADING LTD,VU.CITY,Software Maintenance,1004\5109649159,04-Dec-19,"15,000.00",
TFL CORPORATE,2CV RESEARCH,Customer Research And Counts,1001\5109631762,13-Nov-19,"15,000.00",
RAIL FOR LONDON LIMITED,EVERSHEDS,Management & Support Consultancy,1020\5109630272,25-Nov-19,"15,000.00",
SURFACE TRANSPORT CORP,MOTT MACDONALD LIMITED,Transport Planning Consultancy & Services,1002\5109637360,18-Nov-19,"15,000.00",
TFL CORPORATE,LONDON BOROUGH OF REDBRIDGE,Borough Services - Claim Against Pr Yr Accrual,1001\1900067963,11-Nov-19,"15,000.00",
LONDON UNDERGROUND LTD,SAFETY KLEEN UK LTD,Maintenance of Plant & Equipment,1005\5109645011,27-Nov-19,"14,999.16",
LONDON BUS SERVICES LTD,ENSIGN BUS COMPANY LTD,Rail Replacement Service Costs,1006\1900043316,15-Nov-19,"14,996.42",
TRANSPORT TRADING LTD,LONDON BOROUGH OF TOWER HAMLETS,Rates,1004\1901669624,28-Nov-19,"14,971.00",
LONDON UNDERGROUND LTD,ESAB CUTTING SYSTEMS,Equipment Repairs & Maintenance,1005\5109516269,13-Nov-19,"14,950.00",
SURFACE TRANSPORT CORP,CEOX SERVICES LTD,IT Consultancy,1002\5109647756,27-Nov-19,"14,928.00",
LONDON UNDERGROUND LTD,HERBERT SMITH LLP,Legal Fees,1005\5109659293,02-Dec-19,"14,904.02",
LONDON UNDERGROUND LTD,CORONA ENERGY RETAIL 4 LTD,Gas,1005\5109651717,27-Nov-19,"14,899.73",
LONDON BUS SERVICES LTD,TRUEFORM ENGINEERING LTD,Building Maintenance & Repairs,1006\5109644799,11-Nov-19,"14,892.97",
LONDON UNDERGROUND LTD,PORT OF LONDON AUTHORITY,Electrical Equipment Maintenance,1005\5109646997,02-Dec-19,"14,882.95",
TFL CORPORATE,DIVA CREATIVE LTD,Planning & Development Consultancy,1001\5109660729,05-Dec-19,"14,773.26",
CYCLE HIRE SCHEME,SERCO LTD,Concession Maintenance Charge,1016\5109633479,11-Nov-19,"14,761.02",
DIAL A RIDE,ALLSTAR BUSINESS SOLUTIONS,Vehicle Running Costs,1010\5109645821,11-Nov-19,"14,760.10",
LONDON UNDERGROUND LTD,TELENT TECHNOLOGY SERVICES LTD,MR Construction Costs,1005\5109636522,20-Nov-19,"14,753.59",
LONDON UNDERGROUND LTD,FUSION PEOPLE LIMITED,Vehicle Operating Leases,1005\5109659405,02-Dec-19,"14,751.77",
TFL CORPORATE,RISKTEC SOLUTIONS LTD,Contractors,1001\5109613004,18-Nov-19,"14,715.00",
RAIL FOR LONDON LIMITED,VINCI CONSTRUCTION UK LTD,Building Maintenance & Repairs,1020\5109631075,11-Nov-19,"14,704.47",
LONDON BUS SERVICES LTD,EMINOX,Vehicle Repairs & Maintenance,1006\5109636560,25-Nov-19,"14,695.00",
LONDON BUS SERVICES LTD,EMINOX,Vehicle Repairs & Maintenance,1006\5109636564,11-Nov-19,"14,695.00",
LONDON BUS SERVICES LTD,EMINOX,Vehicle Repairs & Maintenance,1006\5109636565,11-Nov-19,"14,695.00",
LONDON BUS SERVICES LTD,EMINOX,Vehicle Repairs & Maintenance,1006\5109636568,11-Nov-19,"14,695.00",
LONDON BUS SERVICES LTD,EMINOX,Vehicle Repairs & Maintenance,1006\5109636699,11-Nov-19,"14,695.00",
LONDON BUS SERVICES LTD,EMINOX,Vehicle Repairs & Maintenance,1006\5109636757,11-Nov-19,"14,695.00",
LONDON BUS SERVICES LTD,EMINOX,Vehicle Repairs & Maintenance,1006\5109636763,11-Nov-19,"14,695.00",
LONDON BUS SERVICES LTD,EMINOX,Vehicle Repairs & Maintenance,1006\5109642115,20-Nov-19,"14,695.00",
LONDON BUS SERVICES LTD,EMINOX,Vehicle Repairs & Maintenance,1006\5109642124,20-Nov-19,"14,695.00",
LONDON BUS SERVICES LTD,EMINOX,Vehicle Repairs & Maintenance,1006\5109642133,18-Nov-19,"14,695.00",
LONDON BUS SERVICES LTD,EMINOX,Vehicle Repairs & Maintenance,1006\5109642156,13-Nov-19,"14,695.00",
LONDON BUS SERVICES LTD,EMINOX,Vehicle Repairs & Maintenance,1006\5109642160,04-Dec-19,"14,695.00",
LONDON BUS SERVICES LTD,EMINOX,Vehicle Repairs & Maintenance,1006\5109642163,20-Nov-19,"14,695.00",
LONDON BUS SERVICES LTD,EMINOX,Vehicle Repairs & Maintenance,1006\5109642647,18-Nov-19,"14,695.00",
LONDON BUS SERVICES LTD,EMINOX,Vehicle Repairs & Maintenance,1006\5109642872,11-Nov-19,"14,695.00",
LONDON BUS SERVICES LTD,EMINOX,Vehicle Repairs & Maintenance,1006\5109642873,13-Nov-19,"14,695.00",
LONDON BUS SERVICES LTD,EMINOX,Vehicle Repairs & Maintenance,1006\5109642877,11-Nov-19,"14,695.00",
LONDON BUS SERVICES LTD,EMINOX,Vehicle Repairs & Maintenance,1006\5109642880,11-Nov-19,"14,695.00",
LONDON BUS SERVICES LTD,EMINOX,Vehicle Repairs & Maintenance,1006\5109642888,13-Nov-19,"14,695.00",
LONDON BUS SERVICES LTD,EMINOX,Vehicle Repairs & Maintenance,1006\5109644363,25-Nov-19,"14,695.00",
LONDON BUS SERVICES LTD,EMINOX,Vehicle Repairs & Maintenance,1006\5109644366,25-Nov-19,"14,695.00",
LONDON BUS SERVICES LTD,EMINOX,Vehicle Repairs & Maintenance,1006\5109644368,18-Nov-19,"14,695.00",
LONDON BUS SERVICES LTD,EMINOX,Vehicle Repairs & Maintenance,1006\5109644370,27-Nov-19,"14,695.00",
LONDON BUS SERVICES LTD,EMINOX,Vehicle Repairs & Maintenance,1006\5109646187,20-Nov-19,"14,695.00",
LONDON UNDERGROUND LTD,SOLUTION RAIL LIMITED,MR Construction Costs,1005\5109660267,04-Dec-19,"14,679.35",
LONDON TRANSPORT MUSEUM,CF CORPORATE FINANCE,Photocopying,1011\1900014108,27-Nov-19,"14,669.70",
RAIL FOR LONDON LIMITED,BRIDGEWAY CONSULTING LTD,Staff Training,1020\5109647173,04-Dec-19,"14,631.30",
LUL NOMINEE SSL LIMITED,SCHAEFFLER (UK) LTD,Fleet,1031\5109641446,20-Nov-19,"14,603.60",
LUL NOMINEE SSL LIMITED,SCHAEFFLER (UK) LTD,Fleet,1031\5109655873,25-Nov-19,"14,603.60",
LONDON UNDERGROUND LTD,JOHNSON ELEVANJA,Escalators,1005\5109644308,27-Nov-19,"14,590.00",
LONDON UNDERGROUND LTD,ASPIRE,Management & Support Consultancy,1005\5109650952,15-Nov-19,"14,560.00",
LONDON UNDERGROUND LTD,EVERSHEDS,Legal Fees,1005\5109658755,27-Nov-19,"14,532.80",
LONDON UNDERGROUND LTD,GPX ENGINEERING LTD,MR Construction Costs,1005\5109656644,26-Nov-19,"14,456.38",
TFL CORPORATE,MORSON HUMAN RESOURCES LTD,Agency Staff,1001\5109638994,25-Nov-19,"14,448.39",
LONDON UNDERGROUND LTD,DELATIM LIMITED,Equipment Repairs & Maintenance,1005\5109590333,21-Nov-19,"14,436.75",
TRANSPORT TRADING LTD,EVERSHEDS,Legal Fees,1004\5109654882,25-Nov-19,"14,433.60",
LONDON BUS SERVICES LTD,TRAPEZE PTI LTD,Electrical & Electronic Engineering,1006\5109651110,06-Dec-19,"14,406.31",
LUL NOMINEE SSL LIMITED,LAWRENCE INDUSTRIES LTD,Vehicle Parts Gas Oil & Lubricants,1031\5109640413,13-Nov-19,"14,376.00",
LUL NOMINEE SSL LIMITED,LAWRENCE INDUSTRIES LTD,Vehicle Parts Gas Oil & Lubricants,1031\5109650519,04-Dec-19,"14,376.00",
LONDON BUS SERVICES LTD,TRAPEZE PTI LTD,Electrical & Electronic Engineering,1006\5109651115,06-Dec-19,"14,367.32",
LONDON UNDERGROUND LTD,TRELLEBORG INDUSTRIAL AVS,Equipment Repairs & Maintenance,1005\5109632426,11-Nov-19,"14,338.00",
RFL (INFRASTRUCTURE) LTD,SAFESITE LTD,Staff Training,1025\5109644296,27-Nov-19,"14,319.00",
RAIL FOR LONDON LIMITED,INTERSERVE,Security Services (Guards),1020\5109645940,18-Nov-19,"14,317.13",
SURFACE TRANSPORT CORP,CEOX SERVICES LTD,IT Consultancy,1002\5109647757,27-Nov-19,"14,306.00",
TFL CORPORATE,MORSON HUMAN RESOURCES LTD,Agency Staff,1001\5109629588,11-Nov-19,"14,278.68",
LUL NOMINEE SSL LIMITED,SCHUNK CARBON TECHNOLOGY LIMITED,Fleet,1031\5109665097,06-Dec-19,"14,233.34",
LONDON UNDERGROUND LTD,SKF (UK) LTD,Fleet,1005\5109641432,20-Nov-19,"14,220.00",
TFL CORPORATE,CAPITA BUSINESS SERVICES LTD,Recruitment Expenses,1001\5109642038,27-Nov-19,"14,202.00",
LONDON UNDERGROUND LTD,XRAIL GROUP LTD,Professional Engineering Services,1005\5109654240,20-Nov-19,"14,172.80",
SURFACE TRANSPORT CORP,KC & ASSOCIATES LTD,Contracted Services - Roads,1002\5109658399,27-Nov-19,"14,160.00",
LUL NOMINEE BCV LIMITED,KNORR-BREMSE RAIL SERVICES,Fleet,1033\5109640779,18-Nov-19,"14,160.00",
DIAL A RIDE,ALLSTAR BUSINESS SOLUTIONS,Vehicle Running Costs,1010\5109654143,25-Nov-19,"14,137.71",
LONDON UNDERGROUND LTD,FUSION PEOPLE LIMITED,Vehicle Operating Leases,1005\5109663704,05-Dec-19,"14,073.71",
LONDON UNDERGROUND LTD,DENCO LUBRICATION LTD,Escalators,1005\5109659285,05-Dec-19,"14,050.00",
TRANSPORT TRADING LTD,EVERSHEDS,Legal Fees,1004\5109654079,20-Nov-19,"14,036.80",
LUL NOMINEE BCV LIMITED,VOITH TURBO LTD,Fleet,1033\5109646517,04-Dec-19,"14,017.18",
RAIL FOR LONDON LIMITED,WALKER CONSTRUCTION (UK) LIMITED,Contractors,1020\5109654236,25-Nov-19,"14,016.25",
TFL CORPORATE,VCCP GROUP LLP,Production Artwork And Design For Marketing,1001\5109640339,25-Nov-19,"14,000.00",
TFL CORPORATE,RAILRS3 LTD,Management & Support Consultancy,1001\5109641218,25-Nov-19,"14,000.00",
LONDON UNDERGROUND LTD,GARDINER & THEOBALD LLP,Planning & Development Consultancy,1005\5109656027,27-Nov-19,"14,000.00",
LONDON UNDERGROUND LTD,AXON SOLUTIONS LTD,Computer Software,1005\5109637516,18-Nov-19,"13,987.50",
LONDON UNDERGROUND LTD,TURNER & TOWNSEND LLP,Planning & Development Consultancy,1005\5109644831,25-Nov-19,"13,985.00",
SURFACE TRANSPORT CORP,GPF LEWIS PLC,Contracted Services - Highway Bridges,1002\5109649292,15-Nov-19,"13,964.71",
LONDON UNDERGROUND LTD,MAXAURA LTD,Signalling Systems,1005\5109639890,25-Nov-19,"13,958.00",
LONDON BUS SERVICES LTD,TRAPEZE PTI LTD,Computer Consumables,1006\5109633329,25-Nov-19,"13,952.03",
LONDON UNDERGROUND LTD,MASON ADVISORY LTD,Planning & Development Consultancy,1005\5109650298,03-Dec-19,"13,950.00",
LUL NOMINEE SSL LIMITED,FERRABYRNE LTD,Fleet,1031\5109640487,27-Nov-19,"13,895.68",
LUL NOMINEE SSL LIMITED,FERRABYRNE LTD,Fleet,1031\5109663583,04-Dec-19,"13,895.68",
LONDON UNDERGROUND LTD,TELENT TECHNOLOGY SERVICES LTD,Professional Engineering Services,1005\5109627899,11-Nov-19,"13,838.53",
LONDON BUS SERVICES LTD,TRAPEZE PTI LTD,Computer Consumables,1006\5109636798,22-Nov-19,"13,817.45",
LONDON UNDERGROUND LTD,KNORR-BREMSE RAIL SERVICES,Equipment Repairs & Maintenance,1005\5109631729,11-Nov-19,"13,780.00",
LONDON UNDERGROUND LTD,KNORR-BREMSE RAIL SERVICES,Equipment Repairs & Maintenance,1005\5109640498,27-Nov-19,"13,780.00",
LONDON UNDERGROUND LTD,THALES TRANSPORT & SECURITY LIMITED,Computer Hardware,1005\5109631251,11-Nov-19,"13,765.00",
TFL CORPORATE,HAYS ACCOUNTANCY PERSONNEL,Agency Staff,1001\5109638636,25-Nov-19,"13,737.45",
DIAL A RIDE,GBM SERVICES LTD,Office Cleaning,1010\5109660780,04-Dec-19,"13,735.50",
TRANSPORT TRADING LTD,ASPIRE,Planning & Development Consultancy,1004\5109649134,13-Nov-19,"13,680.00",
LONDON BUS SERVICES LTD,TRUEFORM ENGINEERING LTD,Building Maintenance & Repairs,1006\5109664870,05-Dec-19,"13,672.23",
TRANSPORT TRADING LTD,HAYS ACCOUNTANCY PERSONNEL,Agency Staff,1004\5109629296,11-Nov-19,"13,639.73",
TFL CORPORATE,K & L GATES,Legal Fees,1001\5109655876,25-Nov-19,"13,636.36",
RAIL FOR LONDON LIMITED,LANES GROUP PLC,Management & Support Consultancy,1020\5109646982,27-Nov-19,"13,627.71",
TFL CORPORATE,LANES GROUP PLC,Building Maintenance & Repairs,1001\5109647016,18-Nov-19,"13,621.40",
TFL CORPORATE,GLOBAL OUTDOOR MEDIA LIMITED,Production Artwork And Design For Marketing,1001\5109636695,18-Nov-19,"13,612.50",
TFL CORPORATE,XANTA LIMITED,Management & Support Consultancy,1001\5109650945,18-Nov-19,"13,585.00",
LONDON UNDERGROUND LTD,DENCO LUBRICATION LTD,Escalators,1005\5109654976,02-Dec-19,"13,577.56",
SURFACE TRANSPORT CORP,OTM (UK) LTD,Production Artwork And Design For Marketing,1002\5109664578,06-Dec-19,"13,575.00",
TRANSPORT TRADING LTD,MONTAGU EVANS LLP,Planning & Development Consultancy,1004\5109646377,12-Nov-19,"13,557.50",
LONDON BUS SERVICES LTD,MITIE CLEANING & ENVIRONMENTAL,"Maps, Timetables & Fare Information",1006\5109631995,13-Nov-19,"13,546.89",
TFL CORPORATE,AB PUBLISHING LIMITED,Storage And Distribution Of Publicity Materials,1001\5109646590,11-Nov-19,"13,539.20",
TFL CORPORATE,AB PUBLISHING LIMITED,Storage And Distribution Of Publicity Materials,1001\5109659793,29-Nov-19,"13,539.20",
SURFACE TRANSPORT CORP,SKY HIGH PLC,Traffic Signals,1002\5109647322,27-Nov-19,"13,526.34",
LONDON UNDERGROUND LTD,NETWORK RAIL,National Rail Schedule 4 Payments,1005\5109647029,02-Dec-19,"13,503.91",
TRANSPORT TRADING LTD,HAYS ACCOUNTANCY PERSONNEL,Agency Staff,1004\5109634313,18-Nov-19,"13,503.03",
LONDON UNDERGROUND LTD,EC HARRIS UK LTD,Management & Support Consultancy,1005\5109639798,20-Nov-19,"13,500.00",
LONDON UNDERGROUND LTD,INSIGHT DIRECT UK LIMITED,Signalling Systems,1005\5109637934,20-Nov-19,"13,500.00",
TFL CORPORATE,BDB PITMANS LLP,Legal Fees,1001\5109664584,05-Dec-19,"13,463.70",
LUL NOMINEE BCV LIMITED,KNORR-BREMSE RAIL SERVICES,Fleet,1033\5109630718,11-Nov-19,"13,440.00",
DOCKLANDS LIGHT RAILWAY,LEND LEASE CONSULTING (EMEA) LTD,Professional Engineering Services,1012\5109659086,04-Dec-19,"13,440.00",
LUL NOMINEE SSL LIMITED,SCHAEFFLER (UK) LTD,Fleet,1031\5109649239,04-Dec-19,"13,425.20",
TRANSPORT TRADING LTD,HAYS ACCOUNTANCY PERSONNEL,Agency Staff,1004\5109638704,25-Nov-19,"13,404.12",
LONDON UNDERGROUND LTD,ALSTOM TRANSPORT LTD,Equipment Repairs & Maintenance,1005\5109635581,18-Nov-19,"13,391.93",
LONDON UNDERGROUND LTD,ALSTOM TRANSPORT LTD,Equipment Repairs & Maintenance,1005\5109635584,18-Nov-19,"13,391.93",
LONDON UNDERGROUND LTD,ALSTOM TRANSPORT LTD,Equipment Repairs & Maintenance,1005\5109635591,18-Nov-19,"13,391.93",
LONDON UNDERGROUND LTD,ALSTOM TRANSPORT LTD,Equipment Repairs & Maintenance,1005\5109637854,11-Nov-19,"13,391.93",
LONDON UNDERGROUND LTD,ALSTOM TRANSPORT LTD,Equipment Repairs & Maintenance,1005\5109637855,11-Nov-19,"13,391.93",
LONDON UNDERGROUND LTD,WATSON FUELS,Vehicle Running Costs,1005\5109645783,25-Nov-19,"13,370.63",
RAIL FOR LONDON LIMITED,DELATIM LIMITED,Contracted Services Buildings,1020\5109651957,20-Nov-19,"13,353.37",
DOCKLANDS LIGHT RAILWAY,CLESHAR CONTRACT SERVICES LTD,Civil Engineering Construction Works,1012\5109636836,13-Nov-19,"13,343.29",
TFL CORPORATE,LENDLEASE JACOBS JOINT VENTURE,Contractors,1001\5109653983,02-Dec-19,"13,336.88",
TRANSPORT TRADING LTD,TECHNOLOGY DESKING LIMITED,Furniture & Equipment,1004\5109646913,11-Nov-19,"13,306.00",
LUL NOMINEE BCV LIMITED,KGJ PRICE LTD,Track General Maintenance,1033\5109660052,03-Dec-19,"13,297.92",
LONDON UNDERGROUND LTD,HMRC,Payroll Suspense,1005\1900211815,22-Nov-19,"13,266.01",
LUL NOMINEE SSL LIMITED,CLESHAR CONTRACT SERVICES LTD,Track General Maintenance,1031\5109647267,13-Nov-19,"13,250.88",
LUL NOMINEE BCV LIMITED,BOMBARDIER TRANSPORT UK,Fleet,1033\5109645048,02-Dec-19,"13,250.38",
TFL CORPORATE,KELTBRAY LIMITED,Planning & Development Consultancy,1001\5109641980,27-Nov-19,"13,237.34",
RAIL FOR LONDON LIMITED,VINCI CONSTRUCTION UK LTD,Building Maintenance & Repairs,1020\5109616597,11-Nov-19,"13,219.91",
LONDON UNDERGROUND LTD,RIDGE AND PARTNERS LLP,Traction Current,1005\5109641819,13-Nov-19,"13,205.00",
LONDON UNDERGROUND LTD,CLESHAR CONTRACT SERVICES LTD,MR Construction Costs,1005\5109647301,13-Nov-19,"13,156.10",
TFL CORPORATE,SENTRUM IV LIMITED,Manage IT Services,1001\5109651210,15-Nov-19,"13,153.37",
LONDON UNDERGROUND LTD,CLESHAR CONTRACT SERVICES LTD,Building Maintenance & Repairs,1005\5109647223,20-Nov-19,"13,152.80",
LONDON UNDERGROUND LTD,FOUR COMMUNICATIONS GROUP PLC,Planning & Development Consultancy,1005\5109647962,13-Nov-19,"13,148.50",
TRANSPORT TRADING LTD,SHREKS ADVENTURE,Ticket & Pass Production,1004\1901669525,27-Nov-19,"13,130.00",
RAIL FOR LONDON LIMITED,PCG ASSOCIATES LIMITED,Professional Engineering Services,1020\5109662987,04-Dec-19,"13,125.00",
LONDON UNDERGROUND LTD,MET OFFICE,Contractors,1005\5109636888,20-Nov-19,"13,112.70",
TFL CORPORATE,XANTA LIMITED,Management & Support Consultancy,1001\5109655533,29-Nov-19,"13,100.00",
SURFACE TRANSPORT CORP,BADENOCH & CLARK LTD,Software Maintenance,1002\5109640707,13-Nov-19,"13,075.00",
LONDON UNDERGROUND LTD,ASPIRE,Planning & Development Consultancy,1005\5109650964,15-Nov-19,"13,056.62",
LONDON UNDERGROUND LTD,R S CLARE & CO LTD,Vehicle Parts Gas Oil & Lubricants,1005\5109646318,02-Dec-19,"13,044.24",
RFL (INFRASTRUCTURE) LTD,CEGOS (UK) LTD,Staff Training,1025\5109645548,11-Nov-19,"13,000.00",
RFL (INFRASTRUCTURE) LTD,CEGOS (UK) LTD,Staff Training,1025\5109649516,18-Nov-19,"13,000.00",
TFL CORPORATE,ARK SIGNALLING CONSULTANCY,Management & Support Consultancy,1001\5109649953,18-Nov-19,"13,000.00",
TFL CORPORATE,BETA PROJECTS LIMITED,Planning & Development Consultancy,1001\5109662729,04-Dec-19,"13,000.00",
LONDON BUS SERVICES LTD,NAVAHO TECHNOLOGIES,Software Maintenance,1006\5109655431,06-Dec-19,"12,996.50",
LUL NOMINEE SSL LIMITED,CONTITECH LUFTFEDERSYSTEME GMBH,Fleet,1031\5109644943,15-Nov-19,"12,994.32",
LONDON BUS SERVICES LTD,AIR PRODUCTS PLC,Vehicle Running Costs,1006\5109644342,27-Nov-19,"12,975.70",
LUL NOMINEE BCV LIMITED,MH SOUTHERN & CO LTD,Track General Maintenance,1033\5109650555,04-Dec-19,"12,968.00",
SURFACE TRANSPORT CORP,"SYSTEMS ENGINEERING, ASSESSMENT",PCN and Penalty Fare Processing,1002\5109640667,27-Nov-19,"12,963.25",
LUL NOMINEE SSL LIMITED,HAYLEY GROUP PLC,Fleet,1031\5109640110,25-Nov-19,"12,960.00",
PUBLIC CARRIAGE OFFICE,WRAGGE & CO,Legal Fees,1003\5109651795,18-Nov-19,"12,949.00",
LUL NOMINEE BCV LIMITED,CREACTIVE DESIGN LTD,Fleet,1033\5109655461,26-Nov-19,"12,930.00",
LONDON BUS SERVICES LTD,HJS EMISSION TECHNOLOGY GMBH&CO.KG,Vehicle Repairs & Maintenance,1006\5109644359,29-Nov-19,"12,920.00",
LONDON BUS SERVICES LTD,HJS EMISSION TECHNOLOGY GMBH&CO.KG,Vehicle Repairs & Maintenance,1006\5109644360,29-Nov-19,"12,920.00",
LONDON BUS SERVICES LTD,HJS EMISSION TECHNOLOGY GMBH&CO.KG,Vehicle Repairs & Maintenance,1006\5109644915,29-Nov-19,"12,920.00",
LONDON BUS SERVICES LTD,HJS EMISSION TECHNOLOGY GMBH&CO.KG,Vehicle Repairs & Maintenance,1006\5109644918,29-Nov-19,"12,920.00",
TRANSPORT TRADING LTD,GVA GRIMLEY LTD ,Planning & Development Consultancy,1004\5109633205,13-Nov-19,"12,919.50",
LUL NOMINEE SSL LIMITED,KN NETWORK SERVICES LTD,Civil Engineering Construction Works,1031\5109654171,04-Dec-19,"12,910.50",
LUL NOMINEE SSL LIMITED,VVB ENGINEERING (UK) LIMITED,Civil Engineering Construction Works,1031\5109659417,04-Dec-19,"12,907.09",
LONDON UNDERGROUND LTD,ESG RAIL,Security Equipment,1005\5109654958,03-Dec-19,"12,880.00",
TRANSPORT TRADING LTD,SHREKS ADVENTURE,Ticket & Pass Production,1004\1901669524,27-Nov-19,"12,880.00",
LONDON UNDERGROUND LTD,SKANSKA CONTRUCTIONS UK LTD,Civil Engineering Construction Works,1005\5109645979,11-Nov-19,"12,834.87",
RAIL FOR LONDON LIMITED,EDF ENERGY,Electricity,1020\5109652528,02-Dec-19,"12,806.04",
TFL CORPORATE,CAPITA BUSINESS SERVICES LTD,Recruitment Expenses,1001\5109641560,25-Nov-19,"12,800.00",
LONDON UNDERGROUND LTD,FUSION PEOPLE LIMITED,Vehicle Operating Leases,1005\5109649272,13-Nov-19,"12,790.14",
TFL CORPORATE,A J WELLS & SONS LTD,Art And Poetry Installations And Programmes,1001\5109655858,27-Nov-19,"12,772.00",
TRANSPORT TRADING LTD,INITIATE CONSULTING LTD,Planning & Development Consultancy,1004\5109654638,04-Dec-19,"12,760.00",
TFL CORPORATE,PROBRAND LTD,Software Maintenance,1001\5109604738,11-Nov-19,"12,732.29",
SURFACE TRANSPORT CORP,REDSPEED INTERNATIONAL  LTD,Maintenance of Plant & Equipment,1002\5109650582,02-Dec-19,"12,698.25",
LUL NOMINEE SSL LIMITED,SIEMENS,Fleet,1031\5109637216,20-Nov-19,"12,689.50",
LONDON UNDERGROUND LTD,HIMA-SELLA LTD,Civil Engineering Construction Works,1005\5109658958,02-Dec-19,"12,624.08",
LONDON BUS SERVICES LTD,PITNEY BOWES,Software Maintenance,1006\5109639700,25-Nov-19,"12,613.00",
LUL NOMINEE SSL LIMITED,XYLEM FLOW CONTROL LTD,Fleet,1031\5109650322,18-Nov-19,"12,611.20",
DOCKLANDS LIGHT RAILWAY,EDF ENERGY,Electricity,1012\1900004989,11-Nov-19,"12,601.18",
LUL NOMINEE BCV LIMITED,KNORR-BREMSE RAIL SERVICES,Track General Maintenance,1033\5109630734,11-Nov-19,"12,592.00",
LUL NOMINEE SSL LIMITED,TOTAL RAIL SOLUTIONS,Track General Maintenance,1031\5109642183,12-Nov-19,"12,587.50",
RAIL FOR LONDON LIMITED,INFOSYS LIMITED,Management & Support Consultancy,1020\5109633359,27-Nov-19,"12,555.00",
PUBLIC CARRIAGE OFFICE,NSL LIMITED,Software Maintenance,1003\5109651725,20-Nov-19,"12,534.15",
LUL NOMINEE SSL LIMITED,NEDERMAN LTD,Civil Engineering Construction Works,1031\5109639717,20-Nov-19,"12,523.95",
SURFACE TRANSPORT CORP,QI CONSULTING,Computer Software,1002\5109646573,04-Dec-19,"12,500.00",
TFL CORPORATE,PRICEWATERHOUSECOOPERS LLP,Software Maintenance,1001\5109644792,02-Dec-19,"12,500.00",
LONDON UNDERGROUND LTD,WSP UK LTD,Professional Engineering Services,1005\5109647170,04-Dec-19,"12,492.43",
TFL CORPORATE,OTM (UK) LTD,Production Artwork And Design For Marketing,1001\5109664489,05-Dec-19,"12,490.00",
DOCKLANDS LIGHT RAILWAY,EDF ENERGY,Electricity,1012\1900004988,11-Nov-19,"12,479.74",
SURFACE TRANSPORT CORP,CAPITA BUSINESS SERVICES LTD,CCS Service Contract,1002\5109637154,20-Nov-19,"12,454.23",
LUL NOMINEE SSL LIMITED,KNORR-BREMSE RAIL SERVICES,Fleet,1031\5109630731,11-Nov-19,"12,415.20",
LONDON RIVER SERVICES LTD,BRIGGS MARINE CONTRACTORS LIMITED,Operator Costs,1007\5109646467,04-Dec-19,"12,408.00",
TRANSPORT TRADING LTD,SHREKS ADVENTURE,Ticket & Pass Production,1004\1901669522,27-Nov-19,"12,405.00",
TFL CORPORATE,INTERFLEET TECHNOLOGY LIMITED,Management & Support Consultancy,1001\5109639674,25-Nov-19,"12,402.72",
TFL CORPORATE,VCCP GROUP LLP,Research For Marketing Campaigns And Activities,1001\5109646290,04-Dec-19,"12,400.00",
LONDON UNDERGROUND LTD,INITIATE CONSULTING LTD,Contractors,1005\5109635278,18-Nov-19,"12,380.00",
LONDON UNDERGROUND LTD,CLANCY DOCWRA LTD,Civil Engineering Construction Works,1005\5109661470,04-Dec-19,"12,375.67",
TFL CORPORATE,INTERFLEET TECHNOLOGY LIMITED,Management & Support Consultancy,1001\5109636439,20-Nov-19,"12,360.50",
TFL CORPORATE,JACOBS U.K LIMITED,Management & Support Consultancy,1001\5109639797,27-Nov-19,"12,360.00",
LUL NOMINEE BCV LIMITED,CLESHAR CONTRACT SERVICES LTD,Escalators,1033\5109662983,04-Dec-19,"12,359.04",
LONDON BUS SERVICES LTD,TRAPEZE PTI LTD,Electrical & Electronic Engineering,1006\5109651112,06-Dec-19,"12,358.35",
LONDON BUS SERVICES LTD,SULLIVAN BUS & COACH LTD,Rail Replacement Service Costs,1006\1900043406,25-Nov-19,"12,353.56",
TRANSPORT TRADING LTD,TECHNOLOGY DESKING LIMITED,Furniture & Equipment,1004\5109647100,11-Nov-19,"12,338.00",
LONDON UNDERGROUND LTD,GLEEDS COST MANAGEMENT LIMITED,Planning & Development Consultancy,1005\5109642019,27-Nov-19,"12,325.00",
SURFACE TRANSPORT CORP,CH2M HILL UNITED KINGDOM,Transport Planning Consultancy & Services,1002\5109640196,25-Nov-19,"12,305.63",
LONDON UNDERGROUND LTD,CORMACK ADVERTISING LIMITED,Management & Support Consultancy,1005\5109657961,28-Nov-19,"12,300.00",
LONDON UNDERGROUND LTD,SPS DOORGUARD LTD,Maintenance of Plant & Equipment,1005\5109642702,15-Nov-19,"12,276.00",
LONDON UNDERGROUND LTD,SPS DOORGUARD LTD,Maintenance of Plant & Equipment,1005\5109664027,06-Dec-19,"12,276.00",
TFL CORPORATE,MEDIAEDGE,Radio TV Press Poster Cinema Airtime And Space,1001\5109652462,02-Dec-19,"12,271.87",
TFL CORPORATE,HYDER CONSULTING (UK) LTD,Planning & Development Consultancy,1001\5109641831,27-Nov-19,"12,250.00",
LONDON UNDERGROUND LTD,HYDER CONSULTING (UK) LTD,Planning & Development Consultancy,1005\5109641823,27-Nov-19,"12,250.00",
LONDON UNDERGROUND LTD,HYDER CONSULTING (UK) LTD,Planning & Development Consultancy,1005\5109641828,27-Nov-19,"12,250.00",
LONDON UNDERGROUND LTD,ATKINS LIMITED,Planning & Development Consultancy,1005\5109640514,27-Nov-19,"12,238.88",
TRANSPORT TRADING LTD,BPA CORPORATE FACILITATION LTD,Staff Training,1004\5109650549,14-Nov-19,"12,227.00",
LUL NOMINEE BCV LIMITED,BRECKNELL WILLIS & CO LTD,Fleet,1033\5109660880,04-Dec-19,"12,220.50",
TFL CORPORATE,HAYS ACCOUNTANCY PERSONNEL,Agency Staff,1001\5109629079,11-Nov-19,"12,211.20",
LONDON UNDERGROUND LTD,O2 UK LTD,Radio Pagers,1005\1900211865,25-Nov-19,"12,206.35",
TFL CORPORATE,XANTA LIMITED,Management & Support Consultancy,1001\5109650604,03-Dec-19,"12,200.00",
LUL NOMINEE SSL LIMITED,EDMUNDSON ELECTRICAL LTD,Civil Engineering Construction Works,1031\5109645829,18-Nov-19,"12,196.00",
TRANSPORT TRADING LTD,MADAME TUSSAUDS LTD,Ticket & Pass Production,1004\1901669320,25-Nov-19,"12,195.83",
LONDON UNDERGROUND LTD,INTERFLEET TECHNOLOGY LIMITED,Professional Engineering Services,1005\5109644857,02-Dec-19,"12,192.53",
LONDON UNDERGROUND LTD,NETWORK RAIL,National Rail Long Term Charges,1005\5109642006,20-Nov-19,"12,172.54",
TRANSPORT TRADING LTD,MADAME TUSSAUDS LTD,Ticket & Pass Production,1004\1901669324,25-Nov-19,"12,172.50",
LUL NOMINEE BCV LIMITED,SCHWIHAG GMBH,Track General Maintenance,1033\5109636823,22-Nov-19,"12,162.50",
TFL CORPORATE,D & D RAIL LTD,MR Construction Costs,1001\5109640258,18-Nov-19,"12,125.82",
RAIL FOR LONDON LIMITED,OTB ENGINEERING LTD,Professional Engineering Services,1020\5109651015,15-Nov-19,"12,125.50",
TFL CORPORATE,GUTTERIDGE HASKINS & DAVEY LIMITED,Professional Engineering Services,1001\5109637956,20-Nov-19,"12,117.87",
TFL CORPORATE,ATKINS LIMITED,Management & Support Consultancy,1001\5109647744,04-Dec-19,"12,108.50",
LONDON UNDERGROUND LTD,HILTON ABBEY LIMITED,Traction Current,1005\5109655539,25-Nov-19,"12,102.00",
TRANSPORT TRADING LTD,GLOBAL OUTDOOR MEDIA LIMITED,Purchase of Associates Loan Notes (Activity),1004\5109652331,25-Nov-19,"12,096.88",
TRANSPORT TRADING LTD,THE CLEARWAY GROUP,Maintenance of Plant & Equipment,1004\5109650487,14-Nov-19,"12,090.00",
RAIL FOR LONDON LIMITED,MOTT MACDONALD LIMITED,Planning & Development Consultancy,1020\5109647870,27-Nov-19,"12,025.66",
SURFACE TRANSPORT CORP,TELENT TECHNOLOGY SERVICES LTD,Traffic Signals,1002\5109647790,20-Nov-19,"12,000.46",
TFL CORPORATE,CAPP & CO LTD,Recruitment Expenses,1001\5109658884,02-Dec-19,"12,000.00",
TFL CORPORATE,EDENRED (UK GROUP) LIMITED,Staff Awards & Commendations,1001\5109660029,02-Dec-19,"12,000.00",
TFL CORPORATE,CAPITA BUSINESS SERVICES LTD,Computer Hardware,1001\5109641509,25-Nov-19,"12,000.00",
LONDON UNDERGROUND LTD,WSP UK LTD,Planning & Development Consultancy,1005\5109656094,27-Nov-19,"12,000.00",
LUL NOMINEE BCV LIMITED,CREACTIVE DESIGN LTD,Maintenance Materials,1033\5109658600,27-Nov-19,"12,000.00",
TFL CORPORATE,MEDIAEDGE,Radio TV Press Poster Cinema Airtime And Space,1001\5109651991,02-Dec-19,"11,929.72",
TFL CORPORATE,MEDIAEDGE,Partnership Marketing - Costs Incurred,1001\5109639532,11-Nov-19,"11,929.72",
SURFACE TRANSPORT CORP,MEDIAEDGE,Radio TV Press Poster Cinema Airtime And Space,1002\5109639585,13-Nov-19,"11,929.31",
LONDON BUS SERVICES LTD,TRAPEZE PTI LTD,Computer Consumables,1006\5109625671,12-Nov-19,"11,919.41",
TFL CORPORATE,AECOM LTD,Planning & Development Consultancy,1001\5109658004,04-Dec-19,"11,893.42",
TFL CORPORATE,VCCP GROUP LLP,External Events Roads Shows And Face To Face,1001\5109640471,25-Nov-19,"11,880.00",
LUL NOMINEE BCV LIMITED,RELEC ELECTRONICS LTD,Computer Consumables,1033\5109649780,15-Nov-19,"11,869.20",
LUL NOMINEE SSL LIMITED,GPX ENGINEERING LTD,Track General Maintenance,1031\5109661346,03-Dec-19,"11,859.45",
LONDON UNDERGROUND LTD,CLESHAR CONTRACT SERVICES LTD,Signalling Systems,1005\5109654076,20-Nov-19,"11,829.60",
RFL (INFRASTRUCTURE) LTD,GBM SERVICES LTD,Operational Cleaning,1025\5109660682,04-Dec-19,"11,826.25",
LONDON UNDERGROUND LTD,RIDGE AND PARTNERS LLP,Traction Current,1005\5109660627,04-Dec-19,"11,815.00",
LONDON UNDERGROUND LTD,CLANCY DOCWRA LTD,Civil Engineering Construction Works,1005\5109645876,18-Nov-19,"11,812.00",
RAIL FOR LONDON LIMITED,BUTLER & YOUNG LIFT CONSULTANTS LTD,Management & Support Consultancy,1020\5109661340,04-Dec-19,"11,807.68",
TFL CORPORATE,MEDIAEDGE,Radio TV Press Poster Cinema Airtime And Space,1001\5109649261,25-Nov-19,"11,785.70",
LONDON UNDERGROUND LTD,THALES RAIL SIGNALLING SOLUTIONS,Signalling Systems,1005\5109652524,20-Nov-19,"11,777.21",
TRANSPORT TRADING LTD,BPA CORPORATE FACILITATION LTD,Staff Training,1004\5109649513,14-Nov-19,"11,777.00",
TRANSPORT TRADING LTD,BPA CORPORATE FACILITATION LTD,Staff Training,1004\5109649569,14-Nov-19,"11,777.00",
TRANSPORT TRADING LTD,BPA CORPORATE FACILITATION LTD,Staff Training,1004\5109650324,14-Nov-19,"11,777.00",
RAIL FOR LONDON LIMITED,OTB ENGINEERING LTD,Management & Support Consultancy,1020\5109649608,15-Nov-19,"11,718.00",
DOCKLANDS LIGHT RAILWAY,EDF ENERGY,Electricity,1012\1900004987,11-Nov-19,"11,712.07",
LUL NOMINEE SSL LIMITED,TOTAL RAIL SOLUTIONS,Track General Maintenance,1031\5109655364,25-Nov-19,"11,707.50",
TFL CORPORATE,BETA PROJECTS LIMITED,Planning & Development Consultancy,1001\5109644343,11-Nov-19,"11,700.00",
TRANSPORT TRADING LTD,THE CLEARWAY GROUP,Maintenance of Plant & Equipment,1004\5109650331,14-Nov-19,"11,700.00",
RAIL FOR LONDON LIMITED,OPEN TEXT UK LTD,IT Consultancy,1020\5109651151,18-Nov-19,"11,691.44",
LUL NOMINEE SSL LIMITED,ALSTOM TRANSPORT LTD,Component Repairs Sub Contracted,1031\5109635614,20-Nov-19,"11,682.00",
TFL CORPORATE,XANTA LIMITED,Management & Support Consultancy,1001\5109650745,18-Nov-19,"11,681.25",
TFL CORPORATE,GUTTERIDGE HASKINS & DAVEY LIMITED,Professional Engineering Services,1001\5109637408,20-Nov-19,"11,677.55",
TRANSPORT TRADING LTD,HAYS ACCOUNTANCY PERSONNEL,Agency Staff,1004\5109643627,02-Dec-19,"11,661.77",
TFL CORPORATE,MATCHTECH GROUP PLC,Agency Staff,1001\5109633987,18-Nov-19,"11,645.91",
TRANSPORT TRADING LTD,DAISY COMMUNICATIONS LTD,Telephony Fixed,1004\5109642258,27-Nov-19,"11,625.00",
TFL CORPORATE,XANTA LIMITED,Management & Support Consultancy,1001\5109650592,18-Nov-19,"11,610.00",
LONDON UNDERGROUND LTD,JNG CONSTRUCTION & ENGINEERING,Building Maintenance & Repairs,1005\5109641815,13-Nov-19,"11,580.17",
TRANSPORT TRADING LTD,PROBRAND LTD,Software Maintenance,1004\5109641000,20-Nov-19,"11,577.54",
LONDON UNDERGROUND LTD,HOLOPHANE EUROPE LTD,Heating & Lighting,1005\5109644319,27-Nov-19,"11,571.75",
LONDON UNDERGROUND LTD,ALLIES AND MORRISON,Planning & Development Consultancy,1005\5109642030,27-Nov-19,"11,570.00",
LUL NOMINEE SSL LIMITED,ERIKS  EMS,Component Repairs Sub Contracted,1031\5109635310,13-Nov-19,"11,567.53",
LUL NOMINEE SSL LIMITED,ERIKS  EMS,Component Repairs Sub Contracted,1031\5109635460,13-Nov-19,"11,567.53",
LUL NOMINEE SSL LIMITED,ERIKS  EMS,Component Repairs Sub Contracted,1031\5109642915,25-Nov-19,"11,567.53",
LUL NOMINEE SSL LIMITED,ERIKS  EMS,Component Repairs Sub Contracted,1031\5109646191,27-Nov-19,"11,567.53",
TRANSPORT TRADING LTD,CITY OF WESTMINSTER,Rates,1004\1901669644,28-Nov-19,"11,564.00",
LUL NOMINEE SSL LIMITED,ENGIE SERVICES LTD,Civil Engineering Construction Works,1031\5109650356,04-Dec-19,"11,547.17",
LONDON UNDERGROUND LTD,UESL,Building Maintenance & Repairs,1005\5109638060,13-Nov-19,"11,545.82",
SURFACE TRANSPORT CORP,SKY HIGH PLC,Traffic Signals,1002\5109642575,20-Nov-19,"11,526.34",
LONDON UNDERGROUND LTD,MACHINE TOOL ENGINEERS,Escalators,1005\5109652263,28-Nov-19,"11,490.00",
LONDON UNDERGROUND LTD,CPC PROJECT SERVICES LLP,MR Construction Costs,1005\5109654813,22-Nov-19,"11,485.50",
LUL NOMINEE SSL LIMITED,SKF (UK) LTD,Fleet,1031\5109637770,18-Nov-19,"11,481.60",
LONDON BUS SERVICES LTD,CASTLE WATER LIMITED,Water,1006\5109635664,18-Nov-19,"11,464.70",
TFL CORPORATE,KELTBRAY LIMITED,Planning & Development Consultancy,1001\5109641976,27-Nov-19,"11,464.48",
TRANSPORT TRADING LTD,LONDON BOROUGH OF NEWHAM ,Rates,1004\1901669591,28-Nov-19,"11,459.00",
RAIL FOR LONDON LIMITED,BOMBARDIER TRANSPORT UK,Vehicle Operating Leases,1020\5109635573,13-Nov-19,"11,450.00",
LUL NOMINEE SSL LIMITED,DAVID BROWN GEAR SYSTEMS LTD,Fleet,1031\5109637488,20-Nov-19,"11,450.00",
RAIL FOR LONDON LIMITED,VINCI CONSTRUCTION UK LTD,Building Maintenance & Repairs,1020\5109658980,02-Dec-19,"11,438.75",
TFL CORPORATE,XANTA LIMITED,Management & Support Consultancy,1001\5109654234,25-Nov-19,"11,430.00",
LUL NOMINEE SSL LIMITED,TRELLEBORG INDUSTRIAL AVS,Fleet,1031\5109606271,18-Nov-19,"11,428.50",
LONDON UNDERGROUND LTD,TRELLEBORG INDUSTRIAL AVS,Fleet,1005\5109649901,04-Dec-19,"11,420.00",
LONDON UNDERGROUND LTD,SKANSKA CONTRUCTIONS UK LTD,Building Maintenance & Repairs,1005\5109645954,11-Nov-19,"11,418.24",
DOCKLANDS LIGHT RAILWAY,EDF ENERGY,Electricity,1012\1900004986,20-Nov-19,"11,410.40",
LONDON UNDERGROUND LTD,EC HARRIS UK LTD,MR Construction Costs,1005\5109642197,20-Nov-19,"11,407.50",
LONDON UNDERGROUND LTD,MACE Ltd,Planning & Development Consultancy,1005\5109654736,25-Nov-19,"11,396.67",
LONDON UNDERGROUND LTD,DENCO LUBRICATION LTD,Escalators,1005\5109654975,02-Dec-19,"11,393.00",
TFL CORPORATE,XANTA LIMITED,Management & Support Consultancy,1001\5109650600,18-Nov-19,"11,381.00",
LONDON UNDERGROUND LTD,CORPORATE DOCUMENT SERVICES LTD,Printing,1005\5109632058,15-Nov-19,"11,371.08",
LONDON BUS SERVICES LTD,BT SERVICE AGILITY,Telephony Fixed,1006\1900043325,04-Dec-19,"11,369.57",
RAIL FOR LONDON LIMITED,OTB ENGINEERING LTD,Professional Engineering Services,1020\5109649696,13-Nov-19,"11,350.13",
SURFACE TRANSPORT CORP,CAPITA BUSINESS SERVICES LTD,Contracted Services - Roads,1002\5109631126,11-Nov-19,"11,314.95",
TRANSPORT TRADING LTD,FRANKHAM CONSULTANCY GROUP LTD,Building Maintenance & Repairs,1004\5109650270,14-Nov-19,"11,292.23",
TRANSPORT TRADING LTD,FRANKHAM CONSULTANCY GROUP LTD,Building Maintenance & Repairs,1004\5109650273,18-Nov-19,"11,292.23",
LONDON UNDERGROUND LTD,QUINN INFRASTRUCTURE SERVICES LTD,Building Maintenance & Repairs,1005\5109646247,13-Nov-19,"11,289.39",
LUL NOMINEE BCV LIMITED,CLESHAR CONTRACT SERVICES LTD,Track General Maintenance,1033\5109647294,13-Nov-19,"11,272.59",
TFL CORPORATE,EC HARRIS UK LTD,Contractors,1001\5109642201,20-Nov-19,"11,250.00",
TFL CORPORATE,ATKINS LIMITED,Management & Support Consultancy,1001\5109647746,04-Dec-19,"11,248.56",
LONDON BUS SERVICES LTD,PROVENTIA OY,Vehicle Repairs & Maintenance,1006\5109636740,12-Nov-19,"11,223.75",
LUL NOMINEE SSL LIMITED,WESTCODE UK LIMITED,Fleet,1031\5109649111,12-Nov-19,"11,220.00",
TRANSPORT TRADING LTD,SENATOR INTERNATIONAL LTD,Furniture & Equipment,1004\5109640259,25-Nov-19,"11,215.90",
LUL NOMINEE SSL LIMITED,ISS LTD,Civil Engineering Construction Works,1031\5109652537,04-Dec-19,"11,205.63",
LONDON BUS SERVICES LTD,PROVENTIA OY,Vehicle Repairs & Maintenance,1006\5109645501,14-Nov-19,"11,205.00",
TFL CORPORATE,XANTA LIMITED,Management & Support Consultancy,1001\5109646256,11-Nov-19,"11,205.00",
LONDON BUS SERVICES LTD,UNIVERSITYBUS LTD,Bus Contract Payments,1006\1900043460,06-Dec-19,"11,204.17",
LUL NOMINEE BCV LIMITED,PANDROL UK LTD,Track General Maintenance,1033\5109651876,04-Dec-19,"11,200.00",
LUL NOMINEE BCV LIMITED,IMI NORGREN LTD,Pumps & Drainage,1033\5109644775,02-Dec-19,"11,196.00",
SURFACE TRANSPORT CORP,MURPHY SURVEYS UK LTD,Contracted Services - Highway Bridges,1002\5109647272,26-Nov-19,"11,195.00",
TRANSPORT TRADING LTD,LONDON BOROUGH OF NEWHAM ,Rates,1004\1901669589,28-Nov-19,"11,154.00",
TRANSPORT TRADING LTD,MADAME TUSSAUDS LTD,Ticket & Pass Production,1004\1901669319,25-Nov-19,"11,149.17",
TRANSPORT TRADING LTD,MADAME TUSSAUDS LTD,Ticket & Pass Production,1004\1901669322,25-Nov-19,"11,132.50",
LONDON UNDERGROUND LTD,OVE ARUP & PARTNERS LTD,Contractors,1005\5109646190,27-Nov-19,"11,131.00",
LONDON UNDERGROUND LTD,OVE ARUP & PARTNERS LTD,Contractors,1005\5109647389,27-Nov-19,"11,131.00",
DOCKLANDS LIGHT RAILWAY,EDF ENERGY,Electricity,1012\5109635909,13-Nov-19,"11,121.10",
LONDON BUS SERVICES LTD,C&S MOTOR GROUP,Vehicle Recovery,1006\5109645498,19-Nov-19,"11,120.00",
LUL NOMINEE SSL LIMITED,ALSTOM TRANSPORT LTD,Fleet,1031\5109637331,20-Nov-19,"11,104.50",
LUL NOMINEE SSL LIMITED,BOMBARDIER TRANSPORT UK,Fleet,1031\5109640782,27-Nov-19,"11,098.30",
LONDON UNDERGROUND LTD,JNG CONSTRUCTION & ENGINEERING,MR Construction Costs,1005\5109649068,03-Dec-19,"11,097.68",
TFL CORPORATE,DEEPSTORE LIMITED,Document Archive & Storage,1001\5109663886,05-Dec-19,"11,095.38",
SURFACE TRANSPORT CORP,CAPITA SYMONDS LTD,Computer Software,1002\5109640564,27-Nov-19,"11,088.00",
LONDON BUS SERVICES LTD,ABELLIO LONDON LTD,Rail Replacement Service Costs,1006\1900043191,11-Nov-19,"11,079.56",
LONDON BUS SERVICES LTD,TRAPEZE PTI LTD,Computer Consumables,1006\5109623900,15-Nov-19,"11,007.00",
LUL NOMINEE SSL LIMITED,TELENT TECHNOLOGY SERVICES LTD,Equipment Repairs & Maintenance,1031\5109622049,25-Nov-19,"11,005.30",
TFL CORPORATE,KELTBRAY LIMITED,Planning & Development Consultancy,1001\5109641981,27-Nov-19,"11,001.72",
PUBLIC CARRIAGE OFFICE,Q-PARK LIMITED,Plant & Equipment Purchases,1003\5109642626,27-Nov-19,"10,971.67",
RAIL FOR LONDON LIMITED,ATOS IT SERVICES UK LTD,Computer Software,1020\5109633340,02-Dec-19,"10,959.82",
LONDON UNDERGROUND LTD,CORPORATE DOCUMENT SERVICES LTD,Printing,1005\5109635224,13-Nov-19,"10,932.39",
SURFACE TRANSPORT CORP,LONDON BOROUGH OF LAMBETH,Borough Services - Claim Against Pr Yr Accrual,1002\1900061093,25-Nov-19,"10,926.95",
TRANSPORT TRADING LTD,THE CLEARWAY GROUP,Maintenance of Plant & Equipment,1004\5109650332,14-Nov-19,"10,920.00",
TFL CORPORATE,XANTA LIMITED,Management & Support Consultancy,1001\5109650699,18-Nov-19,"10,900.00",
LONDON UNDERGROUND LTD,OLDHAM ENGINEERING LTD,Fleet,1005\5109645652,12-Nov-19,"10,890.00",
LONDON UNDERGROUND LTD,OLDHAM ENGINEERING LTD,Fleet,1005\5109645884,13-Nov-19,"10,890.00",
LONDON UNDERGROUND LTD,CPC PROJECT SERVICES LLP,MR Construction Costs,1005\5109655505,25-Nov-19,"10,881.00",
LONDON BUS SERVICES LTD,TRUEFORM ENGINEERING LTD,Maintenance of  Bus Stops,1006\5109649915,18-Nov-19,"10,840.78",
LONDON UNDERGROUND LTD,FUSION PEOPLE LIMITED,Vehicle Operating Leases,1005\5109659414,02-Dec-19,"10,836.59",
LONDON UNDERGROUND LTD,FUSION PEOPLE LIMITED,Vehicle Operating Leases,1005\5109645853,11-Nov-19,"10,818.29",
LUL NOMINEE SSL LIMITED,EMERSON NETWORK POWER LTD,Plant & Equipment Purchases,1031\5109632399,13-Nov-19,"10,791.28",
SURFACE TRANSPORT CORP,CAPITA BUSINESS SERVICES LTD,Management & Support Consultancy,1002\5109638199,25-Nov-19,"10,751.22",
RAIL FOR LONDON LIMITED,OVE ARUP & PARTNERS LTD,Professional Engineering Services,1020\5109661349,04-Dec-19,"10,727.35",
LONDON UNDERGROUND LTD,QUINN INFRASTRUCTURE SERVICES LTD,Escalators,1005\5109650542,18-Nov-19,"10,719.49",
TFL CORPORATE,HEDSON RAIL LTD,Management & Support Consultancy,1001\5109651640,04-Dec-19,"10,710.00",
LONDON BUS SERVICES LTD,C&S MOTOR GROUP,Vehicle Recovery,1006\5109645494,19-Nov-19,"10,695.00",
TFL CORPORATE,EC HARRIS UK LTD,Contractors,1001\5109649533,04-Dec-19,"10,687.50",
TFL CORPORATE,ATKINS LIMITED,Management & Support Consultancy,1001\5109644281,27-Nov-19,"10,684.67",
TRANSPORT TRADING LTD,DAISY COMMUNICATIONS LTD,Telephony Fixed,1004\5109627812,13-Nov-19,"10,659.60",
LONDON UNDERGROUND LTD,JNG CONSTRUCTION & ENGINEERING,Building Maintenance & Repairs,1005\5109655360,26-Nov-19,"10,656.26",
RAIL FOR LONDON LIMITED,LANES GROUP PLC,Professional Engineering Services,1020\5109650645,18-Nov-19,"10,608.31",
LONDON UNDERGROUND LTD,NETWORK RAIL,National Rail Long Term Charges,1005\5109642005,20-Nov-19,"10,597.38",
SURFACE TRANSPORT CORP,SKY HIGH PLC,Traffic Signals,1002\5109652279,04-Dec-19,"10,590.00",
TFL CORPORATE,COMPUTACENTER PLC,Computer Hardware,1001\5109641245,27-Nov-19,"10,579.00",
TFL CORPORATE,GARDINER & THEOBALD LLP,Management & Support Consultancy,1001\5109641060,27-Nov-19,"10,577.94",
LONDON UNDERGROUND LTD,WATSON FUELS,Vehicle Running Costs,1005\5109627800,13-Nov-19,"10,570.01",
LONDON UNDERGROUND LTD,WATSON FUELS,Vehicle Running Costs,1005\5109614178,13-Nov-19,"10,563.56",
LONDON UNDERGROUND LTD,WATSON FUELS,Vehicle Running Costs,1005\5109627801,13-Nov-19,"10,561.59",
LUL NOMINEE SSL LIMITED,HOPPECKE INDUSTRIAL BATTERIES,Stock Issues - Repairables,1031\5109659108,03-Dec-19,"10,548.72",
LUL NOMINEE SSL LIMITED,HOPPECKE INDUSTRIAL BATTERIES,Stock Issues - Repairables,1031\5109660224,06-Dec-19,"10,548.72",
LUL NOMINEE SSL LIMITED,HOPPECKE INDUSTRIAL BATTERIES,Stock Issues - Repairables,1031\5109664046,05-Dec-19,"10,548.72",
TRANSPORT TRADING LTD,BRITISH GAS BUSINESS ,Gas,1004\5109659420,29-Nov-19,"10,548.26",
LUL NOMINEE BCV LIMITED,L.B. FOSTER RAIL TECH LTD,Fleet,1033\5109654599,20-Nov-19,"10,545.00",
TFL CORPORATE,HAYS ACCOUNTANCY PERSONNEL,Agency Staff,1001\5109633906,18-Nov-19,"10,532.05",
TRANSPORT TRADING LTD,LONDON BOROUGH OF HAMM& FULHAM,Rates,1004\1901669631,28-Nov-19,"10,532.00",
TFL CORPORATE,HAYS ACCOUNTANCY PERSONNEL,Agency Staff,1001\5109629285,11-Nov-19,"10,525.00",
LONDON UNDERGROUND LTD,GATEWAY TRAINING & CONSULTANCY LTD,Staff Training,1005\5109651305,18-Nov-19,"10,500.00",
TFL CORPORATE,EC HARRIS UK LTD,Management & Support Consultancy,1001\5109639792,20-Nov-19,"10,500.00",
DOCKLANDS LIGHT RAILWAY,CPC PROJECT SERVICES LLP,Professional Engineering Services,1012\5109655279,22-Nov-19,"10,500.00",
TFL CORPORATE,GLEEDS COST MANAGEMENT LIMITED,Civil Engineering Construction Works,1001\5109646418,27-Nov-19,"10,494.60",
RAIL FOR LONDON LIMITED,STM SECURITY GROUP (UK) LTD,Management & Support Consultancy,1020\5109632737,13-Nov-19,"10,494.37",
LONDON UNDERGROUND LTD,WATSON FUELS,Vehicle Running Costs,1005\5109614175,13-Nov-19,"10,487.00",
LONDON UNDERGROUND LTD,BRUSH TRACTION LTD,Maintenance Materials,1005\5109651832,04-Dec-19,"10,471.59",
LONDON UNDERGROUND LTD,SPEEDY ASSET SERVICES LTD,Equipment Repairs & Maintenance,1005\5109647650,27-Nov-19,"10,471.37",
LUL NOMINEE SSL LIMITED,KNORR-BREMSE RAIL LTD ,Fleet,1031\5109633156,13-Nov-19,"10,459.00",
LUL NOMINEE SSL LIMITED,KNORR-BREMSE RAIL LTD ,Fleet,1031\5109644819,13-Nov-19,"10,459.00",
LONDON UNDERGROUND LTD,WATSON FUELS,Vehicle Running Costs,1005\5109632247,13-Nov-19,"10,457.79",
RAIL FOR LONDON LIMITED,MOTT MACDONALD LIMITED,Planning & Development Consultancy,1020\5109637423,20-Nov-19,"10,430.00",
TRANSPORT TRADING LTD,LONDON BOROUGH OF SOUTHWARK,Rates,1004\1901669614,28-Nov-19,"10,427.00",
TFL CORPORATE,JONES LANG LASALLE,Planning & Development Consultancy,1001\5109637239,20-Nov-19,"10,424.00",
LONDON UNDERGROUND LTD,LINKS SIGNS LTD,Production Artwork And Design For Marketing,1005\5109655585,27-Nov-19,"10,423.63",
TFL CORPORATE,MEDIAEDGE,Radio TV Press Poster Cinema Airtime And Space,1001\5109652006,02-Dec-19,"10,418.97",
TRANSPORT TRADING LTD,INTERSERVE,Security Services (Guards),1004\5109647804,18-Nov-19,"10,412.64",
LONDON BUS SERVICES LTD,TRUEFORM ENGINEERING LTD,Building Maintenance & Repairs,1006\5109650264,18-Nov-19,"10,408.17",
LUL NOMINEE SSL LIMITED,SKF (UK) LTD,Fleet,1031\5109639413,20-Nov-19,"10,406.40",
TFL CORPORATE,XANTA LIMITED,Management & Support Consultancy,1001\5109650717,18-Nov-19,"10,400.00",
LONDON UNDERGROUND LTD,ALPHABET (GB) LIMITED,Vehicle Operating Leases,1005\5109647877,27-Nov-19,"10,380.10",
TRANSPORT TRADING LTD,LONDON BOROUGH OF NEWHAM ,Rates,1004\1901669594,28-Nov-19,"10,375.00",
TFL CORPORATE,JACOBS U.K LIMITED,Management & Support Consultancy,1001\5109654114,20-Nov-19,"10,367.34",
TFL CORPORATE,EVERSHEDS,Legal Fees,1001\5109658751,27-Nov-19,"10,366.40",
TRANSPORT TRADING LTD,ARCADIS UK LIMITED,Professional Engineering Services,1004\5109618660,20-Nov-19,"10,318.50",
LONDON UNDERGROUND LTD,MACE Ltd,Planning & Development Consultancy,1005\5109654738,25-Nov-19,"10,312.50",
TFL CORPORATE,ROBERT WEST CONSULTING,Management & Support Consultancy,1001\5109647364,11-Nov-19,"10,290.00",
LUL NOMINEE SSL LIMITED,GPX ENGINEERING LTD,Track General Maintenance,1031\5109656652,27-Nov-19,"10,269.59",
LONDON UNDERGROUND LTD,ASPIRE,Planning & Development Consultancy,1005\5109650010,14-Nov-19,"10,242.24",
LONDON UNDERGROUND LTD,HARMILL SYSTEMS LTD,Maintenance of Plant & Equipment,1005\5109655540,27-Nov-19,"10,235.00",
RAIL FOR LONDON LIMITED,BRIDGEWAY CONSULTING LTD,Staff Training,1020\5109647095,04-Dec-19,"10,234.39",
LUL NOMINEE BCV LIMITED,PANDROL UK LTD,Track General Maintenance,1033\5109651880,04-Dec-19,"10,224.00",
TFL CORPORATE,EC HARRIS UK LTD,Management & Support Consultancy,1001\5109639823,20-Nov-19,"10,200.00",
LONDON BUS SERVICES LTD,TRUEFORM ENGINEERING LTD,Purchase of Bus Shelters,1006\5109644796,11-Nov-19,"10,195.76",
TFL CORPORATE,XANTA LIMITED,Management & Support Consultancy,1001\5109650483,18-Nov-19,"10,170.00",
LONDON BUS SERVICES LTD,TRAPEZE PTI LTD,Electrical & Electronic Engineering,1006\5109651107,06-Dec-19,"10,158.97",
TFL CORPORATE,PINDAR CREATIVE,Production Artwork And Design For Marketing,1001\5109645957,20-Nov-19,"10,151.36",
LONDON UNDERGROUND LTD,ORIGO LTD.,Signalling Systems,1005\5109658527,02-Dec-19,"10,101.39",
LONDON UNDERGROUND LTD,THALES TRANSPORT & SECURITY LIMITED,Computer Hardware,1005\5109635113,13-Nov-19,"10,100.00",
LUL NOMINEE SSL LIMITED,CLESHAR CONTRACT SERVICES LTD,Track General Maintenance,1031\5109647276,13-Nov-19,"10,092.96",
LUL NOMINEE SSL LIMITED,XYLEM FLOW CONTROL LTD,Fleet,1031\5109635034,13-Nov-19,"10,088.96",
SURFACE TRANSPORT CORP,REDSPEED INTERNATIONAL  LTD,Maintenance of Plant & Equipment,1002\5109655451,04-Dec-19,"10,074.99",
LUL NOMINEE SSL LIMITED,LANES GROUP PLC,Building Maintenance & Repairs,1031\5109642994,20-Nov-19,"10,049.35",
LONDON UNDERGROUND LTD,AURORA LIFTS LTD,Escalators,1005\5109655918,25-Nov-19,"10,031.77",
LUL NOMINEE SSL LIMITED,SCHUNK CARBON TECHNOLOGY LIMITED,Fleet,1031\5109632764,13-Nov-19,"10,021.94",
RAIL FOR LONDON LIMITED,STADLER PANKOW GMBH,Stock of Fleet,1020\5109654294,20-Nov-19,"10,015.28",
TRANSPORT TRADING LTD,NEOPOST LTD,Postage,1004\5109653768,20-Nov-19,"10,000.00",
TFL CORPORATE,MEDIAEDGE,Agency Fees Paid To Marketing Agencies,1001\5109642097,13-Nov-19,"10,000.00",
TRANSPORT TRADING LTD,ALBA ECOMMERCE,Management & Support Consultancy,1004\5109641028,27-Nov-19,"10,000.00",
TRANSPORT TRADING LTD,DUPREZ CONSULTING LTD,Planning & Development Consultancy,1004\5109644252,27-Nov-19,"10,000.00",
LONDON UNDERGROUND LTD,JONES LANG LASALLE,Planning & Development Consultancy,1005\5109655616,25-Nov-19,"10,000.00",
LONDON UNDERGROUND LTD,JK RAIL LIMITED,Track General Maintenance,1005\5109659812,02-Dec-19,"9,994.70",
LONDON UNDERGROUND LTD,JK RAIL LIMITED,Track General Maintenance,1005\5109661382,04-Dec-19,"9,994.70",
LONDON UNDERGROUND LTD,JK RAIL LIMITED,Track General Maintenance,1005\5109661384,05-Dec-19,"9,994.70",
TRANSPORT TRADING LTD,UNIVERSAL,Office Accommodation Moves,1004\5109647245,13-Nov-19,"9,992.50",
LONDON UNDERGROUND LTD,SIMOCO EMEA LTD,Building Maintenance & Repairs,1005\5109634727,13-Nov-19,"9,991.88",
TFL CORPORATE,EC HARRIS UK LTD,Management & Support Consultancy,1001\5109639826,20-Nov-19,"9,990.00",
LONDON UNDERGROUND LTD,FUSION PEOPLE LIMITED,Agency Staff,1005\5109653484,20-Nov-19,"9,985.80",
LONDON UNDERGROUND LTD,GBM SERVICES LTD,Operational Cleaning,1005\5109660768,04-Dec-19,"9,976.01",
LONDON UNDERGROUND LTD,FASTENER DIRECT LTD,Stock of Other Spares,1005\5109654998,25-Nov-19,"9,971.30",
SURFACE TRANSPORT CORP,AECOM LTD,Transport Planning Consultancy & Services,1002\5109639866,20-Nov-19,"9,966.75",
LONDON UNDERGROUND LTD,QUAY OFFICE FURNISHERS LTD,Office Accommodation Moves,1005\5109664216,05-Dec-19,"9,955.00",
LONDON UNDERGROUND LTD,VIKING PRECISION ENGINEERS LTD,Equipment Repairs & Maintenance,1005\5109646215,13-Nov-19,"9,950.00",
LONDON UNDERGROUND LTD,UK POWER NETWORKS LTD,Management & Support Consultancy,1005\5109645682,18-Nov-19,"9,941.79",
TFL CORPORATE,XANTA LIMITED,Management & Support Consultancy,1001\5109650710,18-Nov-19,"9,937.50",
LONDON UNDERGROUND LTD,HARRIS INSTALLATIONS SERVICES LTD,Office Accommodation Moves,1005\5109649679,18-Nov-19,"9,928.06",
TFL CORPORATE,MORSON HUMAN RESOURCES LTD,Agency Staff,1001\5109629521,11-Nov-19,"9,919.80",
LONDON UNDERGROUND LTD,LENDLEASE JACOBS JOINT VENTURE,Management & Support Consultancy,1005\5109647404,27-Nov-19,"9,900.00",
LONDON UNDERGROUND LTD,LENDLEASE JACOBS JOINT VENTURE,Management & Support Consultancy,1005\5109647407,27-Nov-19,"9,900.00",
SURFACE TRANSPORT CORP,LENDLEASE JACOBS JOINT VENTURE,Planning & Development Consultancy,1002\5109647734,27-Nov-19,"9,900.00",
RAIL FOR LONDON LIMITED,MOTT MACDONALD LIMITED,Professional Engineering Services,1020\5109641767,02-Dec-19,"9,900.00",
LONDON UNDERGROUND LTD,TRACSIS TRAFFIC DATA LTD,Planning & Development Consultancy,1005\5109631426,11-Nov-19,"9,899.00",
LONDON UNDERGROUND LTD,BRUSH TRACTION LTD,Maintenance Materials,1005\5109651837,04-Dec-19,"9,898.93",
TFL CORPORATE,STRAIGHTFORWARD COMMUNICATIONS LTD,Photography And Video Design And Production,1001\5109649652,13-Nov-19,"9,895.00",
LONDON UNDERGROUND LTD,WILLIAM COOK RAIL LTD,Fleet,1005\5109644802,27-Nov-19,"9,888.00",
TFL CORPORATE,XANTA LIMITED,Management & Support Consultancy,1001\5109654846,29-Nov-19,"9,887.50",
LONDON UNDERGROUND LTD,SSE CONTRACTING,Building Maintenance & Repairs,1005\5109658762,27-Nov-19,"9,878.00",
RAIL FOR LONDON LIMITED,TRUEFORM ENGINEERING LTD,Maintenance of Plant & Equipment,1020\5109650371,18-Nov-19,"9,877.91",
DOCKLANDS LIGHT RAILWAY,G4S CASH SOLUTIONS (UK) LTD,Cash Handling & Processing,1012\5109649273,27-Nov-19,"9,854.94",
LONDON UNDERGROUND LTD,BRUSH TRACTION LTD,Maintenance Materials,1005\5109651840,04-Dec-19,"9,843.83",
LUL NOMINEE SSL LIMITED,ERIKS  EMS,Component Repairs Sub Contracted,1031\5109642921,25-Nov-19,"9,821.69",
LUL NOMINEE SSL LIMITED,ERIKS  EMS,Component Repairs Sub Contracted,1031\5109646192,27-Nov-19,"9,821.69",
LUL NOMINEE SSL LIMITED,ALSTOM TRANSPORT LTD,Electrical & Electronic Engineering,1031\5109641889,27-Nov-19,"9,816.60",
LONDON UNDERGROUND LTD,BRUSH TRACTION LTD,Maintenance Materials,1005\5109651831,04-Dec-19,"9,816.28",
SURFACE TRANSPORT CORP,SIEMENS,Traffic Signals,1002\5109650476,18-Nov-19,"9,802.93",
TFL CORPORATE,HAYS ACCOUNTANCY PERSONNEL,Agency Staff,1001\5109633838,18-Nov-19,"9,800.00",
LUL NOMINEE SSL LIMITED,4 RAIL SERVICES LTD,Building Maintenance & Repairs,1031\5109647125,15-Nov-19,"9,800.00",
TFL CORPORATE,PANTHEA LEADERSHIP,Planning & Development Consultancy,1001\5109644812,11-Nov-19,"9,787.50",
LONDON BUS SERVICES LTD,LONDON GENERAL TRANSPORT SERVICES,Vehicle Repairs & Maintenance,1006\5109647690,04-Dec-19,"9,783.47",
LONDON UNDERGROUND LTD,CLANCY DOCWRA LTD,Civil Engineering Construction Works,1005\5109661403,04-Dec-19,"9,781.58",
LONDON UNDERGROUND LTD,CARRAIG INVESTMENTS S.A.R.L,MR Construction Costs,1005\5109647889,12-Nov-19,"9,780.70",
TFL CORPORATE,MORSON HUMAN RESOURCES LTD,Agency Staff,1001\5109638911,25-Nov-19,"9,775.60",
TFL CORPORATE,GUTTERIDGE HASKINS & DAVEY LIMITED,Professional Engineering Services,1001\5109637392,20-Nov-19,"9,763.32",
TFL CORPORATE,RISKTEC SOLUTIONS LTD,Contractors,1001\5109605231,18-Nov-19,"9,760.00",
LONDON UNDERGROUND LTD,GOOD SKILLS TRAINING,Staff Training,1005\5109644285,11-Nov-19,"9,758.94",
SURFACE TRANSPORT CORP,CAPITA BUSINESS SERVICES LTD,CCS Service Contract,1002\5109637149,20-Nov-19,"9,757.36",
LUL NOMINEE SSL LIMITED,SMS,Civil Engineering Construction Works,1031\5109663909,06-Dec-19,"9,755.00",
LONDON UNDERGROUND LTD,MACE Ltd,Planning & Development Consultancy,1005\5109650955,18-Nov-19,"9,750.00",
LONDON UNDERGROUND LTD,MILLCROFT SERVICES PLC,Escalators,1005\5109640687,13-Nov-19,"9,748.00",
LONDON UNDERGROUND LTD,GOOD SKILLS TRAINING,Staff Training,1005\5109662993,05-Dec-19,"9,747.31",
LUL NOMINEE BCV LIMITED,LAWRENCE INDUSTRIES LTD,Vehicle Parts Gas Oil & Lubricants,1033\5109640411,20-Nov-19,"9,712.00",
TRANSPORT TRADING LTD,NOVACROFT DIRECT LTD,Ticket & Pass Production,1004\5109650261,19-Nov-19,"9,705.20",
LUL NOMINEE SSL LIMITED,CLESHAR CONTRACT SERVICES LTD,Civil Engineering Construction Works,1031\5109661549,04-Dec-19,"9,703.34",
LONDON UNDERGROUND LTD,ASPIRE,Property Management Fees,1005\5109653700,04-Dec-19,"9,702.00",
TFL CORPORATE,ADFIELD HARVEY LTD,Management & Support Consultancy,1001\5109651320,18-Nov-19,"9,700.00",
LONDON UNDERGROUND LTD,CAPITA BUSINESS SERVICES LTD,Maintenance of Telecommunications Equipment,1005\5109641387,25-Nov-19,"9,695.11",
LONDON UNDERGROUND LTD,ROBERT WEST CONSULTING,Professional Engineering Services,1005\5109660032,04-Dec-19,"9,686.72",
TRANSPORT TRADING LTD,O2 UK LTD,Telephony Mobile,1004\1901669388,20-Nov-19,"9,666.44",
LONDON UNDERGROUND LTD,QUAY OFFICE FURNISHERS LTD,Office Accommodation Moves,1005\5109664213,05-Dec-19,"9,655.00",
LONDON UNDERGROUND LTD,EVERSHEDS,Legal Fees,1005\5109654866,25-Nov-19,"9,647.20",
LONDON UNDERGROUND LTD,CAPITA BUSINESS SERVICES LTD,IT Consultancy,1005\5109641483,25-Nov-19,"9,645.27",
TRANSPORT TRADING LTD,DAISY COMMUNICATIONS LTD,Purchase of Telecommunications Equipment,1004\5109627814,13-Nov-19,"9,643.84",
LUL NOMINEE SSL LIMITED,ZF FRIEDRICHSHAFEN AG,Fleet,1031\5109634777,15-Nov-19,"9,613.28",
TRANSPORT TRADING LTD,LONDON BOROUGH OF TOWER HAMLETS,Rates,1004\1901669626,28-Nov-19,"9,606.00",
LONDON UNDERGROUND LTD,GPX ENGINEERING LTD,MR Construction Costs,1005\5109656648,26-Nov-19,"9,601.18",
TFL CORPORATE,JACOBS ENGINEERING UK LTD,Contractors,1001\5109635688,02-Dec-19,"9,600.00",
LONDON UNDERGROUND LTD,GARDINER & THEOBALD LLP,Management & Support Consultancy,1005\5109645700,02-Dec-19,"9,600.00",
TFL CORPORATE,K & L GATES,Legal Fees,1001\5109655878,25-Nov-19,"9,523.80",
LUL NOMINEE SSL LIMITED,EMERSON NETWORK POWER LTD,Plant & Equipment Purchases,1031\5109642040,27-Nov-19,"9,521.95",
LONDON UNDERGROUND LTD,MACE Ltd,Contractors,1005\5109635635,18-Nov-19,"9,520.00",
TFL CORPORATE,TRANSPORT TELEMATICS ,Professional Engineering Services,1001\5109660688,04-Dec-19,"9,520.00",
TFL CORPORATE,ATKINS LIMITED,Management & Support Consultancy,1001\5109644953,04-Dec-19,"9,514.00",
TFL CORPORATE,COMPUTACENTER PLC,Computer Hardware,1001\5109641253,27-Nov-19,"9,513.60",
LONDON BUS SERVICES LTD,APOLLO VEHICLE SAFETY LIMITED,Vehicle Repairs & Maintenance,1006\5109641988,27-Nov-19,"9,512.71",
LUL NOMINEE BCV LIMITED,PANDROL UK LTD,Track General Maintenance,1033\5109655742,04-Dec-19,"9,500.00",
TRANSPORT TRADING LTD,FUSION PROJECT MANAGEMENT LTD ,Professional Engineering Services,1004\5109649340,12-Nov-19,"9,500.00",
LUL NOMINEE BCV LIMITED,HENRY WILLIAMS LTD,Track General Maintenance,1033\5109633377,13-Nov-19,"9,497.50",
RAIL FOR LONDON LIMITED,LANES GROUP PLC,Building Maintenance & Repairs,1020\5109640332,13-Nov-19,"9,490.32",
TFL CORPORATE,HAYS ACCOUNTANCY PERSONNEL,Agency Staff,1001\5109633898,18-Nov-19,"9,467.60",
